{"text_format":"1","workbook":"xlsx","n_sheets":10,"sheets":["Instruções","Resumo","Detalhe","Preços_Fixos","Preços_Index","ERSE_Precos_Fixos","ERSE_Precos_Index","ERSE_CondComerciais","ERSE_Aux","ERSE_Aux_Indexadas"],"not_rendered":{"charts":0,"images":3,"macros":1,"external_links":0,"defined_names":7,"comments":0,"pivot_tables":0},"unopened":[],"bounds":{"document_bytes":16777216,"sheet_cells":100000,"rows_first":2000,"rows_last":500,"rows_between":2000,"halvings":0,"cell_chars":16384,"cell_head_chars":4096},"cells_cut":0,"cells_raw":0,"read":"whole","date_system":"1900"}

{"sheet":"Instruções","index":0,"n_rows":35,"n_cols":1,"rows_kept":35,"cut":false,"hidden":false,"merged":[]}
[]
["Instruções para o preenchimento do modelo de reporte dos preços de referência de BTN e BP<"]
["Detalhes contratuais particulares relativos às ofertas comerciais em Baixa Tensão Normal (BTN) e Baixa Pressão inferior a 10 000 m3, no âmbito da supervisão do mercado retalhista do setor elétrico e do setor de gás natural (Diretiva n.º 16/2024)."]
[]
["O modelo de reporte divide-se em cinco folhas de cálculo: (1) Resumo; (2) Detalhe, (3) Preços Fixos, (4) Preços Index, (5) ERSE_Aux_Indexadas. Os campos identificados com um sinal de asterisco, *, são de preenchimento obrigatório."]
[]
["A folha (1) \"Resumo\" apresenta de forma agregada os principais erros e alertas de preenchimento. O formulário deverá ser enviado à ERSE sem quaisquer erros de preenchimento e devidamente validado. Ao longo dos vários campos de preenchimento do formulário, estarão disponíveis mensagens de alertas, de modo a auxiliar o correto preenchimento do formulário. Caso existam erros de preenchimento, a oferta comercial não será carregada para o simulador de preços da ERSE."]
[]
["Para a correta utilização deste formulário deve observar-se os seguintes aspetos:\n        1- As macros do formulário têm de ser ativadas no botão \"Ativar Conteúdo\";\n        2- Não usar a opção \"Cortar\"/\"Colar\". Caso contrário, irá corromper o ficheiro. Em alternativa, usar a função \"Copiar\"/\"Colar Valor\";\n        3- Não arrastar células. Caso contrário, irá corromper o ficheiro."]
[]
["De acordo com a Diretiva n.º 7/2024, as ofertas comerciais deverão ser comunicadas à ERSE sempre que se verificar alterações nas condições de preços ou das condições comerciais. Neste sentido, sempre que ocorrerem alterações nas Tarifas de Acesso às Redes (TAR), ou nos componentes da fórmula de indexação, ou outras condições de preços, essas alterações deverão ser comunicadas à ERSE. O incumprimento do envio desta informação tem por consequência a exclusão da oferta comercial do simulador de preços da ERSE, até ao envio de uma nova comunicação de informação atualizada."]
[]
["Esclarecimento da ERSE"]
["A ERSE reserva-se ao direito de, em algumas ofertas comerciais, disponibilizar um \"Esclarecimento da ERSE\", o qual visa informar o consumidor sobre as particularidades comerciais de algumas ofertas."]
[]
[]
["A folha \"Detalhe\" procura caracterizar as condições da oferta comercial, designadamente:"]
[]
["1. Identificação do comercializador, marca comercial e da oferta comercial"]
["Identificar o comercializador, a marca comercial e a oferta comercial, incluindo endereços web e contactos comerciais. O correto preenchimento deste campo é relevante, pela disponibilização de informação comercial através do simulador para as respetivas páginas de internet."]
[]
["2. Condições comerciais"]
["Preenchimento das condições contratuais da oferta comercial, designadamente:\n- Tipo de Fornecimento;\n- Duração do contrato;\n- Data início da oferta;\n- Data fim da oferta;\n- Modalidades de contratação, pagamento e faturação;\n- Oferta com fidelização associada;\n- Oferta 100% renovável;\n- Oferta Condicionada: condições contratuais que condicionam a subscrição ao público em geral. (Por exemplo: parcerias obrigatórias, equipamentos necessários, grupos de consumidores, restrições de consumo);\n- Preços Indexados (preencher exclusivamente o separador Preços Index);\n- Preços Fixos (preencher exclusivamente o separador Preços Fixos).\n\nNo caso de ofertas comerciais em que um dos vetores é definido através de preços fixos e outro através de preços indexados/dinâmicos, devem ser utilizadas ambas as folhas de preenchimento de preços (“Preços fixos” e “Preços Indexados”)."]
[]
["3. Serviços adicionais (obrigatórios e opcionais)"]
["Identificação da existência de serviços adicionais obrigatórios com um custo e/ou outros serviços adicionais opcionais."]
[]
["4. Reembolsos/Descontos"]
["Por \"reembolsos/descontos\" entende-se os descontos que revertem a favor do consumidor de forma indireta, desde que o reembolso ocorra garantidamente durante a vigência do contrato de fornecimento de energia.\n\nImporta destacar que os reembolsos/descontos para \"Todos os clientes\" e \"Novos clientes\" a preencher no campo \"4\" não deverão estar refletidos na tabela de preços, da folha \"Preços\", caso contrário irá ocorrer uma duplicação dos descontos, nos preços finais a carregar no simulador de preços da ERSE. O incorreto preenchimento da oferta, irá levar à exclusão da oferta no simulador.\n\nExemplo:\n- Reembolsos em cartão ou vale de desconto;\n- Reembolsos/descontos em determinada data (por exemplo no último mês do contrato);\n- Reembolsos/Descontos aplicáveis apenas para novos clientes;\n\nNota:\nUm benefício e/ou vantagem que não esteja garantida na fatura deve ser detalhada no campo \"2.14. Descrição de outros benefícios relevantes.\". Por exemplo: benefícios/descontos em cinema para clientes."]
[" "]
["5. Limites anuais de consumo"]
["Caso a oferta comercial apresente limites de consumo anual específicos é necessário identificar, por tipo de fornecimento: \n- O limite mínimo;\n- O limite máximo."]
["Nota: caso a oferta comercial não apresente limites de consumo anual específicos (limites máximo e/ou mínimo) não é necessário preencher este campo."]
[]
["Versão: 07/09/2026"]

{"sheet":"Resumo","index":1,"n_rows":14,"n_cols":1,"rows_kept":14,"cut":false,"hidden":false,"merged":[]}
[]
["Resumo de erros"]
[]
["De forma a facilitar o preenchimento do formulário de reporte de ofertas comerciais, foi criado um sistema de alarmística que identifica os erros formais detetados. Desta forma, para que o formulário possa ser enviado à ERSE para efeitos de integração das ofertas comerciais no simulador de preços, não podem existir erros no seu preenchimento. Esta folha constitui um resumo dos erros identificados e define o status do preenchimento. A colocação das ofertas comerciais é sempre sujeita a avaliação complementar por parte da ERSE."]
[]
["1- Erros na folha \"Detalhe\""]
[{"$f":"+IF(AND(COUNTIF(Detalhe!E3:E101,\"erro\")=38,Preços_Fixos!$AA$11=0,Preços_Index!$AB$52=0),\"\",IF(COUNTIF(Detalhe!E3:E101,\"erro\")=0,\"Ok\",COUNTIF(Detalhe!E3:E101,\"erro\")))","v":""}]
["2-Erros na folha \"Preços Fixos\""]
[{"$f":"+IF(AND(COUNTIF(Detalhe!E3:E101,\"erro\")=38,Preços_Fixos!$AA$11=0,Preços_Index!$AB$52=0),\"\",\n\nIF(AND(Detalhe!C54=1,Detalhe!C58=1,Detalhe!C62=1,Preços_Fixos!AA11>0,Preços_Fixos!AB11=0),\"Ok\",\n\nIF(AND(OR(Detalhe!C54=1,Detalhe!C58=1,Detalhe!C62=1),Preços_Fixos!AA11=0),\"\",\n\nIF(AND(OR(Detalhe!C54=1,Detalhe!C58=1,Detalhe!C62=1),Preços_Fixos!AB11>0),Preços_Fixos!AB11,\n\nIF(AND(OR(Detalhe!C54=1,Detalhe!C58=1,Detalhe!C62=1),Preços_Fixos!AA11>0,Preços_Fixos!AB11=0),\"Ok\",\n\nIF(AND(OR(Detalhe!C54=0,Detalhe!C58=0,Detalhe!C62=0),Preços_Fixos!AA11>0),\n\nPreços_Fixos!AB11,\"\"\n\n))))))","v":""}]
["2-Erros na folha \"Preços Index\""]
[{"$f":"IF(AND(COUNTIF(Detalhe!E3:E101,\"erro\")=38,Preços_Fixos!$AA$11=0,Preços_Index!$AB$52=0),\"\",\n\nIF(AND(OR(Detalhe!C54=2,Detalhe!C58=2,Detalhe!C62=2),Preços_Index!AB52=0),Preços_Index!AC52,\n\nIF(AND(OR(Detalhe!C54=2,Detalhe!C58=2,Detalhe!C62=2),Preços_Index!AC52>0),Preços_Index!AC52,\n\nIF(AND(OR(Detalhe!C54=2,Detalhe!C58=2,Detalhe!C62=2),Preços_Index!AB52>0,Preços_Index!AC52=0),\"Ok\",\n\nIF(AND(OR(Detalhe!C54=0,Detalhe!C58=0,Detalhe!C62=0),Preços_Index!AB52>0),\n\nPreços_Index!AC52,\n\nIF(AND(OR(Detalhe!C18=2,Detalhe!C18=3),Detalhe!C54=1,Detalhe!C58=1,Detalhe!C62=1,Preços_Index!AB52>0),Preços_Index!AB52,\n\nIF(Preços_Index!AB52=0,\"\",Preços_Index!AB52)\n\n))))))","v":""}]
["4-Estado do formulário"]
[]
[{"$f":"+IF(AND(A7=\"\",A9=\"\",A11=\"\"),\"\",IF(AND(A7=\"ok\",A9=\"ok\",A11=\"ok\"),\"O formulário pode ser submetido\",IF(AND(A7=\"ok\",A9=\"\",A11=\"\"),\"O formulário apresenta erros que têm de ser corrigidos para poder ser submetido\",\n\nIF(AND(A7=\"ok\",OR(A9=\"ok\",A9=0,A9=\"\"),OR(A11=\"ok\",A11=0,A11=\"\")),\"O formulário pode ser submetido\",\n\n\"O formulário apresenta erros que têm de ser corrigidos para poder ser submetido\"))))","v":""}]

{"sheet":"Detalhe","index":2,"n_rows":100,"n_cols":7,"rows_kept":100,"cut":false,"hidden":false,"merged":[[52,6,52,20],[46,6,46,17]]}
[null,null,{"$f":"+IF(COUNTIF(E3:E101,\"=\"&\"ERRO\")>0,\"Campos com ERRO (Nº de ERROS = \"&COUNTIF(E3:E101,\"=\"&\"ERRO\")&\")\",\"\")","v":"Campos com ERRO (Nº de ERROS = 38)"}]
["1.","Identificação do comercializador, marca comercial e da oferta comercial"]
["1.0","Nome do Comercializador *",null,"Texto",{"$f":"+IF(C3=\"\",\"ERRO\",\"\")","v":"ERRO"},null,"Designação fiscal do Comercializador."]
["1.1","Código CRIA *",null,"Texto",{"$f":"+IF(C4=\"\",\"ERRO\",\"\")","v":"ERRO"},null,"Identificação do código CRIA do comercializador, através dos sete primeiros caracteres. Por exemplo: COM1234."]
["1.2","Marca comercial*",null,"Texto",{"$f":"+IF(C5=\"\",\"ERRO\",\"\")","v":"ERRO"},null,"Designação da marca comercial. Esta será a designação comercial que irá constar no simulador de preços da ERSE."]
["1.3","Nome da Oferta comercial *",null,"Texto",{"$f":"+IF(C6=\"\",\"ERRO\",\"\")","v":"ERRO"},null,"Designação completa da oferta comercial. Este será o nome da oferta comercial que irá constar no simulador de preços da ERSE."]
[null,"1.3.1 - Modalidade da oferta comercial",null,"Texto",null,null,"Esta informação não será disponibilizada ao público mas permite à ERSE distinguir diferentes modalidades da mesma oferta comercial (p.e. descontos por débito direto, e/ou faturação eletrónica)."]
["1.4","Descrição da oferta comercial a incluir no simulador de preços da ERSE *",null,"Texto",{"$f":"+IF(C8=\"\",\"ERRO\",\"\")","v":"ERRO"},null,"Esta descrição será disponibilizada ao público como descrição da oferta. Permite detalhar as características da oferta. O campo está limitado a 750 caracteres."]
["1.5","Segmento da oferta *",null,"Escolha",{"$f":"+IF(OR(C9=1,C9=\"\",C9=0),\"ERRO\",\"\")","v":"ERRO"},null,"Especificação do segmento a que a oferta se destina. Para um preenchimento automático deve ser tido em conta a seguinte codificação: 2=Todos, 3=Doméstico, 4=Não-doméstico."]
["1.6","Endereço web da marca do comercializador *",null,"Web",{"$f":"+IF(C10=\"\",\"ERRO\",\"\")","v":"ERRO"},null,"Endereço web da marca do comercializador. Preencher com o website do comercializador."]
["1.7","Endereço web da oferta comercial*",null,"Web","ERRO",null,"Endereço web da oferta comercial."]
["1.8","Endereço web da ficha contratual padronizada*",null,"Web","ERRO",null,"Endereço web da ficha contratual padronizada da oferta comercial."]
["1.9","Endereço web das condições gerais do contrato*",null,"Web","ERRO",null,"Endereço web com as condições gerais do contrato da oferta comercial."]
["1.10","Contacto comercial telefónico*",null,"Número","ERRO",null,"Identificação do contacto para questões comerciais. Introduzir apenas um contacto."]
["1.11","Contacto comercial eletrónico*",null,"E-mail/ Web","ERRO",null,"Contacto eletrónico para questões comerciais. Introduzir apenas um contacto eletrónico (E-mail ou Endereço web)."]
[]
["2.","Condições comerciais"]
["2.1","Tipo de fornecimento *",null,"Escolha",{"$f":"+IF(OR(C18=1,C18=\"\",C18=0),\"ERRO\",\"\")","v":"ERRO"},null,"Especificação do tipo de fornecimento a que a oferta se destina. Para um preenchimento automático deve ser tido em conta a seguinte codificação: 2=Eletricidade, 3=Gás Natural, 4=Dual."]
["2.2","Duração do contrato (meses) *",null,"Número",{"$f":"+IF(C19=\"\",\"ERRO\",\"\")","v":"ERRO"},null,"Número de meses do contrato"]
["2.3","Data de início da aplicação dos preços da oferta comercial *",null,"DD/MM/AAAA",{"$f":"+IF(C20=\"\",\"ERRO\",\"\")","v":"ERRO"},null,"Data de início da vigência da oferta. A partir desta data a oferta comercial encontra-se disponível para contratação junto do público, passando a estar disponível no simulador de preços."]
["2.4","Data de fim da aplicação dos preços da oferta comercial",null,"DD/MM/AAAA",null,null,"Deixar em branco caso não tenha uma data final definida. Data de fim da vigência da oferta. A partir desta data a oferta comercial deixará de estar disponível para contratação, saindo do simulador de preços."]
["2.5","Contratação *",null,null,null,null,"Deixar em branco os casos não aplicáveis. Se for uma oferta que obriga apenas contratação eletrónica, preencher apenas o campo \"Eletrónica\"."]
[null,"2.5.1 - Eletrónica",null,"E-mail/ Web",{"$f":"+IF(OR(C23<>\"\",C24<>\"\",C25<>\"\"),\"\",\"ERRO\")","v":"ERRO"},null,"E-mail ou endereço web para contratação da oferta."]
[null,"2.5.2 - Presencial",null,"Web",{"$f":"+IF(OR(C23<>\"\",C24<>\"\",C25<>\"\"),\"\",\"ERRO\")","v":"ERRO"},null,"Indicar um endereço web com a localização dos centros de atendimento presencial, por exemplo página de Contactos na página web do comercializador."]
[null,"2.5.3 - Telefone",null,"Número",{"$f":"+IF(OR(C23<>\"\",C24<>\"\",C25<>\"\"),\"\",\"ERRO\")","v":"ERRO"},null,"Contacto telefónico para contratação da oferta."]
["2.6","Faturação *"]
[null,"2.6.1 - Eletrónica",null,"Escolha",{"$f":"+IF(AND(C27=FALSE,C28=FALSE),\"ERRO\",\"\")","v":"ERRO"},null,"Deixar em branco os casos não aplicáveis."]
[null,"2.6.2 - Papel",null,"Escolha",{"$f":"+IF(AND(C27=FALSE,C28=FALSE),\"ERRO\",\"\")","v":"ERRO"},null,"Deixar em branco os casos não aplicáveis."]
["2.7","Pagamento *"]
[null,"2.7.1 - Débito direto em conta",null,"Escolha",{"$f":"+IF(AND(C30=FALSE,C31=FALSE,C32=FALSE),\"ERRO\",\"\")","v":"ERRO"},null,"Deixar em branco os casos não aplicáveis."]
[null,"2.7.2 - Multibanco / Transferência bancária",null,"Escolha",{"$f":"+IF(AND(C30=FALSE,C31=FALSE,C32=FALSE),\"ERRO\",\"\")","v":"ERRO"},null,"Deixar em branco os casos não aplicáveis."]
[null,"2.7.3 - Loja / Agente autorizado",null,"Escolha",{"$f":"+IF(AND(C30=FALSE,C31=FALSE,C32=FALSE),\"ERRO\",\"\")","v":"ERRO"},null,"Deixar em branco os casos não aplicáveis."]
["2.8","Meios de atendimento *"]
[null,"2.8.1 - Por escrito",null,"Escolha",{"$f":"+IF(AND(C35=FALSE,C36=FALSE,C34=FALSE,C37=FALSE),\"ERRO\",\"\")","v":"ERRO"},null,"Deixar em branco os casos não aplicáveis."]
[null,"2.8.2 - Presencial",null,"Escolha",{"$f":"+IF(AND(C35=FALSE,C36=FALSE,C34=FALSE,C37=FALSE),\"ERRO\",\"\")","v":"ERRO"},null,"Deixar em branco os casos não aplicáveis."]
[null,"2.8.3 - Telefónico",null,"Escolha",{"$f":"+IF(AND(C35=FALSE,C36=FALSE,C34=FALSE,C37=FALSE),\"ERRO\",\"\")","v":"ERRO"},null,"Deixar em branco os casos não aplicáveis."]
[null,"2.8.4 - Eletrónico",null,"Escolha",{"$f":"+IF(AND(C35=FALSE,C36=FALSE,C34=FALSE,C37=FALSE),\"ERRO\",\"\")","v":"ERRO"},null,"Deixar em branco os casos não aplicáveis."]
["2.9","Detalhe as várias modalidades de faturação. *",null,"Texto",{"$f":"+IF(C38=\"\",\"ERRO\",\"\")","v":"ERRO"},null,"Por exemplo: faturação mensal, bimestral, conta certa, etc."]
["2.10","A oferta tem fidelização associada? *",null,"Escolha",{"$f":"+IF(OR(C39=\"\",C39=0),\"ERRO\",\"\")","v":"ERRO"},null,"Indicar se a oferta apresenta fidelização associada ou não. Para um preenchimento automático deve ser tido em conta a seguinte codificação: 1=Não, 2=Sim"]
[null,"2.10.1 - Descrição das cláusulas de fidelização, incluindo a penalização por rescisão antecipada.",null,"Texto",{"$f":"+IF(AND(C39=2,C40=\"\"),\"ERRO\",IF(C41<>\"\",\"ERRO\",\"\"))","v":""},null,"Descrição das cláusulas de fidelização, duração, penalidades…."]
[null,null,{"$f":"+IF(AND(C39=2,OR(C9=2,C9=3),OR(C54=2,C58=2,C62=2)),\"A definição de um período de fidelização em contratos celebrados com consumidores obsta à estipulação de indexação das condições de preço ou de ofertas a preços dinâmicos (artigo 19.º, n.º 5 do RRC).\",\"\")","v":""}]
["2.11","Energia elétrica com origem 100% renovável? *",null,"Escolha",{"$f":"+IF(OR(C42=\"\",C42=0),\"ERRO\",\"\")","v":"ERRO"},null,"Indicar se a oferta apresenta energia elétrica 100% renovável. Para um preenchimento automático deve ser tido em conta a seguinte codificação: 1=Não, 2=Sim"]
[null,"2.11.1 Detalhe (opcional) acerca da origem da energia elétrica através de fontes de energia 100% renovável.",null,null,null,null,"Descrição da origem das fontes de energia 100% renovável."]
["2.12","Gás com origem 100% renovável ou de baixo teor em carbono? *",null,"Escolha",{"$f":"+IF(OR(C44=\"\",C44=0),\"ERRO\",\"\")","v":"ERRO"},null,"Indicar se a oferta apresenta gás 100% renovável ou de baixo teor em carbono. Para um preenchimento automático deve ser tido em conta a seguinte codificação: 1=Não, 2=Sim"]
[null,"2.12.1 Detalhe (obrigatório) acerca da origem do gás (gases de origem renovável ou gases de baixo teor em carbono)",null,null,{"$f":"+IF(AND(C44=2,C45=\"\"),\"ERRO\",\"\")","v":""},null,"Descrição da origem gás (gases renováveis ou gases de baixo teor em carbono)."]
["2.13","Oferta Condicionada? *",null,"Escolha",{"$f":"+IF(OR(C46=\"\",C46=0,AND($C$46=1,C47<>\"\")),\"ERRO\",\"\")","v":"ERRO"},null,"Indicar se a oferta apresenta condições contratuais que condicionam a sua subscrição. Para um preenchimento automático deve ser tido em conta a seguinte codificação: 1=Não, 2=Sim"]
[null,"2.13.1 - Detalhe as restrições que condicionam a oferta comercial.",null,"Texto",{"$f":"+IF(AND(C46=2,C47=\"\"),\"ERRO\",\"\")","v":""},null,"Descrição da restrição que torna a oferta condicionada. Exemplos:\n1) Obriga a parcerias com outras instituições? \n2) Destina-se a algum tipo de equipamento específico?\n3) Destina-se a um grupo de consumidores específico? "]
["2.14","Descrição de outros benefícios relevantes.\n(com exceção dos reembolsos/descontos detalhados nos campos 4.1 e 4.2)",null,"Texto",null,null,"Por exemplo vantagens ou benefícios em parceiros comerciais."]
["2.15","Indique as políticas de atualização de preços durante a vigência do contrato *"]
[null,"2.15.1 - Os preços são atualizados em função das tarifas de acesso às redes? *",null,"Escolha",null,null,"Selecionar no caso de os preços da oferta comercial serem atualizados automaticamente em função das tarifas de acesso às redes."]
[null,"2.15.2 - Os preços são atualizados automaticamente em função de outros parâmetros? *",null,"Escolha",null,null,"Selecionar no caso de os preços da oferta comercial serem atualizados em função de outros parâmetros automaticamente."]
[null,"2.15.3 - Descreva as políticas de atualização da tabela de preços indicadas nas alíneas anteriores.",null,"Texto",{"$f":"+IF(AND(C51=TRUE,C52=\"\"),\"ERRO\",\"\")","v":""},null,"Referir políticas de alteração de da tabela de preços ou se os mesmos se mantêm, por exemplo: em janeiro em função das TAR no caso da energia elétrica, ou em janeiro em função do IPC."]
[null,"2.15.4 - Condições de preço desta oferta que não se mantêm na renovação automática do contrato.",null,"Texto",null,null,"Referir quais as condições de preços após a renovação automática do contrato ou indicar se as mesmas se mantêm vigentes. Por exemplo: após a renovação do contrato não se aplica o desconto de x% face à oferta base?..."]
["2.16","A oferta comercial apresenta condições de indexação de preços de eletricidade? *",null,"Escolha",{"$f":"+IF(OR(C54=\"\",C54=0),\"ERRO\",IF(AND(C54=2,C62=2),\"ERRO\",IF(AND(C18=3,C54=2),\"ERRO\",\"\")))","v":"ERRO"},null,"Indicar se a oferta apresenta condições de preços indexados de eletricidade. Para um preenchimento automático deve ser tido em conta a seguinte codificação: 1=Não, 2=Sim"]
[null,"2.16.1 - Descreva os mecanismos de preços indexados e a composição da fórmula de indexação.\n\n               Se selecionou o campo 2.16 com opção \"Sim\", preencha o separador \"Preços_ Index\".",null,"Texto",{"$f":"+IF(AND(C54=2,C55=\"\"),\"ERRO\",\"\")","v":""},null,"Referir eventuais mecanismos de indexação de preços, por exemplo em função do OMIE ou outro. Descrever detalhadamente a fórmula do preço de energia e os respetivos indexantes."]
[null,"               Se selecionou o campo 2.16 com opção \"Não\", preencha o separador \"Preços_ Fixos\".",{"$f":"IFERROR(IF(ERSE_Aux!D114=\"Erro\",\"Incompatível haver preços dinâmicos e indexados de eletricidade em simulatâneo! Selecione apenas uma das opções.\",\"\"),\"\")","v":""}]
[]
["2.17","A oferta comercial apresenta condições de indexação de preços de gás? *",null,"Escolha",{"$f":"+IF(OR(C58=\"\",C58=0),\"ERRO\",IF(AND(C18=2,C58=2),\"ERRO\",\"\"))","v":"ERRO"},null,"Indicar se a oferta apresenta condições de preços indexados de gás. Para um preenchimento automático deve ser tido em conta a seguinte codificação: 1=Não, 2=Sim"]
[null,"2.17.1 - Descreva os mecanismos de preços indexados e a composição da fórmula de indexação.\n\n               Se selecionou o campo 2.17 com opção \"Sim\", preencha o separador \"Preços_ Index\".",null,"Texto",{"$f":"+IF(AND(C58=2,C59=\"\"),\"ERRO\",\"\")","v":""},null,"Referir eventuais mecanismos de indexação de preços, por exemplo em função do MIBGAS ou outro. Descrever detalhadamente a fórmula do preço de energia e os respetivos indexantes."]
[null,"               Se selecionou o campo 2.17 com opção \"Não\", preencha o separador \"Preços_ Fixos\"."]
[]
["2.18","A oferta comercial apresenta condições de preços dinâmicos de eletricidade? *",null,"Escolha",{"$f":"+IF(OR(C62=\"\",C62=0),\"ERRO\",IF(AND(C54=2,C62=2),\"ERRO\",IF(AND(C18=3,C62=2),\"ERRO\",\"\")))","v":"ERRO"},null,"Indicar se a oferta apresenta condições de preços dinâmicos de eletricidade. Para um preenchimento automático deve ser tido em conta a seguinte codificação: 1=Não, 2=Sim"]
[null,"2.18.1 - Descreva os mecanismos de preços indexados e a composição da fórmula de indexação.\n\n               Se selecionou o campo 2.18 com opção \"Sim\", preencha o separador \"Preços_ Index\".",null,"Texto",{"$f":"+IF(AND(C62=2,C63=\"\"),\"ERRO\",\"\")","v":""},null,"Referir eventuais mecanismos de indexação de preços, por exemplo em função do OMIE ou outro. Descrever detalhadamente a fórmula do preço de energia e os respetivos indexantes."]
[null,"               Se selecionou o campo 2.18 com opção \"Não\", preencha o separador \"Preços_ Fixos\".",{"$f":"IFERROR(IF(ERSE_Aux!D114=\"Erro\",\"Incompatível haver preços dinâmicos e indexados de eletricidade em simulatâneo! Selecione apenas uma das opções.\",\"\"),\"\")","v":""}]
[]
["3.","Serviços adicionais obrigatórios"]
["3.1","Obrigatoriedade de contratação de serviços adicionais? *",null,"Escolha",{"$f":"+IF(OR(C67=\"\",C67=0,AND(C67=1,OR(C68<>\"\",C69<>\"\",C70<>\"\"))),\"ERRO\",\"\")","v":"ERRO"},null,"Indicar se a oferta apresenta serviços adicionais obrigatórios. Para um preenchimento automático deve ser tido em conta a seguinte codificação: 1=Não, 2=Sim"]
[null,"3.1.1 - Custo dos serviços adicionais obrigatórios (EUR/ano) sem IVA.",null,"EUR/ano",{"$f":"+IF(AND(C67=2,C68=\"\"),\"ERRO\",\"\")","v":""},null,"Indicar o valor anual do(s) serviço(s) adicional(ais) obrigatório(s), antes da aplicação do IVA."]
[null,"3.1.2 - Custo dos serviços adicionais obrigatórios (EUR/ano) após a aplicação da taxa de IVA aplicável.",null,"EUR/ano",{"$f":"+IF(AND(C67=2,C69=\"\"),\"ERRO\",\"\")","v":""},null,"Indicar o valor anual do(s) serviço(s) adicional(ais) obrigatório(s), incluindo a aplicação da taxa de IVA relevante."]
[null,"3.1.3 - Descrição de todos os serviços adicionais obrigatórios.",null,"Texto",{"$f":"+IF(AND(C67=2,C70=\"\"),\"ERRO\",\"\")","v":""},null,"Descrição do(s) serviço(s) adicional(ais) obrigatório(s)."]
["3.2","Descrição de outros serviços adicionais opcionais relevantes.",null,"Texto",null,null,"Descrição do(s) serviço(s) adicional(ais) opcional(ais)."]
[]
["4.","Reembolsos/Descontos"]
["4.1","A oferta tem reembolsos/descontos aplicáveis a qualquer cliente? *",null,"Escolha",{"$f":"+IF(OR(C74=\"\",C74=0,AND(C74=1,OR(C75<>\"\",C76<>\"\",C77<>\"\",C78<>\"\",C79<>\"\",C80<>\"\",C81<>\"\",C82<>\"\"))),\"ERRO\",\"\")","v":"ERRO"},null,"Ver explicação na página Instruções. Estes reembolsos/descontos não devem estar refletidos na tabela de preços das folhas \"Preços_Fixos\" e/ou \"Preços_Index\". Para um preenchimento automático deve ser tido em conta a seguinte codificação: 1=Não, 2=Sim"]
[null,"4.1.1 - Reembolsos anuais (EUR/ano) após a aplicação da taxa de IVA aplicável.",null,"EUR/ano",{"$f":"+IF(AND($C$74=2,$C$78=\"\",$C$76=\"\",$C$75=\"\",$C$77=\"\",$C$79=\"\",$C$80=\"\",$C$81=\"\"),\"ERRO\",\"\")","v":""},null,"Indicar o valor anual do reembolso/desconto associado à oferta comercial, incluindo a aplicação da taxa de IVA relevante."]
[null,"4.1.2 - Eletricidade: reembolsos/descontos em % a aplicar no Termo Fixo.",null,"%",{"$f":"+IF(AND($C$74=2,$C$78=\"\",$C$76=\"\",$C$75=\"\",$C$77=\"\",$C$79=\"\",$C$80=\"\",$C$81=\"\"),\"ERRO\",\"\")","v":""},null,"Indicar o reembolso/desconto percentual aplicável ao termo fixo da eletricidade."]
[null,"4.1.3 - Eletricidade: reembolsos/descontos em % a aplicar no Termo de Energia.",null,"%",{"$f":"+IF(AND($C$74=2,$C$78=\"\",$C$76=\"\",$C$75=\"\",$C$77=\"\",$C$79=\"\",$C$80=\"\",$C$81=\"\"),\"ERRO\",\"\")","v":""},null,"Indicar o reembolso/desconto percentual aplicável ao termo de energia da eletricidade."]
[null,"4.1.4 - Eletricidade: reembolsos/descontos em função da energia ativa consumida sem IVA.",null,"EUR/kWh",{"$f":"+IF(AND($C$74=2,$C$78=\"\",$C$76=\"\",$C$75=\"\",$C$77=\"\",$C$79=\"\",$C$80=\"\",$C$81=\"\"),\"ERRO\",\"\")","v":""},null,"Indicar reembolsos/descontos em EUR/kWh (sem IVA) adicionais que não correspondam a percentagens sobre os valores da tabela de preços da eletricidade."]
[null,"4.1.5 - Gás Natural: reembolsos/descontos em % a aplicar no Termo Fixo.",null,"%","",null,"Indicar o reembolso/descontos percentual aplicável ao termo fixo do gás natural."]
[null,"4.1.6 - Gás Natural: reembolsos/descontos em % a aplicar no Termo de Energia.",null,"%","",null,"Indicar o reembolso/desconto percentual aplicável ao termo de energia do gás natural."]
[null,"4.1.7 - Gás Natural: reembolsos/descontos em função da energia consumida sem IVA.",null,"EUR/kWh","",null,"Indicar reembolsos/descontos em EUR/kWh (sem IVA) adicionais que não correspondam a percentagens sobre os valores da tabela de preços do gás natural."]
[null,"4.1.8 - Descrição dos reembolsos/descontos da oferta comercial.",null,"Texto",{"$f":"+IF(AND($C$74=2,C82=\"\"),\"ERRO\",\"\")","v":""},null,"Descrição de todos os reembolsos/descontos associados à oferta comercial."]
[]
["4.2","A oferta tem reembolsos/descontos aplicáveis apenas para os novos clientes? *",null,null,{"$f":"+IF(OR(C84=\"\",C84=0,AND(C84=1,OR(C85<>\"\",C86<>\"\",C87<>\"\",C88<>\"\",C89<>\"\",C90<>\"\",C91<>\"\",C92<>\"\"))),\"ERRO\",\"\")","v":"ERRO"},null,"Ver explicação na página Instruções. Os reembolsos/descontos para novos clientes não devem estar refletidos na tabela de preços das folhas \"Preços_Fixos\" e/ou \"Preços_Index\". Para um preenchimento automático deve ser tido em conta a seguinte codificação: 1=Não, 2=Sim"]
[null,"4.2.1 - Descontos anuais (EUR/ano) após a aplicação da taxa de IVA aplicável.",null,"EUR/ano",{"$f":"+IF(AND($C$84=2,$C$88=\"\",$C$86=\"\",$C$85=\"\",$C$87=\"\",$C$89=\"\",$C$90=\"\",$C$91=\"\"),\"ERRO\",\"\")","v":""},null,"Indicar o valor anual do reembolso/desconto associado à oferta comercial, incluindo a aplicação da taxa de IVA relevante."]
[null,"4.2.2 - Eletricidade: reembolsos/descontos em % a aplicar no Termo Fixo.",null,"%",{"$f":"+IF(AND($C$84=2,$C$88=\"\",$C$86=\"\",$C$85=\"\",$C$87=\"\",$C$89=\"\",$C$90=\"\",$C$91=\"\"),\"ERRO\",\"\")","v":""},null,"Indicar o reembolso/desconto percentual aplicável ao termo fixo da eletricidade."]
[null,"4.2.3 - Eletricidade: reembolsos/descontos em % a aplicar no Termo de Energia.",null,"%",{"$f":"+IF(AND($C$84=2,$C$88=\"\",$C$86=\"\",$C$85=\"\",$C$87=\"\",$C$89=\"\",$C$90=\"\",$C$91=\"\"),\"ERRO\",\"\")","v":""},null,"Indicar o reembolso/desconto percentual aplicável ao termo de energia da eletricidade."]
[null,"4.2.4 - Eletricidade: reembolso/desconto em função da energia ativa consumida sem IVA.",null,"EUR/kWh","",null,"Indicar reembolsos/descontos em EUR/kWh (sem IVA) adicionais que não correspondam a percentagens sobre os valores da tabela de preços da eletricidade."]
[null,"4.2.5 - Gás Natural: reembolsos/descontos em % a aplicar no Termo Fixo.",null,"%","",null,"Indicar o reembolso/desconto percentual aplicável ao termo fixo do gás natural."]
[null,"4.2.6 - Gás Natural: reembolsos/descontos em % a aplicar no Termo de Energia.",null,"%","",null,"Indicar o reembolso/desconto percentual aplicável ao termo de energia do gás natural."]
[null,"4.2.7 - Gás Natural: reembolso/desconto em função da energia consumida sem IVA.",null,"EUR/kWh","",null,"Indicar reembolsos/descontos em EUR/kWh (sem IVA) adicionais que não correspondam a percentagens sobre os valores da tabela de preços do gás natural."]
[null,"4.2.8 - Descrição dos reembolsos/descontos aplicáveis apenas para os novos clientes.",null,"Texto",{"$f":"+IF(AND($C$84=2,C92=\"\"),\"ERRO\",\"\")","v":""},null,"Descrição de todos os reembolsos/descontos apenas para novos clientes associados à oferta comercial."]
[]
["5.","Limites anuais de consumo"]
["5.1","Energia elétrica",null,null,null,null,"Ver explicação na página Instruções. Preencher apenas se os limites anuais de consumo forem específicos à oferta comercial."]
[null,"5.1.1 - Consumo mínimo anual (kWh).",null,"kWh/ano",null,null,"Indicar o valor anual MÍNIMO de consumo de energia elétrica em kWh."]
[null,"5.1.2 - Consumo máximo anual (kWh).",null,"kWh/ano",null,null,"Indicar o valor anual MÁXIMO de consumo de energia elétrica em kWh."]
["5.2","Gás natural"]
[null,"5.2.1 - Consumo mínimo anual (m3).",null,"m3/ano",null,null,"Indicar o valor anual MÍNIMO de consumo de gás natural em m3."]
[null,"5.2.2 - Consumo máximo anual (m3).",null,"m3/ano",null,null,"Indicar o valor anual MÁXIMO de consumo de gás natural em m3."]

{"sheet":"Preços_Fixos","index":3,"n_rows":34,"n_cols":29,"rows_kept":34,"cut":false,"hidden":false,"merged":[[18,12,18,13],[19,12,19,13],[20,12,20,13],[22,12,22,13],[27,12,28,13],[13,12,13,13],[14,12,14,13],[15,12,15,13],[16,12,16,13],[17,12,17,13],[8,12,8,13],[9,12,9,13],[10,12,10,13],[11,12,11,13],[12,12,12,13],[5,12,7,13],[5,14,5,15],[5,16,5,18],[5,19,5,22],[6,17,6,18],[6,20,6,22],[5,2,5,3],[5,4,5,6],[5,7,5,10],[12,0,12,1],[13,0,13,1],[6,5,6,6],[6,8,6,10],[5,0,7,1],[8,0,8,1],[9,0,9,1],[10,0,10,1],[11,0,11,1],[27,0,28,1],[14,0,14,1],[15,0,15,1],[16,0,16,1],[17,0,17,1],[18,0,18,1],[19,0,19,1],[20,0,20,1],[22,0,22,1]]}
[null,null,null,null,null,{"$f":"+IF(Detalhe!C18=2,\n\nIF(AND(OR(Detalhe!C54=2,Detalhe!C62=2),AA11=0),\"\",\n\nIF(AND(OR(Detalhe!C54=1,Detalhe!C62=1),AA11=0),\"\",\n\nIF(AND(OR(Detalhe!C54=2,Detalhe!C62=2),AA11>0),\"Oferta a preços indexados: não preencher esta folha!\",\n\nIF(AND(OR(Detalhe!C54=1,Detalhe!C62=1),COUNTA(C30:D33,O30:P33,P26,D26)>0),\"Não preencher dados de gás!\",\"\")))),\n\n\nIF(Detalhe!C18=3,\n\nIF(AND(Detalhe!C58=2,AA11=0),\"\",\n\nIF(AND(Detalhe!C58=1,COUNTA(C9:K21,O9:W21,D4,P4)=0),\"\",\n\nIF(AND(Detalhe!C58=2,AA11>0),\"Oferta a preços indexados: não preencher esta folha!\",\n\nIF(AND(Detalhe!C58=1,COUNTA(C9:K21,O9:W21,D4,P4)>0),\"Não preencher dados de eletricidade!\",9999)))),\n\n\nIF(Detalhe!C18=4,\n\nIF(AND(Detalhe!C54=1,Detalhe!C62=1,Detalhe!C58=1,OR(COUNTA(C30:D33,O30:P33,P26,D26)=0,COUNTA(C9:K21,O9:W21,D4,P4)=0)),\"Preencher valores referentes a preços fixos\",\n\nIF(AND(OR(Detalhe!C54=2,Detalhe!C62=2),Detalhe!C58=2,AA11=0),\"\",\n\nIF(AND(OR(Detalhe!C54=1,Detalhe!C62=1),Detalhe!C58=1,COUNTA(C30:D33,O30:P33,P26,D26)+COUNTA(C9:K21,O9:W21,D4,P4)=0),\"\",\n\nIF(AND(OR(Detalhe!C54=2,Detalhe!C62=2),Detalhe!C58=2,AA11>0),\"Oferta a preços indexados: não preencher esta folha!\",\n\nIF(AND(OR(Detalhe!C54=1,Detalhe!C62=1),Detalhe!C58=2,COUNTA(C30:D33,O30:P33,P26,D26)>0),\"Não preencher dados de gás!\",\n\nIF(AND(OR(Detalhe!C54=2,Detalhe!C62=2),Detalhe!C58=1,COUNTA(C9:K21,O9:W21,D4,P4)>0),\"Não preencher dados de eletricidade!\",\"\")))))),\"\")))","v":""}]
["Fornecimento - Energia Elétrica (1.º Período)",null,null,null,null,null,null,null,null,null,null,null,"Fornecimento - Energia Elétrica (2.º Período)"]
[]
["Duração 1.º período (meses) =",null,null,null,"*",null,null,null,null,null,null,null,"Duração 2.º período (meses) ="]
[null,null,null,null,null,null,null,null,null,null,{"$f":"IF(OR(Detalhe!C54=2,Detalhe!C54=\"\",COUNT(C9:K21,O9:W21)=0),\"\",\n\nIF(AND($D$4=\"\",$P$4=\"\",Detalhe!$C$19=\"\"),\"\",IF(AND($D$4+$P$4<>Detalhe!$C$19,OR(Detalhe!$C$18=2,Detalhe!$C$18=4,Detalhe!$C$18=1)),\"Erro - O número total de meses não é igual ao definido no campo 2.2 da folha 'Detalhe'.\",\"\")))","v":""},null,null,null,null,null,null,null,null,null,null,null,{"$f":"IF(OR(Detalhe!C54=2,Detalhe!C54=\"\",COUNT(O9:W21,C9:K21)=0),\"\",\n\nIF(AND($D$4=\"\",$P$4=\"\",Detalhe!$C$19=\"\"),\"\",IF(AND($D$4+$P$4<>Detalhe!$C$19,OR(Detalhe!$C$18=2,Detalhe!$C$18=4,Detalhe!$C$18=1)),\"Erro - O número total de meses não é igual ao definido no campo 2.2 da folha 'Detalhe'.\",\"\")))","v":""}]
["Pot. Contratada (kVA)",null,"Simples",null,"Bi-Horário",null,null,"Tri-Horário",null,null,null,null,"Pot. Contratada (kVA)",null,"Simples",null,"Bi-Horário",null,null,"Tri-Horário",null,null,null,null,null,null,"vazio","erros"]
[null,null,"Potência/\nTermo fixo","Energia","Potência/\nTermo fixo","Energia (EUR/kWh)",null,"Potência/\nTermo fixo","Energia (EUR/kWh)",null,null,null,null,null,"Potência/\nTermo fixo","Energia","Potência/\nTermo fixo","Energia (EUR/kWh)",null,"Potência/\nTermo fixo","Energia (EUR/kWh)",null,null,null,null,null,{"$f":"+COUNTA(D4,P4,D26,P26,C9:K21,C30:D33,O30:P33,O9:W21)","v":0},{"$f":"+COUNTIF(X9:X21,AC7)+COUNTIF(E30:E33,AC7)+COUNTIF(Q30:Q33,AC7)+COUNTIF(L9:L21,AC7)","v":0},"incompleto"]
[null,null,"EUR/dia","EUR/kWh","EUR/dia","Fora Vazio","Vazio","EUR/dia","Ponta","Cheias","Vazio",null,null,null,"EUR/dia","EUR/kWh","EUR/dia","Fora Vazio","Vazio","EUR/dia","Ponta","Cheias","Vazio",null,null,null,null,{"$f":"+COUNTIF(F22,AC8)+COUNTIF(R22,AC8)+COUNTIF(D34,AC8)+COUNTIF(P34,AC8)","v":0},"ERRO - Preencher ambos os campos de preços no mesmo escalão de energia."]
[1.1499999999999999,null,null,null,null,null,null,null,null,null,null,{"$f":"+IF(COUNT(C9:K9)=0,\"\",IF(COUNT(C9:D9)=1,\"Incompleto\",IF(OR(COUNT(E9:G9)=2,COUNT(E9:G9)=1),\"Incompleto\",IF(OR(COUNT(H9:K9)=3,COUNT(H9:K9)=2,COUNT(H9:K9)=1),\"Incompleto\",\"\"))))","v":""},1.1499999999999999,null,null,null,null,null,null,null,null,null,null,{"$f":"+IF(COUNT(O9:W9)=0,\"\",IF(COUNT(O9:P9)=1,\"Incompleto\",IF(OR(COUNT(Q9:S9)=2,COUNT(Q9:S9)=1),\"Incompleto\",IF(OR(COUNT(T9:W9)=3,COUNT(T9:W9)=2,COUNT(T9:W9)=1),\"Incompleto\",\"\"))))","v":""},null,null,null,{"$f":"+COUNTIF(K5,AC9)+COUNTIF(W5,AC9)+COUNTIF(K27,AC9)+COUNTIF(W27,AC9)","v":0},"Erro - O número total de meses não é igual ao definido no campo 2.2 da folha 'Detalhe'."]
[2.2999999999999998,null,null,null,null,null,null,null,null,null,null,{"$f":"+IF(COUNT(C10:K10)=0,\"\",IF(COUNT(C10:D10)=1,\"Incompleto\",IF(OR(COUNT(E10:G10)=2,COUNT(E10:G10)=1),\"Incompleto\",IF(OR(COUNT(H10:K10)=3,COUNT(H10:K10)=2,COUNT(H10:K10)=1),\"Incompleto\",\"\"))))","v":""},2.2999999999999998,null,null,null,null,null,null,null,null,null,null,{"$f":"+IF(COUNT(O10:W10)=0,\"\",IF(COUNT(O10:P10)=1,\"Incompleto\",IF(OR(COUNT(Q10:S10)=2,COUNT(Q10:S10)=1),\"Incompleto\",IF(OR(COUNT(T10:W10)=3,COUNT(T10:W10)=2,COUNT(T10:W10)=1),\"Incompleto\",\"\"))))","v":""},null,null,null,{"$f":"+IF(F1=\"\",0,1)","v":0},"Poka-yoke"]
[3.45,null,null,null,null,null,null,null,null,null,null,"",3.45,null,null,null,null,null,null,null,null,null,null,"",null,null,{"$f":"+AA7","v":0},{"$f":"+SUM(AB7:AB10)","v":0}]
[4.5999999999999996,null,null,null,null,null,null,null,null,null,null,"",4.5999999999999996,null,null,null,null,null,null,null,null,null,null,""]
[5.75,null,null,null,null,null,null,null,null,null,null,"",5.75,null,null,null,null,null,null,null,null,null,null,""]
[6.9,null,null,null,null,null,null,null,null,null,null,"",6.9,null,null,null,null,null,null,null,null,null,null,""]
[10.35,null,null,null,null,null,null,null,null,null,null,"",10.35,null,null,null,null,null,null,null,null,null,null,""]
[13.8,null,null,null,null,null,null,null,null,null,null,"",13.8,null,null,null,null,null,null,null,null,null,null,""]
[17.25,null,null,null,null,null,null,null,null,null,null,"",17.25,null,null,null,null,null,null,null,null,null,null,""]
[20.7,null,null,null,null,null,null,null,null,null,null,"",20.7,null,null,null,null,null,null,null,null,null,null,""]
[27.6,null,null,null,null,null,null,null,null,null,null,"",27.6,null,null,null,null,null,null,null,null,null,null,""]
[34.5,null,null,null,null,null,null,null,null,null,null,"",34.5,null,null,null,null,null,null,null,null,null,null,{"$f":"+IF(COUNT(O20:W20)=0,\"\",IF(COUNT(O20:P20)=1,\"Incompleto\",IF(OR(COUNT(Q20:S20)=2,COUNT(Q20:S20)=1),\"Incompleto\",IF(OR(COUNT(T20:W20)=3,COUNT(T20:W20)=2,COUNT(T20:W20)=1),\"Incompleto\",\"\"))))","v":""}]
[41.4,null,null,null,null,null,null,null,null,null,null,"",41.4,null,null,null,null,null,null,null,null,null,null,""]
[null,null,null,null,null,{"$f":"+IF(AND(D4<>\"\",COUNT(C9:K21)=0),\"ERRO - Preencher ambos os campos de preços no mesmo escalão de energia.\",\n\nIF(OR(COUNTA(C9:C21)<>COUNTA(D9:D21),OR(COUNTA(E9:E21)<>COUNTA(F9:F21),COUNTA(F9:F21)<>COUNTA(G9:G21),COUNTA(E9:E21)<>COUNTA(G9:G21)),OR(COUNTA(H9:H21)<>COUNTA(I9:I21),COUNTA(H9:H21)<>COUNTA(J9:J21),COUNTA(H9:H21)<>COUNTA(K9:K21),COUNTA(I9:I21)<>COUNTA(J9:J21),COUNTA(I9:I21)<>COUNTA(K9:K21),COUNTA(J9:J21)<>COUNTA(K9:K21))),\"ERRO - Preencher ambos os campos de preços no mesmo escalão de energia.\",\"\"))","v":""},null,null,null,null,null,null,null,null,null,null,null,{"$f":"+IF(AND(P4<>\"\",COUNT(O9:W21)=0),\"ERRO - Preencher ambos os campos de preços no mesmo escalão de energia.\",\n\nIF(OR(COUNTA(O9:O21)<>COUNTA(P9:P21),OR(COUNTA(Q9:Q21)<>COUNTA(R9:R21),COUNTA(R9:R21)<>COUNTA(S9:S21),COUNTA(Q9:Q21)<>COUNTA(S9:S21)),OR(COUNTA(T9:T21)<>COUNTA(U9:U21),COUNTA(T9:T21)<>COUNTA(V9:V21),COUNTA(T9:T21)<>COUNTA(W9:W21),COUNTA(U9:U21)<>COUNTA(V9:V21),COUNTA(U9:U21)<>COUNTA(W9:W21),COUNTA(V9:V21)<>COUNTA(W9:W21))),\"ERRO - Preencher ambos os campos de preços no mesmo escalão de energia.\",\"\"))","v":""}]
[]
["Fornecimento - Gás (1.º Período)",null,null,null,null,null,null,null,null,null,null,null,"Fornecimento - Gás (2.º Período)"]
[]
["Duração 1.º período (meses) =",null,null,null,"*",null,null,null,null,null,null,null,"Duração 2.º período (meses) ="]
[null,null,null,null,null,null,null,null,null,null,{"$f":"IF(OR(Detalhe!C58=2,Detalhe!C58=\"\",COUNT(C30:D33,O30:P33)=0),\"\",\n\nIF(AND($D$26=\"\",$P$26=\"\",Detalhe!$C$19=\"\"),\"\",IF(AND($D$26+$P$26<>Detalhe!$C$19,OR(Detalhe!$C$18=3,Detalhe!$C$18=4,Detalhe!$C$18=1)),\"Erro - O número total de meses não é igual ao definido no campo 2.2 da folha 'Detalhe'.\",\"\")))","v":""},null,null,null,null,null,null,null,null,null,null,null,{"$f":"IF(OR(Detalhe!C58=2,Detalhe!C58=\"\",COUNT(C30:D33,O30:P33)=0),\"\",\n\nIF(AND($D$26=\"\",$P$26=\"\",Detalhe!$C$19=\"\"),\"\",IF(AND($D$26+$P$26<>Detalhe!$C$19,OR(Detalhe!$C$18=3,Detalhe!$C$18=4,Detalhe!$C$18=1)),\"Erro - O número total de meses não é igual ao definido no campo 2.2 da folha 'Detalhe'.\",\"\")))","v":""}]
["Escalão de consumo\n(m3/ano)",null,"Termo Fixo","Energia",null,null,null,null,null,null,null,null,"Escalão de consumo\n(m3/ano)",null,"Termo Fixo","Energia"]
[null,null,"EUR/dia","EUR/kWh",null,null,null,null,null,null,null,null,null,null,"EUR/dia","EUR/kWh"]
["Escalão 1","(0 - 220 m3)",null,null,{"$f":"+IF(COUNT(C30:D30)=1,\"Incompleto\",\"\")","v":""},null,null,null,null,null,null,null,"Escalão 1","(0 - 220 m3)",null,null,{"$f":"+IF(COUNT(O30:P30)=1,\"Incompleto\",\"\")","v":""}]
["Escalão 2","(221 - 500 m3)",null,null,{"$f":"+IF(COUNT(C31:D31)=1,\"Incompleto\",\"\")","v":""},null,null,null,null,null,null,null,"Escalão 2","(221 - 500 m3)",null,null,{"$f":"+IF(COUNT(O31:P31)=1,\"Incompleto\",\"\")","v":""}]
["Escalão 3","(501 - 1 000 m3)",null,null,"",null,null,null,null,null,null,null,"Escalão 3","(501 - 1 000 m3)",null,null,""]
["Escalão 4","(1 001 - 10 000 m3)",null,null,"",null,null,null,null,null,null,null,"Escalão 4","(1 001 - 10 000 m3)",null,null,""]
[null,null,null,{"$f":"+IF(AND(D26<>\"\",COUNT(C30:D33)=0),\"ERRO - Preencher ambos os campos de preços no mesmo escalão de energia.\",\n\nIF(OR(COUNTA(C30:C33)<>COUNTA(D30:D33)),\"ERRO - Preencher ambos os campos de preços no mesmo escalão de energia.\",\"\"))","v":""},null,null,null,null,null,null,null,null,null,null,null,{"$f":"+IF(AND(P26<>\"\",COUNT(O30:P33)=0),\"ERRO - Preencher ambos os campos de preços no mesmo escalão de energia.\",\n\nIF(OR(COUNTA(O30:O33)<>COUNTA(P30:P33)),\"ERRO - Preencher ambos os campos de preços no mesmo escalão de energia.\",\"\"))","v":""}]

{"sheet":"Preços_Index","index":4,"n_rows":149,"n_cols":30,"rows_kept":149,"cut":false,"hidden":false,"merged":[[121,3,121,4],[121,5,121,8],[148,1,148,18],[12,1,12,12],[109,1,109,12],[20,5,20,6],[20,7,20,9],[69,3,69,4],[69,5,69,10],[70,3,70,4],[122,3,122,4],[16,3,16,8]]}
[]
[]
[]
[]
["Fornecimento - Energia Elétrica: detalhe das condições de preços indexados/dinâmicos",null,null,null,null,null,null,null,null,null,null,null,null,null,null,null,null,null,null,null,null,null,null,null,null,null,null,"vazio","erros"]
[null,null,null,null,null,null,null,null,null,null,null,null,null,null,null,null,null,null,null,null,null,null,null,null,null,null,null,{"$f":"+COUNTA(E23:J53,F70,E76:Q79,E116:H119,F122,E128:H129)","v":0},{"$f":"+IF(O13=\"\",0,1)","v":0},"Poka-yoke"]
[null,"Nas situações em que se aplicam condições de preços indexados/dinâmicos, os comercializadores deverão preencher os seguintes campos em branco, de modo a",null,null,null,null,null,null,null,null,null,null,null,null,null,null,null,null,null,null,null,null,null,null,null,null,null,null,{"$f":"+COUNTIF(E69:J69,AD7)+COUNTIF(B23:B51,AD7)+COUNTIF(E121:H121,AD7)","v":0},"incompleto"]
[null,"detalhar os valores dos respetivos indexantes associados às condições de indexação da oferta comercial.",null,null,null,null,null,null,null,null,null,null,null,null,null,null,null,null,null,null,null,null,null,null,null,null,null,null,{"$f":"+COUNTIF(J116,AD8)+COUNTIF(L23,AD8)","v":0},"Indicar unidade do indexante de mercado."]
[null,null,null,null,null,null,null,null,null,null,null,null,null,null,null,null,null,null,null,null,null,null,null,null,null,null,null,null,{"$f":"+COUNTIF(F123,AD9)+COUNTIF(F71,AD9)","v":0},"Indicar referencial de indexante de mercado"]
[null,"Para efeitos do reporte à ERSE, devem ser transpostos os elementos que compõem a fórmula de indexação dos preços para a expressão apresentada, através da",null,null,null,null,null,null,null,null,null,null,null,null,null,null,null,null,null,null,null,null,null,null,null,null,null,null,{"$f":"+COUNTIF(E74:Q74,AD10)","v":0},"Erro Pot."]
[null,"decomposição e simplificação matemática:",null,null,null,null,null,null,null,null,null,null,null,null,null,null,null,null,null,null,null,null,null,null,null,null,null,null,{"$f":"+COUNTIF($E$83:$E$85,AD11)","v":0},"Preencher Pot. Contratada e TAR para opção Simples"]
[null,null,null,null,null,null,null,null,null,null,null,null,null,null,null,null,null,null,null,null,null,null,null,null,null,null,null,null,0,"Preencher Pot. Contratada e TAR para opção Bi-horária"]
[null,"Preço total (EUR) = Componente Variável (EUR/kWh) x Consumo (kWh)  + Componente Fixa (EUR/dia) x N.º dias de consumo",null,null,null,null,null,null,null,null,null,null,null,null,{"$f":"+IF(Detalhe!C18=2,\n\nIF(AND(Detalhe!C54=1,Detalhe!C62=1,Preços_Index!AB52=0),\"\",\n\nIF(AND(OR(Detalhe!C54=2,Detalhe!C62=2),COUNTA(E116:H119,F122,E128:H129,I116)=0),\"\",\n\nIF(AND(Detalhe!C54=1,Detalhe!C62=1,Preços_Index!AB52>0),\"Oferta a preços fixos: não preencher esta folha!\",\n\nIF(AND(OR(Detalhe!C54=2,Detalhe!C62=2),COUNTA(E116:H119,F122,E128:H129,I116)>0),\"Não preencher dados de gás!\",9999)))),\n\n\nIF(Detalhe!C18=3,\n\nIF(AND(Detalhe!C58=1,Preços_Index!AB52=0),\"\",\n\nIF(AND(Detalhe!C58=2,COUNTA(E23:J53,F70,E76:N79,O78:Q79,K23)=0),\"\",\n\nIF(AND(Detalhe!C58=1,Preços_Index!AB52>0),\"Oferta a preços fixos: não preencher esta folha!\",\n\nIF(AND(Detalhe!C58=2,COUNTA(E23:J53,F70,E76:N79,O78:Q79,K23)>0),\"Não preencher dados de eletricidade!\",9999)))),\n\n\nIF(Detalhe!C18=4,\n\nIF(AND(Detalhe!C54=1,Detalhe!C58=1,Detalhe!C62=1,Preços_Index!AB52=0),\"\",\n\nIF(AND(OR(Detalhe!C54=2,Detalhe!C62=2),Detalhe!C58=2,COUNTA(E116:H119,F122,E128:H129,I116)+COUNTA(E23:J53,F70,E76:N79,O78:Q79,K23)=0),\"\",\n\nIF(AND(Detalhe!C54=1,Detalhe!C58=1,Detalhe!C62=1,Preços_Index!AB52>0),\"Oferta a preços fixos: não preencher esta folha!\",\n\nIF(AND(OR(Detalhe!C54=2,Detalhe!C62=2),Detalhe!C58=1,COUNTA(E116:H119,F122,E128:H129,I116)>0),\"Não preencher dados de gás!\",\n\nIF(AND(Detalhe!C54=1,Detalhe!C62=1,Detalhe!C58=2,COUNTA(E23:J53,F70,E76:N79,O78:Q79,K23)>0),\"Não preencher dados de eletricidade!\",\"\"))))),\"\")))","v":""},null,null,null,null,null,null,null,null,null,null,null,null,null,0,"Preencher Pot. Contratada e TAR para opção Tri-horária"]
[null,null,null,null,null,null,null,null,null,null,null,null,null,null,null,null,null,null,null,null,null,null,null,null,null,null,null,null,0,"Sem preços de energia para a opção Simples"]
[null,null,null,"Componente Variável (EUR/kWh) = A x α + β + TAREnergia",null,null,null,null,null,null,null,null,null,null,null,null,null,null,null,null,null,null,null,null,null,null,null,null,0,"Sem preços de energia para a opção Bi-horária"]
[null,null,null,null,null,null,null,null,null,null,null,null,null,null,null,null,null,null,null,null,null,null,null,null,null,null,null,null,0,"Sem preços de energia para a opção Tri-horária"]
[null,null,null,"O preço de energia é igual para todos os escalões de potência contratada?",null,null,null,null,null,null,"* Indicar se os preços de energia são iguais entre os vários escalões de potência contratada para BTN< e para BTN>.",null,null,null,null,null,null,null,null,null,null,null,null,null,null,null,null,null,{"$f":"+COUNTIF($E$131:$E$134,AD17)","v":0},"Preencher Escalão 1"]
[null,null,null,null,null,null,null,null,null,null,null,null,null,null,null,null,null,null,null,null,null,null,null,null,null,null,null,null,{"$f":"+COUNTIF($E$131:$E$134,AD18)","v":0},"Preencher Escalão 2"]
[null,null,null,{"$f":"+IF(ERSE_Aux!H5=1,\"Caso os preços não sejam iguais para todos níveis de potência contratada, preencha cada um dos campos do formulário.\",\"\")","v":""},null,null,null,null,null,null,null,null,null,null,null,null,null,null,null,null,null,null,null,null,null,null,null,null,{"$f":"+COUNTIF($E$131:$E$134,AD19)","v":0},"Preencher Escalão 3"]
[null,null,null,null,null,null,null,null,null,null,null,null,null,null,null,null,null,null,null,null,null,null,null,null,null,null,null,null,{"$f":"+COUNTIF($E$131:$E$134,AD20)","v":0},"Preencher Escalão 4"]
[null,null,null,null,null,"Bi-horário",null,"Tri-horário",null,null,null,null,null,null,null,null,null,null,null,null,null,null,null,null,null,null,null,null,{"$f":"+IF(AND(OR(Detalhe!C54=2,Detalhe!C62=2),COUNTA(E23:J53,F70,E76:N79,O78:Q79,K23)=0),1,0)","v":0},"eletricidade"]
[null,null,"sim/não","Aux","Simples","Fora Vazio","Vazio","Ponta","Cheias ","Vazio","Unidade",null,null,null,null,null,null,null,null,null,null,null,null,null,null,null,null,null,{"$f":"+IF(AND(Detalhe!C58=2,COUNTA(E116:H119,F122,E128:H129,I116)=0),1,0)","v":0},"gás"]
[null,{"$f":"+IF(COUNT(F23:J23)=0,\"\",IF(COUNT(F23:G23)=1,\"Incompleto\",IF(OR(COUNT(H23:J23)=2,COUNT(H23:J23)=1),\"Incompleto\",\"\")))","v":""},0,"A *",null,null,null,null,null,null,null,{"$f":"+IF(AND(COUNT(E23:J23)>0,K23=\"\"),\"Indicar unidade do indexante de mercado.\",\"Valor do indexante de mercado referente ao mês anterior. Preencher a unidade de referência associada ao indexante de mercado. \")","v":"Valor do indexante de mercado referente ao mês anterior. Preencher a unidade de referência associada ao indexante de mercado. "},null,null,null,null,null,null,null,null,null,null,null,null,null,null,null,null,{"$f":"+COUNTIF($E$126:$H$126,AD23)","v":0},"Erro Esc."]
[null,{"$f":"+IF(COUNT(F24:J24)=0,\"\",IF(COUNT(F24:G24)=1,\"Incompleto\",IF(OR(COUNT(H24:J24)=2,COUNT(H24:J24)=1),\"Incompleto\",\"\")))","v":""},2,"α *",null,null,null,null,null,null,{"$f":"IF(K23=\"\",\"\",IF(OR(K23=\"€/kWh\",K23=\"eur/kWh\"),1,\"kWh/\"&RIGHT(K23,LEN(K23)-FIND(\"/\",K23))))","v":""},"Constante multiplicativa da componente variável da fórmula de indexação do preço de energia.",null,null,null,null,null,null,null,null,null,null,null,null,null,null,null,null,{"$f":"+COUNTIF(ERSE_Aux_Indexadas!H26,AD24)","v":0},"Nok"]
[null,{"$f":"+IF(COUNT(F25:J25)=0,\"\",IF(COUNT(F25:G25)=1,\"Incompleto\",IF(OR(COUNT(H25:J25)=2,COUNT(H25:J25)=1),\"Incompleto\",\"\")))","v":""},2,"β *",null,null,null,null,null,null,"EUR/kWh","Constante aditiva da componente variável da fórmula de indexação do preço de energia.",null,null,null,null,null,null,null,null,null,null,null,null,null,null,null,null,{"$f":"+COUNTIF(ERSE_Aux_Indexadas!T26,AD25)","v":0},"Nok"]
[null,{"$f":"+IF(COUNT(F26:J26)=0,\"\",IF(COUNT(F26:G26)=1,\"Incompleto\",IF(OR(COUNT(H26:J26)=2,COUNT(H26:J26)=1),\"Incompleto\",\"\")))","v":""},1,"α1,15 kVA *",null,null,null,null,null,null,{"$f":"IF(K23=\"\",\"\",IF(OR(K23=\"€/kWh\",K23=\"eur/kWh\"),1,\"kWh/\"&RIGHT(K23,LEN(K23)-FIND(\"/\",K23))))","v":""},"Constante multiplicativa da componente variável da fórmula de indexação do preço de energia. Fator adimensional."]
[null,"",1,"α2,3 kVA *",null,null,null,null,null,null,{"$f":"IF(K23=\"\",\"\",IF(OR(K23=\"€/kWh\",K23=\"eur/kWh\"),1,\"kWh/\"&RIGHT(K23,LEN(K23)-FIND(\"/\",K23))))","v":""},"Constante multiplicativa da componente variável da fórmula de indexação do preço de energia. Fator adimensional."]
[null,"",1,"α3,45 kVA *",null,null,null,null,null,null,{"$f":"IF(K23=\"\",\"\",IF(OR(K23=\"€/kWh\",K23=\"eur/kWh\"),1,\"kWh/\"&RIGHT(K23,LEN(K23)-FIND(\"/\",K23))))","v":""},"Constante multiplicativa da componente variável da fórmula de indexação do preço de energia. Fator adimensional."]
[null,"",1,"α4,6 kVA *",null,null,null,null,null,null,{"$f":"IF(K23=\"\",\"\",IF(OR(K23=\"€/kWh\",K23=\"eur/kWh\"),1,\"kWh/\"&RIGHT(K23,LEN(K23)-FIND(\"/\",K23))))","v":""},"Constante multiplicativa da componente variável da fórmula de indexação do preço de energia. Fator adimensional."]
[null,"",1,"α5,75 kVA *",null,null,null,null,null,null,{"$f":"IF(K23=\"\",\"\",IF(OR(K23=\"€/kWh\",K23=\"eur/kWh\"),1,\"kWh/\"&RIGHT(K23,LEN(K23)-FIND(\"/\",K23))))","v":""},"Constante multiplicativa da componente variável da fórmula de indexação do preço de energia. Fator adimensional."]
[null,"",1,"α6,9 kVA *",null,null,null,null,null,null,{"$f":"IF(K23=\"\",\"\",IF(OR(K23=\"€/kWh\",K23=\"eur/kWh\"),1,\"kWh/\"&RIGHT(K23,LEN(K23)-FIND(\"/\",K23))))","v":""},"Constante multiplicativa da componente variável da fórmula de indexação do preço de energia. Fator adimensional."]
[null,"",1,"α10,35 kVA *",null,null,null,null,null,null,{"$f":"IF(K23=\"\",\"\",IF(OR(K23=\"€/kWh\",K23=\"eur/kWh\"),1,\"kWh/\"&RIGHT(K23,LEN(K23)-FIND(\"/\",K23))))","v":""},"Constante multiplicativa da componente variável da fórmula de indexação do preço de energia. Fator adimensional."]
[null,"",1,"α13,8 kVA *",null,null,null,null,null,null,{"$f":"IF(K23=\"\",\"\",IF(OR(K23=\"€/kWh\",K23=\"eur/kWh\"),1,\"kWh/\"&RIGHT(K23,LEN(K23)-FIND(\"/\",K23))))","v":""},"Constante multiplicativa da componente variável da fórmula de indexação do preço de energia. Fator adimensional."]
[null,"",1,"α17,25 kVA *",null,null,null,null,null,null,{"$f":"IF(K23=\"\",\"\",IF(OR(K23=\"€/kWh\",K23=\"eur/kWh\"),1,\"kWh/\"&RIGHT(K23,LEN(K23)-FIND(\"/\",K23))))","v":""},"Constante multiplicativa da componente variável da fórmula de indexação do preço de energia. Fator adimensional."]
[null,"",1,"α20,7 kVA *",null,null,null,null,null,null,{"$f":"IF(K23=\"\",\"\",IF(OR(K23=\"€/kWh\",K23=\"eur/kWh\"),1,\"kWh/\"&RIGHT(K23,LEN(K23)-FIND(\"/\",K23))))","v":""},"Constante multiplicativa da componente variável da fórmula de indexação do preço de energia. Fator adimensional."]
[null,{"$f":"+IF(COUNT(F36:J36)=0,\"\",IF(COUNT(F36:G36)=1,\"Incompleto\",IF(OR(COUNT(H36:J36)=2,COUNT(H36:J36)=1),\"Incompleto\",\"\")))","v":""},1,"α27,6 kVA *",null,null,null,null,null,null,{"$f":"IF(K23=\"\",\"\",IF(OR(K23=\"€/kWh\",K23=\"eur/kWh\"),1,\"kWh/\"&RIGHT(K23,LEN(K23)-FIND(\"/\",K23))))","v":""},"Constante multiplicativa da componente variável da fórmula de indexação do preço de energia. Fator adimensional."]
[null,"",1,"α34,5 kVA *",null,null,null,null,null,null,{"$f":"IF(K23=\"\",\"\",IF(OR(K23=\"€/kWh\",K23=\"eur/kWh\"),1,\"kWh/\"&RIGHT(K23,LEN(K23)-FIND(\"/\",K23))))","v":""},"Constante multiplicativa da componente variável da fórmula de indexação do preço de energia. Fator adimensional."]
[null,"",1,"α41,4 kVA *",null,null,null,null,null,null,{"$f":"IF(K23=\"\",\"\",IF(OR(K23=\"€/kWh\",K23=\"eur/kWh\"),1,\"kWh/\"&RIGHT(K23,LEN(K23)-FIND(\"/\",K23))))","v":""},"Constante multiplicativa da componente variável da fórmula de indexação do preço de energia. Fator adimensional."]
[null,"",1,"β1,15 kVA *",null,null,null,null,null,null,"EUR/kWh","Constante aditiva da componente variável da fórmula de indexação do preço de energia."]
[null,"",1,"β2,3 kVA *",null,null,null,null,null,null,"EUR/kWh","Constante aditiva da componente variável da fórmula de indexação do preço de energia."]
[null,"",1,"β3,45 kVA *",null,null,null,null,null,null,"EUR/kWh","Constante aditiva da componente variável da fórmula de indexação do preço de energia."]
[null,"",1,"β4,6 kVA *",null,null,null,null,null,null,"EUR/kWh","Constante aditiva da componente variável da fórmula de indexação do preço de energia."]
[null,"",1,"β5,75 kVA *",null,null,null,null,null,null,"EUR/kWh","Constante aditiva da componente variável da fórmula de indexação do preço de energia."]
[null,"",1,"β6,9 kVA *",null,null,null,null,null,null,"EUR/kWh","Constante aditiva da componente variável da fórmula de indexação do preço de energia."]
[null,"",1,"β10,35 kVA *",null,null,null,null,null,null,"EUR/kWh","Constante aditiva da componente variável da fórmula de indexação do preço de energia."]
[null,"",1,"β13,8 kVA *",null,null,null,null,null,null,"EUR/kWh","Constante aditiva da componente variável da fórmula de indexação do preço de energia."]
[null,"",1,"β17,25 kVA *",null,null,null,null,null,null,"EUR/kWh","Constante aditiva da componente variável da fórmula de indexação do preço de energia."]
[null,"",1,"β20,7 kVA *",null,null,null,null,null,null,"EUR/kWh","Constante aditiva da componente variável da fórmula de indexação do preço de energia."]
[null,"",1,"β27,6 kVA *",null,null,null,null,null,null,"EUR/kWh","Constante aditiva da componente variável da fórmula de indexação do preço de energia."]
[null,"",1,"β34,5 kVA *",null,null,null,null,null,null,"EUR/kWh","Constante aditiva da componente variável da fórmula de indexação do preço de energia."]
[null,{"$f":"+IF(COUNT(F51:J51)=0,\"\",IF(COUNT(F51:G51)=1,\"Incompleto\",IF(OR(COUNT(H51:J51)=2,COUNT(H51:J51)=1),\"Incompleto\",\"\")))","v":""},1,"β41,4 kVA *",null,null,null,null,null,null,"EUR/kWh","Constante aditiva da componente variável da fórmula de indexação do preço de energia."]
[null,{"$f":"+IF(COUNT(F52:J52)=0,\"\",IF(COUNT(F52:G52)=1,\"Incompleto\",IF(OR(COUNT(H52:J52)=2,COUNT(H52:J52)=1),\"Incompleto\",\"\")))","v":""},0,"TAR(Energia) BTN < *",null,null,null,null,null,null,"EUR/kWh","Preencher o termo de energia das tarifas de acesso às redes em vigor para cada uma das opções horárias, caso sejam aplicáveis.",null,null,null,null,null,null,null,null,null,null,null,null,null,null,null,{"$f":"+AB6","v":0},{"$f":"SUM(AC6:AC25)","v":0}]
[null,{"$f":"+IF(COUNT(F53:J53)=0,\"\",IF(COUNT(F53:G53)=1,\"Incompleto\",IF(OR(COUNT(H53:J53)=2,COUNT(H53:J53)=1),\"Incompleto\",\"\")))","v":""},0,"TAR(Energia) BTN > *",null,null,null,null,null,null,"EUR/kWh","Preencher o termo de energia das tarifas de acesso às redes em vigor para cada uma das opções horárias, caso sejam aplicáveis."]
[null,null,1,"Componente Variável 1,15 kVA",{"$f":"+IF(E$23*E26+E39=0,\"\",E$23*E26+E39+E$52)","v":""},"","",{"$f":"+IF(H$23*H26+H39=0,\"\",H$23*H26+H39+H$52)","v":""},{"$f":"+IF(I$23*I26+I39=0,\"\",I$23*I26+I39+I$52)","v":""},{"$f":"+IF(J$23*J26+J39=0,\"\",J$23*J26+J39+J$52)","v":""},"EUR/kWh","Totalizador."]
[null,null,1,"Componente Variável 2,3 kVA",{"$f":"+IF(E$23*E27+E40=0,\"\",E$23*E27+E40+E$52)","v":""},"","",{"$f":"+IF(H$23*H27+H40=0,\"\",H$23*H27+H40+H$52)","v":""},"","","EUR/kWh","Totalizador."]
[null,null,1,"Componente Variável 3,45 kVA",{"$f":"+IF(E$23*E28+E41=0,\"\",E$23*E28+E41+E$52)","v":""},"","","","","","EUR/kWh","Totalizador."]
[null,null,1,"Componente Variável 4,6 kVA",{"$f":"+IF(E$23*E29+E42=0,\"\",E$23*E29+E42+E$52)","v":""},"","","","","","EUR/kWh","Totalizador."]
[null,null,1,"Componente Variável 5,75 kVA",{"$f":"+IF(E$23*E30+E43=0,\"\",E$23*E30+E43+E$52)","v":""},"","","","","","EUR/kWh","Totalizador."]
[null,null,1,"Componente Variável 6,9 kVA",{"$f":"+IF(E$23*E31+E44=0,\"\",E$23*E31+E44+E$52)","v":""},"","","","","","EUR/kWh","Totalizador."]
[null,null,1,"Componente Variável 10,35 kVA",{"$f":"+IF(E$23*E32+E45=0,\"\",E$23*E32+E45+E$52)","v":""},"","","","","","EUR/kWh","Totalizador."]
[null,null,1,"Componente Variável 13,8 kVA",{"$f":"+IF(E$23*E33+E46=0,\"\",E$23*E33+E46+E$52)","v":""},"","","","","","EUR/kWh","Totalizador."]
[null,null,1,"Componente Variável 17,25 kVA",{"$f":"+IF(E$23*E34+E47=0,\"\",E$23*E34+E47+E$52)","v":""},"","","","","","EUR/kWh","Totalizador."]
[null,null,1,"Componente Variável 20,7 kVA",{"$f":"+IF(E$23*E35+E48=0,\"\",E$23*E35+E48+E$52)","v":""},"","","","","","EUR/kWh","Totalizador."]
[null,null,1,"Componente Variável 27,6 kVA",null,null,null,{"$f":"+IF(H$23*H36+H49=0,\"\",H$23*H36+H49+H$53)","v":""},{"$f":"+IF(I$23*I36+I49=0,\"\",I$23*I36+I49+I$53)","v":""},"","EUR/kWh","Totalizador."]
[null,null,1,"Componente Variável 34,5 kVA",null,null,null,{"$f":"+IF(H$23*H37+H50=0,\"\",H$23*H37+H50+H$53)","v":""},"","","EUR/kWh","Totalizador."]
[null,null,1,"Componente Variável 41,4 kVA",null,null,null,"","","","EUR/kWh","Totalizador."]
[null,null,2,"Componente Variável BTN<",{"$f":"IF(E52=\"\",\"\",IF(E$23*E24+E25+E$52=0,\"\",E$23*E24+E25+E$52))","v":""},{"$f":"IF(F52=\"\",\"\",IF(F$23*F24+F25+F$52=0,\"\",F$23*F24+F25+F$52))","v":""},"","","","","EUR/kWh","Totalizador."]
[null,null,2,"Componente Variável BTN>",null,null,null,{"$f":"IF(H53=\"\",\"\",IF(H$23*H24+H25+H$53=0,\"\",H$23*H24+H25+H$53))","v":""},{"$f":"IF(I53=\"\",\"\",IF(I$23*I24+I25+I$53=0,\"\",I$23*I24+I25+I$53))","v":""},{"$f":"IF(J53=\"\",\"\",IF(J$23*J24+J25+J$53=0,\"\",J$23*J24+J25+J$53))","v":""},"EUR/kWh","Totalizador."]
[null,null,null,null,{"$f":"IF(ERSE_Aux!$H$5=2,IF(OR(COUNT(E23:E25)=0,COUNT(E23:E25,E52)=4),\"\",\"Incompleto\"),\n\nIF(ERSE_Aux!$H$5=1,IF(AND(E23=\"\",COUNT(E26:E38)=0,COUNT(E39:E51)=0),\"\",IF(AND(COUNT(E26:E38)>0,COUNT(E39:E51)>0,\n\nCOUNT(E26)=COUNT(E39),COUNT(E27)=COUNT(E40),COUNT(E28)=COUNT(E41),COUNT(E29)=COUNT(E42),COUNT(E30)=COUNT(E43),COUNT(E31)=COUNT(E44),COUNT(E32)=COUNT(E45),COUNT(E33)=COUNT(E46),COUNT(E34)=COUNT(E47),COUNT(E35)=COUNT(E48),COUNT(E36)=COUNT(E49),COUNT(E37)=COUNT(E50),COUNT(E38)=COUNT(E51),E23>=0,E52>=0),\"\",\"Incompleto\"))))","v":""},{"$f":"IF(ERSE_Aux!$H$5=2,IF(OR(COUNT(F23:F25)=0,COUNT(F23:F25,F52)=4),\"\",\"Incompleto\"),\n\nIF(ERSE_Aux!$H$5=1,IF(AND(F23=\"\",COUNT(F26:F38)=0,COUNT(F39:F51)=0),\"\",IF(AND(COUNT(F26:F38)>0,COUNT(F39:F51)>0,\n\nCOUNT(F26)=COUNT(F39),COUNT(F27)=COUNT(F40),COUNT(F28)=COUNT(F41),COUNT(F29)=COUNT(F42),COUNT(F30)=COUNT(F43),COUNT(F31)=COUNT(F44),COUNT(F32)=COUNT(F45),COUNT(F33)=COUNT(F46),COUNT(F34)=COUNT(F47),COUNT(F35)=COUNT(F48),COUNT(F36)=COUNT(F49),COUNT(F37)=COUNT(F50),COUNT(F38)=COUNT(F51),F23>=0,F52>=0),\"\",\"Incompleto\"))))","v":""},{"$f":"IF(ERSE_Aux!$H$5=2,IF(OR(COUNT(G23:G25)=0,COUNT(G23:G25,G52)=4),\"\",\"Incompleto\"),\n\nIF(ERSE_Aux!$H$5=1,IF(AND(G23=\"\",COUNT(G26:G38)=0,COUNT(G39:G51)=0),\"\",IF(AND(COUNT(G26:G38)>0,COUNT(G39:G51)>0,\n\nCOUNT(G26)=COUNT(G39),COUNT(G27)=COUNT(G40),COUNT(G28)=COUNT(G41),COUNT(G29)=COUNT(G42),COUNT(G30)=COUNT(G43),COUNT(G31)=COUNT(G44),COUNT(G32)=COUNT(G45),COUNT(G33)=COUNT(G46),COUNT(G34)=COUNT(G47),COUNT(G35)=COUNT(G48),COUNT(G36)=COUNT(G49),COUNT(G37)=COUNT(G50),COUNT(G38)=COUNT(G51),G23>=0,G52>=0),\"\",\"Incompleto\"))))","v":""},{"$f":"IF(ERSE_Aux!$H$5=2,IF(OR(COUNT(H23:H25,H52:H53)=0,COUNT(H23:H25,H52:H53)>=4),\"\",\"Incompleto\"),\n\nIF(ERSE_Aux!$H$5=1,IF(AND(H23=\"\",COUNT(H26:H38)=0,COUNT(H39:H51)=0),\"\",IF(AND(COUNT(H26:H38)>0,COUNT(H39:H51)>0,\n\nCOUNT(H26)=COUNT(H39),COUNT(H27)=COUNT(H40),COUNT(H28)=COUNT(H41),COUNT(H29)=COUNT(H42),COUNT(H30)=COUNT(H43),COUNT(H31)=COUNT(H44),COUNT(H32)=COUNT(H45),COUNT(H33)=COUNT(H46),COUNT(H34)=COUNT(H47),COUNT(H35)=COUNT(H48),COUNT(H36)=COUNT(H49),COUNT(H37)=COUNT(H50),COUNT(H38)=COUNT(H51),H23>0,OR(H52<>\"\",H53<>\"\")),\"\",\"Incompleto\"))))","v":""},{"$f":"IF(ERSE_Aux!$H$5=2,IF(OR(COUNT(I23:I25,I52:I53)=0,COUNT(I23:I25,I52:I53)>=4),\"\",\"Incompleto\"),\n\nIF(ERSE_Aux!$H$5=1,IF(AND(I23=\"\",COUNT(I26:I38)=0,COUNT(I39:I51)=0),\"\",IF(AND(COUNT(I26:I38)>0,COUNT(I39:I51)>0,\n\nCOUNT(I26)=COUNT(I39),COUNT(I27)=COUNT(I40),COUNT(I28)=COUNT(I41),COUNT(I29)=COUNT(I42),COUNT(I30)=COUNT(I43),COUNT(I31)=COUNT(I44),COUNT(I32)=COUNT(I45),COUNT(I33)=COUNT(I46),COUNT(I34)=COUNT(I47),COUNT(I35)=COUNT(I48),COUNT(I36)=COUNT(I49),COUNT(I37)=COUNT(I50),COUNT(I38)=COUNT(I51),I23>0,OR(I52<>\"\",I53<>\"\")),\"\",\"Incompleto\"))))","v":""},{"$f":"IF(ERSE_Aux!$H$5=2,IF(OR(COUNT(J23:J25,J52:J53)=0,COUNT(J23:J25,J52:J53)>=4),\"\",\"Incompleto\"),\n\nIF(ERSE_Aux!$H$5=1,IF(AND(J23=\"\",COUNT(J26:J38)=0,COUNT(J39:J51)=0),\"\",IF(AND(COUNT(J26:J38)>0,COUNT(J39:J51)>0,\n\nCOUNT(J26)=COUNT(J39),COUNT(J27)=COUNT(J40),COUNT(J28)=COUNT(J41),COUNT(J29)=COUNT(J42),COUNT(J30)=COUNT(J43),COUNT(J31)=COUNT(J44),COUNT(J32)=COUNT(J45),COUNT(J33)=COUNT(J46),COUNT(J34)=COUNT(J47),COUNT(J35)=COUNT(J48),COUNT(J36)=COUNT(J49),COUNT(J37)=COUNT(J50),COUNT(J38)=COUNT(J51),J23>0,OR(J52<>\"\",J53<>\"\")),\"\",\"Incompleto\"))))","v":""}]
[null,null,null,"Indexante de mercado: A *",null,null,null,null,null,null,null,"Indicar o referencial de indexante de mercado associado à fórmula de indexação do preço de energia. Por exemplo: OMIE PT diário, OMIE PT Intradiário sessão 1, OMIE ES diário, etc."]
[null,null,null,"\"-> Carregue aqui para confirmar equivalência de fórmulas <-\"",null,{"$f":"IF(COUNT(E23:J68)=0,\"\",IF(F70=\"\",\"Indicar referencial de indexante de mercado\",\"\"))","v":""}]
[null,null,null,{"$f":"IF(ERSE_Aux_Indexadas!H26=\"Nok\",ERSE_Aux_Indexadas!B31 & \" da folha ERSE_Aux_Indexadas\",\"\")","v":""}]
[null,null,null,"Componente Fixa (EUR/dia) = γ + TARPotência"]
[null,null,null,null,{"$f":"IF(ERSE_Aux!$H$5=2,\n\nIF(AND(COUNT($E$67:$J$67)=0,COUNT($E$76:$N$78)=0),\"\",\n\nIF(OR(AND(COUNT($E$67)>0,COUNT($E$76:$N$76)=0),AND(COUNT(E80:E82)=0,E79<>\"\")),\"Erro Pot.\",\n\nIF(OR(AND(COUNT($F$67:$G$67)>0,COUNT($E$77:$N$77)=0),AND(COUNT(E80:E82)=0,E79<>\"\")),\"Erro Pot.\",\n\nIF(OR(AND(COUNT($H$67:$J$67)>0,COUNT($E$78:$N$78)=0),AND(COUNT(E80:E82)=0,E79<>\"\")),\"Erro Pot.\",\"\")))),\n\n\n\n\nIF(AND(COUNT($E54:$J54)=0,COUNT(E$76:E$78)=0),\"\",\n\nIF(OR(AND(COUNT($E54)>0,COUNT(E76)=0),AND(COUNT($E54)=0,COUNT(E76)>0)),\"Erro Pot.\",\n\nIF(OR(AND(COUNT($F54:$G54)>0,COUNT(E77)=0),AND(COUNT($F54:$G54)=0,COUNT(E77)>0)),\"Erro Pot.\",\n\nIF(OR(AND(COUNT($H54:$J54)>0,COUNT(E78)=0),AND(COUNT($H54:$J54)=0,COUNT(E78)>0)),\"Erro Pot.\",\"\")))))","v":""},{"$f":"IF(ERSE_Aux!$H$5=2,\n\nIF(AND(COUNT($E$67:$J$67)=0,COUNT($E$76:$N$78)=0),\"\",\n\nIF(OR(AND(COUNT($E$67)>0,COUNT($E$76:$N$76)=0),AND(COUNT(F80:F82)=0,F79<>\"\")),\"Erro Pot.\",\n\nIF(OR(AND(COUNT($F$67:$G$67)>0,COUNT($E$77:$N$77)=0),AND(COUNT(F80:F82)=0,F79<>\"\")),\"Erro Pot.\",\n\nIF(OR(AND(COUNT($H$67:$J$67)>0,COUNT($E$78:$N$78)=0),AND(COUNT(F80:F82)=0,F79<>\"\")),\"Erro Pot.\",\"\")))),\n\n\n\n\nIF(AND(COUNT($E55:$J55)=0,COUNT(F$76:F$78)=0),\"\",\n\nIF(OR(AND(COUNT($E55)>0,COUNT(F76)=0),AND(COUNT($E55)=0,COUNT(F76)>0)),\"Erro Pot.\",\n\nIF(OR(AND(COUNT($F55:$G55)>0,COUNT(F77)=0),AND(COUNT($F55:$G55)=0,COUNT(F77)>0)),\"Erro Pot.\",\n\nIF(OR(AND(COUNT($H55:$J55)>0,COUNT(F78)=0),AND(COUNT($H55:$J55)=0,COUNT(F78)>0)),\"Erro Pot.\",\"\")))))","v":""},{"$f":"IF(ERSE_Aux!$H$5=2,\n\nIF(AND(COUNT($E$67:$J$67)=0,COUNT($E$76:$N$78)=0),\"\",\n\nIF(OR(AND(COUNT($E$67)>0,COUNT($E$76:$N$76)=0),AND(COUNT(G80:G82)=0,G79<>\"\")),\"Erro Pot.\",\n\nIF(OR(AND(COUNT($F$67:$G$67)>0,COUNT($E$77:$N$77)=0),AND(COUNT(G80:G82)=0,G79<>\"\")),\"Erro Pot.\",\n\nIF(OR(AND(COUNT($H$67:$J$67)>0,COUNT($E$78:$N$78)=0),AND(COUNT(G80:G82)=0,G79<>\"\")),\"Erro Pot.\",\"\")))),\n\n\n\n\nIF(AND(COUNT($E56:$J56)=0,COUNT(G$76:G$78)=0),\"\",\n\nIF(OR(AND(COUNT($E56)>0,COUNT(G76)=0),AND(COUNT($E56)=0,COUNT(G76)>0)),\"Erro Pot.\",\n\nIF(OR(AND(COUNT($F56:$G56)>0,COUNT(G77)=0),AND(COUNT($F56:$G56)=0,COUNT(G77)>0)),\"Erro Pot.\",\n\nIF(OR(AND(COUNT($H56:$J56)>0,COUNT(G78)=0),AND(COUNT($H56:$J56)=0,COUNT(G78)>0)),\"Erro Pot.\",\"\")))))","v":""},{"$f":"IF(ERSE_Aux!$H$5=2,\n\nIF(AND(COUNT($E$67:$J$67)=0,COUNT($E$76:$N$78)=0),\"\",\n\nIF(OR(AND(COUNT($E$67)>0,COUNT($E$76:$N$76)=0),AND(COUNT(H80:H82)=0,H79<>\"\")),\"Erro Pot.\",\n\nIF(OR(AND(COUNT($F$67:$G$67)>0,COUNT($E$77:$N$77)=0),AND(COUNT(H80:H82)=0,H79<>\"\")),\"Erro Pot.\",\n\nIF(OR(AND(COUNT($H$67:$J$67)>0,COUNT($E$78:$N$78)=0),AND(COUNT(H80:H82)=0,H79<>\"\")),\"Erro Pot.\",\"\")))),\n\n\n\n\nIF(AND(COUNT($E57:$J57)=0,COUNT(H$76:H$78)=0),\"\",\n\nIF(OR(AND(COUNT($E57)>0,COUNT(H76)=0),AND(COUNT($E57)=0,COUNT(H76)>0)),\"Erro Pot.\",\n\nIF(OR(AND(COUNT($F57:$G57)>0,COUNT(H77)=0),AND(COUNT($F57:$G57)=0,COUNT(H77)>0)),\"Erro Pot.\",\n\nIF(OR(AND(COUNT($H57:$J57)>0,COUNT(H78)=0),AND(COUNT($H57:$J57)=0,COUNT(H78)>0)),\"Erro Pot.\",\"\")))))","v":""},{"$f":"IF(ERSE_Aux!$H$5=2,\n\nIF(AND(COUNT($E$67:$J$67)=0,COUNT($E$76:$N$78)=0),\"\",\n\nIF(OR(AND(COUNT($E$67)>0,COUNT($E$76:$N$76)=0),AND(COUNT(I80:I82)=0,I79<>\"\")),\"Erro Pot.\",\n\nIF(OR(AND(COUNT($F$67:$G$67)>0,COUNT($E$77:$N$77)=0),AND(COUNT(I80:I82)=0,I79<>\"\")),\"Erro Pot.\",\n\nIF(OR(AND(COUNT($H$67:$J$67)>0,COUNT($E$78:$N$78)=0),AND(COUNT(I80:I82)=0,I79<>\"\")),\"Erro Pot.\",\"\")))),\n\n\n\n\nIF(AND(COUNT($E58:$J58)=0,COUNT(I$76:I$78)=0),\"\",\n\nIF(OR(AND(COUNT($E58)>0,COUNT(I76)=0),AND(COUNT($E58)=0,COUNT(I76)>0)),\"Erro Pot.\",\n\nIF(OR(AND(COUNT($F58:$G58)>0,COUNT(I77)=0),AND(COUNT($F58:$G58)=0,COUNT(I77)>0)),\"Erro Pot.\",\n\nIF(OR(AND(COUNT($H58:$J58)>0,COUNT(I78)=0),AND(COUNT($H58:$J58)=0,COUNT(I78)>0)),\"Erro Pot.\",\"\")))))","v":""},{"$f":"IF(ERSE_Aux!$H$5=2,\n\nIF(AND(COUNT($E$67:$J$67)=0,COUNT($E$76:$N$78)=0),\"\",\n\nIF(OR(AND(COUNT($E$67)>0,COUNT($E$76:$N$76)=0),AND(COUNT(J80:J82)=0,J79<>\"\")),\"Erro Pot.\",\n\nIF(OR(AND(COUNT($F$67:$G$67)>0,COUNT($E$77:$N$77)=0),AND(COUNT(J80:J82)=0,J79<>\"\")),\"Erro Pot.\",\n\nIF(OR(AND(COUNT($H$67:$J$67)>0,COUNT($E$78:$N$78)=0),AND(COUNT(J80:J82)=0,J79<>\"\")),\"Erro Pot.\",\"\")))),\n\n\n\n\nIF(AND(COUNT($E59:$J59)=0,COUNT(J$76:J$78)=0),\"\",\n\nIF(OR(AND(COUNT($E59)>0,COUNT(J76)=0),AND(COUNT($E59)=0,COUNT(J76)>0)),\"Erro Pot.\",\n\nIF(OR(AND(COUNT($F59:$G59)>0,COUNT(J77)=0),AND(COUNT($F59:$G59)=0,COUNT(J77)>0)),\"Erro Pot.\",\n\nIF(OR(AND(COUNT($H59:$J59)>0,COUNT(J78)=0),AND(COUNT($H59:$J59)=0,COUNT(J78)>0)),\"Erro Pot.\",\"\")))))","v":""},{"$f":"IF(ERSE_Aux!$H$5=2,\n\nIF(AND(COUNT($E$67:$J$67)=0,COUNT($E$76:$N$78)=0),\"\",\n\nIF(OR(AND(COUNT($E$67)>0,COUNT($E$76:$N$76)=0),AND(COUNT(K80:K82)=0,K79<>\"\")),\"Erro Pot.\",\n\nIF(OR(AND(COUNT($F$67:$G$67)>0,COUNT($E$77:$N$77)=0),AND(COUNT(K80:K82)=0,K79<>\"\")),\"Erro Pot.\",\n\nIF(OR(AND(COUNT($H$67:$J$67)>0,COUNT($E$78:$N$78)=0),AND(COUNT(K80:K82)=0,K79<>\"\")),\"Erro Pot.\",\"\")))),\n\n\n\n\nIF(AND(COUNT($E60:$J60)=0,COUNT(K$76:K$78)=0),\"\",\n\nIF(OR(AND(COUNT($E60)>0,COUNT(K76)=0),AND(COUNT($E60)=0,COUNT(K76)>0)),\"Erro Pot.\",\n\nIF(OR(AND(COUNT($F60:$G60)>0,COUNT(K77)=0),AND(COUNT($F60:$G60)=0,COUNT(K77)>0)),\"Erro Pot.\",\n\nIF(OR(AND(COUNT($H60:$J60)>0,COUNT(K78)=0),AND(COUNT($H60:$J60)=0,COUNT(K78)>0)),\"Erro Pot.\",\"\")))))","v":""},{"$f":"IF(ERSE_Aux!$H$5=2,\n\nIF(AND(COUNT($E$67:$J$67)=0,COUNT($E$76:$N$78)=0),\"\",\n\nIF(OR(AND(COUNT($E$67)>0,COUNT($E$76:$N$76)=0),AND(COUNT(L80:L82)=0,L79<>\"\")),\"Erro Pot.\",\n\nIF(OR(AND(COUNT($F$67:$G$67)>0,COUNT($E$77:$N$77)=0),AND(COUNT(L80:L82)=0,L79<>\"\")),\"Erro Pot.\",\n\nIF(OR(AND(COUNT($H$67:$J$67)>0,COUNT($E$78:$N$78)=0),AND(COUNT(L80:L82)=0,L79<>\"\")),\"Erro Pot.\",\"\")))),\n\n\n\n\nIF(AND(COUNT($E61:$J61)=0,COUNT(L$76:L$78)=0),\"\",\n\nIF(OR(AND(COUNT($E61)>0,COUNT(L76)=0),AND(COUNT($E61)=0,COUNT(L76)>0)),\"Erro Pot.\",\n\nIF(OR(AND(COUNT($F61:$G61)>0,COUNT(L77)=0),AND(COUNT($F61:$G61)=0,COUNT(L77)>0)),\"Erro Pot.\",\n\nIF(OR(AND(COUNT($H61:$J61)>0,COUNT(L78)=0),AND(COUNT($H61:$J61)=0,COUNT(L78)>0)),\"Erro Pot.\",\"\")))))","v":""},{"$f":"IF(ERSE_Aux!$H$5=2,\n\nIF(AND(COUNT($E$67:$J$67)=0,COUNT($E$76:$N$78)=0),\"\",\n\nIF(OR(AND(COUNT($E$67)>0,COUNT($E$76:$N$76)=0),AND(COUNT(M80:M82)=0,M79<>\"\")),\"Erro Pot.\",\n\nIF(OR(AND(COUNT($F$67:$G$67)>0,COUNT($E$77:$N$77)=0),AND(COUNT(M80:M82)=0,M79<>\"\")),\"Erro Pot.\",\n\nIF(OR(AND(COUNT($H$67:$J$67)>0,COUNT($E$78:$N$78)=0),AND(COUNT(M80:M82)=0,M79<>\"\")),\"Erro Pot.\",\"\")))),\n\n\n\n\nIF(AND(COUNT($E62:$J62)=0,COUNT(M$76:M$78)=0),\"\",\n\nIF(OR(AND(COUNT($E62)>0,COUNT(M76)=0),AND(COUNT($E62)=0,COUNT(M76)>0)),\"Erro Pot.\",\n\nIF(OR(AND(COUNT($F62:$G62)>0,COUNT(M77)=0),AND(COUNT($F62:$G62)=0,COUNT(M77)>0)),\"Erro Pot.\",\n\nIF(OR(AND(COUNT($H62:$J62)>0,COUNT(M78)=0),AND(COUNT($H62:$J62)=0,COUNT(M78)>0)),\"Erro Pot.\",\"\")))))","v":""},{"$f":"IF(ERSE_Aux!$H$5=2,\n\nIF(AND(COUNT($E$67:$J$67)=0,COUNT($E$76:$N$78)=0),\"\",\n\nIF(OR(AND(COUNT($E$67)>0,COUNT($E$76:$N$76)=0),AND(COUNT(N80:N82)=0,N79<>\"\")),\"Erro Pot.\",\n\nIF(OR(AND(COUNT($F$67:$G$67)>0,COUNT($E$77:$N$77)=0),AND(COUNT(N80:N82)=0,N79<>\"\")),\"Erro Pot.\",\n\nIF(OR(AND(COUNT($H$67:$J$67)>0,COUNT($E$78:$N$78)=0),AND(COUNT(N80:N82)=0,N79<>\"\")),\"Erro Pot.\",\"\")))),\n\n\n\n\nIF(AND(COUNT($E63:$J63)=0,COUNT(N$76:N$78)=0),\"\",\n\nIF(OR(AND(COUNT($E63)>0,COUNT(N76)=0),AND(COUNT($E63)=0,COUNT(N76)>0)),\"Erro Pot.\",\n\nIF(OR(AND(COUNT($F63:$G63)>0,COUNT(N77)=0),AND(COUNT($F63:$G63)=0,COUNT(N77)>0)),\"Erro Pot.\",\n\nIF(OR(AND(COUNT($H63:$J63)>0,COUNT(N78)=0),AND(COUNT($H63:$J63)=0,COUNT(N78)>0)),\"Erro Pot.\",\"\")))))","v":""},{"$f":"IF(ERSE_Aux!$H$5=2,\n\nIF(AND(COUNT(O78:Q79)=0,COUNT(H68:J68)=0),\"\",\n\nIF(AND(COUNT(H68:J68)>0,COUNT(O82)=0,O79<>\"\"),\"Erro Pot.\",IF(AND(COUNT(H68:J68)>0,COUNT(O82:Q82)=0),\"Erro Pot.\",\"\"))),\n\n\n\nIF(AND(COUNT(O78:Q79)=0,COUNT(H64:J64)=0),\"\",\n\nIF(AND(COUNT(H64:J64)>0,COUNT(O82)=0,O79<>\"\"),\"Erro Pot.\",\n\nIF(AND(COUNT(H64:J64)>0,COUNT(O82)=0),\"Erro Pot.\",\n\nIF(AND(COUNT(H64:J64)=0,COUNT(O78:O79)>0),\"Erro Pot.\",\"\")))))","v":""},{"$f":"IF(ERSE_Aux!$H$5=2,\n\nIF(AND(COUNT(O78:Q79)=0,COUNT(H68:J68)=0),\"\",\n\nIF(AND(COUNT(H68:J68)>0,COUNT(P82)=0,P79<>\"\"),\"Erro Pot.\",IF(AND(COUNT(H68:J68)>0,COUNT(O82:Q82)=0),\"Erro Pot.\",\"\"))),\n\n\n\nIF(AND(COUNT(O78:Q79)=0,COUNT(H65:J65)=0),\"\",\n\nIF(AND(COUNT(H65:J65)>0,COUNT(P82)=0,P79<>\"\"),\"Erro Pot.\",\n\nIF(AND(COUNT(H65:J65)>0,COUNT(P82)=0),\"Erro Pot.\",\n\nIF(AND(COUNT(H65:J65)=0,COUNT(P78:P79)>0),\"Erro Pot.\",\"\")))))","v":""},{"$f":"IF(ERSE_Aux!$H$5=2,\n\nIF(AND(COUNT(O78:Q79)=0,COUNT(H68:J68)=0),\"\",\n\nIF(AND(COUNT(H68:J68)>0,COUNT(Q82)=0,Q79<>\"\"),\"Erro Pot.\",IF(AND(COUNT(H68:J68)>0,COUNT(O82:Q82)=0),\"Erro Pot.\",\"\"))),\n\n\n\nIF(AND(COUNT(O78:Q79)=0,COUNT(H66:J66)=0),\"\",\n\nIF(AND(COUNT(H66:J66)>0,COUNT(Q82)=0,Q79<>\"\"),\"Erro Pot.\",\n\nIF(AND(COUNT(H66:J66)>0,COUNT(Q82)=0),\"Erro Pot.\",\n\nIF(AND(COUNT(H66:J66)=0,COUNT(Q78:Q79)>0),\"Erro Pot.\",\"\")))))","v":""}]
[null,null,null,"Pot. Contratada (kVA)",1.1499999999999999,2.2999999999999998,3.45,4.5999999999999996,5.75,6.9,10.35,13.8,17.25,20.7,27.6,34.5,41.4,"Unidade"]
[null,null,null,"γsimples *",null,null,null,null,null,null,null,null,null,null,null,null,null,"EUR/dia","Constante aditiva da componente fixa da fórmula de indexação do preço de energia para opção horária simples. Caso não seja aplicável, preencher com valor zero."]
[null,null,null,"γBi-horária *",null,null,null,null,null,null,null,null,null,null,null,null,null,"EUR/dia","Constante aditiva da componente fixa da fórmula de indexação do preço de energia para opção bi-horária. Caso não seja aplicável, preencher com valor zero."]
[null,null,null,"γTri-horária *",null,null,null,null,null,null,null,null,null,null,null,null,null,"EUR/dia","Constante aditiva da componente fixa da fórmula de indexação do preço de energia para opção tri-horária. Caso não seja aplicável, preencher com valor zero."]
[null,null,null,"TARPotência *",null,null,null,null,null,null,null,null,null,null,null,null,null,"EUR/dia","Preencher o termo de potência contratada das tarifas de acesso às redes em vigor para cada um dos escalões de potência, caso seja aplicável."]
[null,null,null,"Componente Fixa Simples",{"$f":"+IF(E76=\"\",\"\",E76+E79)","v":""},{"$f":"+IF(F76=\"\",\"\",F76+F79)","v":""},"","","","","","","",{"$f":"+IF(N76=\"\",\"\",N76+N79)","v":""},null,null,null,"EUR/dia","Totalizador."]
[null,null,null,"Componente Fixa Bi-horária",{"$f":"+IF(E77=\"\",\"\",E77+E79)","v":""},{"$f":"+IF(F77=\"\",\"\",F77+F79)","v":""},"","","","","","","","",null,null,null,"EUR/dia","Totalizador."]
[null,null,null,"Componente Fixa Tri-horária",{"$f":"+IF(E78=\"\",\"\",E78+E79)","v":""},{"$f":"+IF(F78=\"\",\"\",F78+F79)","v":""},{"$f":"+IF(G78=\"\",\"\",G78+G79)","v":""},"","","","","","",{"$f":"+IF(N78=\"\",\"\",N78+N79)","v":""},{"$f":"+IF(O78=\"\",\"\",O78+O79)","v":""},"","","EUR/dia","Totalizador."]
[null,null,null,null,{"$f":"IF(AND(E23>0,AND(COUNT(E76:N76)>0,COUNT(E79:N79)>0)),\"\",IF(AND(E23>0,OR(COUNT(E76:N76)=0,COUNT(E79:N79)=0)),\"Preencher Pot. Contratada e TAR para opção Simples\",IF(AND(E23=0,COUNT(E76:N76)>0),\"Sem preços de energia para a opção Simples\",\"\")))","v":""}]
[null,null,null,null,{"$f":"IF(AND(F23>0,AND(COUNT(E77:N77)>0,COUNT(E79:N79)>0)),\"\",IF(AND(F23>0,OR(COUNT(E77:N77)=0,COUNT(E79:N79)=0)),\"Preencher Pot. Contratada e TAR para opção Bi-horária\",IF(AND(F23=0,COUNT(E77:N77)>0),\"Sem preços de energia para a opção Bi-horária\",\"\")))","v":""}]
[null,null,null,null,{"$f":"IF(AND(H23>0,AND(COUNT(E78:Q78)>0,COUNT(E79:Q79)>0)),\"\",IF(AND(H23>0,OR(COUNT(E78:Q78)=0,COUNT(E79:Q79)=0)),\"Preencher Pot. Contratada e TAR para opção Tri-horária\",IF(AND(H23=0,COUNT(E78:Q78)>0),\"Sem preços de energia para a opção Tri-horária\",\"\")))","v":""}]
[null,"onde,"]
[null,"A = Valor do indexante de mercado associada à oferta comercial durante o último mês anterior à data do reporte. Indicar a unidade de referência associada ao indexante de mercado, através do campo “Unidade”."]
[null,"α = Constante multiplicativa."]
[null,"β = Constante aditiva, EUR/kWh."]
[null,"TAR(Energia) BTN< = Valor das tarifas de acesso às redes do termo de energia em Baixa Tensão Normal para potências contratadas inferiores a 20,7 kVA, EUR/kWh."]
[null,"TAR(Energia) BTN> = Valor das tarifas de acesso às redes em Baixa Tensão Normal para potências contratadas superiores a 20,7 kVA, EUR/kWh."]
[null,"Componente variável = Preço da componente variável da fórmula de indexação, EUR/kWh."]
[null,"Indexante de mercado: A = indexante de mercado associado à fórmula de indexação do preço da oferta comercial."]
[null,"γsimples = Constante aditiva para opção horária simples, EUR/dia."]
[null,"γBi-horária = Constante aditiva para opção bi-horária, EUR/dia."]
[null,"γTri-horária = Constante aditiva para opção tri-horária, EUR/dia."]
[null,"TARPotência = Valor das tarifas de acesso às redes do termo de potência contratada em Baixa Tensão Normal por escalão de potência contratada, EUR/dia."]
[null,"Componente Fixa = Preço da componente fixa da fórmula de indexação, EUR/dia."]
[null,"* campos de preenchimento obrigatório (preencher apenas as células em branco)."]
[]
["Fornecimento - Gás: detalhe das condições de preços indexados"]
[]
[]
[null,"Nas situações em que se aplicam condições de preços indexados/dinâmicos, os comercializadores deverão preencher os seguintes campos em branco, de modo a"]
[null,"detalhar os valores dos respetivos indexantes associados às condições de indexação da oferta comercial."]
[]
[null,"Para efeitos do reporte à ERSE, devem ser transpostos os elementos que compõem a fórmula de indexação dos preços para a expressão apresentada, através da"]
[null,"decomposição e simplificação matemática:"]
[]
[null,"Preço total (EUR) = Componente Variável (EUR/kWh) x Consumo (kWh)  + Componente Fixa (EUR/dia) x N.º dias de consumo",null,null,null,null,null,null,null,null,null,null,null,null,{"$f":"+O13","v":""}]
[]
[null,null,null,"Componente Variável (EUR/kWh) = A x α + β + TAR(Energia) BP<"]
[]
[]
[null,null,null,null,"Escalão 1","Escalão 2","Escalão 3","Escalão 4","Unidade"]
[null,null,null,"A *",null,null,null,null,null,{"$f":"+IF(AND(COUNT(E116:H116)>0,I116=\"\"),\"Indicar unidade do indexante de mercado.\",\"Valor do indexante de mercado referente ao mês anterior. Preencher a unidade de referência associada ao indexante de mercado. \")","v":"Valor do indexante de mercado referente ao mês anterior. Preencher a unidade de referência associada ao indexante de mercado. "}]
[null,null,null,"α *",null,null,null,null,{"$f":"IF(I116=\"\",\"\",IF(OR(I116=\"€/kWh\",I116=\"eur/kWh\"),1,\"kWh/\"&RIGHT(I116,LEN(I116)-FIND(\"/\",I116))))","v":""},"Constante multiplicativa da componente variável da fórmula de indexação do preço de energia."]
[null,null,null,"β *",null,null,null,null,"EUR/kWh","Constante aditiva da componente variável da fórmula de indexação do preço de energia."]
[null,null,null,"TAR(Energia) BP< *",null,null,null,null,"EUR/kWh","Preencher o termo de energia das tarifas de acesso às redes em vigor para cada um dos escalões de consumo de gás, caso sejam aplicáveis."]
[null,null,null,"Componente Variável BP<",{"$f":"+IF(E119=\"\",\"\",IF(E$116*E117+E118+E$119=0,\"\",E$116*E117+E118+E$119))","v":""},{"$f":"+IF(F119=\"\",\"\",IF(F$116*F117+F118+F$119=0,\"\",F$116*F117+F118+F$119))","v":""},{"$f":"+IF(G119=\"\",\"\",IF(G$116*G117+G118+G$119=0,\"\",G$116*G117+G118+G$119))","v":""},{"$f":"+IF(H119=\"\",\"\",IF(H$116*H117+H118+H$119=0,\"\",H$116*H117+H118+H$119))","v":""},"EUR/kWh","Totalizador."]
[null,null,null,null,{"$f":"IF(OR(COUNT(E116:E119)=0,COUNT(E116:E119)=4),\"\",\"Incompleto\")","v":""},{"$f":"IF(OR(COUNT(F116:F119)=0,COUNT(F116:F119)=4),\"\",\"Incompleto\")","v":""},"",""]
[null,null,null,"Indexante de mercado: A *",null,null,null,null,null,"Indicar o referencial de indexante de mercado associado à fórmula de indexação do preço de energia. Por exemplo: MIBGAS GWDES, MIBGAS GDAES_D+1, etc."]
[null,null,null,"\"-> Carregue aqui para confirmar equivalência de fórmulas <-\"",null,{"$f":"IF(COUNT(E116:H119)=0,\"\",IF(F122=\"\",\"Indicar referencial de indexante de mercado\",\"\"))","v":""}]
[null,null,null,{"$f":"IF(ERSE_Aux_Indexadas!T26=\"Nok\",ERSE_Aux_Indexadas!N31 & \" da folha ERSE_Aux_Indexadas\",\"\")","v":""}]
[null,null,null,"Componente Fixa (EUR/dia) = γ + TARTermo Fixo"]
[null,null,null,null,{"$f":"IF($E$131<>\"\",\"\",IF(COUNT(E128:E129)/2=COUNT(E116),\"\",\"Erro Esc.\"))","v":""},{"$f":"IF($E$132<>\"\",\"\",IF(COUNT(F128:F129)/2=COUNT(F116),\"\",\"Erro Esc.\"))","v":""},{"$f":"IF($E$133<>\"\",\"\",IF(COUNT(G128:G129)/2=COUNT(G116),\"\",\"Erro Esc.\"))","v":""},{"$f":"IF($E$134<>\"\",\"\",IF(COUNT(H128:H129)/2=COUNT(H116),\"\",\"Erro Esc.\"))","v":""}]
[null,null,null,null,"Escalão 1","Escalão 2","Escalão 3","Escalão 4","Unidade"]
[null,null,null,"γ *",null,null,null,null,"EUR/dia","Constante aditiva da componente fixa da fórmula de indexação do preço de energia. Caso não seja aplicável, preencher com valor zero."]
[null,null,null,"TARTermo Fixo *",null,null,null,null,"EUR/dia","Preencher o termo fixo das tarifas de acesso às redes em vigor para cada um dos escalões de consumo de gás, caso sejam aplicável."]
[null,null,null,"Componente Fixa Simples",{"$f":"+IF(E128=\"\",\"\",E128+E129)","v":""},{"$f":"+IF(F128=\"\",\"\",F128+F129)","v":""},"","","EUR/dia","Totalizador."]
[null,null,null,null,{"$f":"IF(AND(E116>0,COUNT(E128:E129)>1),\"\",IF(AND(E116>0,COUNT(E128:E129)<2),\"Preencher Escalão 1\",\"\"))","v":""}]
[null,null,null,null,{"$f":"IF(AND(F116>0,COUNT(F128:F129)>1),\"\",IF(AND(F116>0,COUNT(F128:F129)<2),\"Preencher Escalão 2\",\"\"))","v":""}]
[null,null,null,null,{"$f":"IF(AND(G116>0,COUNT(G128:G129)>1),\"\",IF(AND(G116>0,COUNT(G128:G129)<2),\"Preencher Escalão 3\",\"\"))","v":""}]
[null,null,null,null,{"$f":"IF(AND(H116>0,COUNT(H128:H129)>1),\"\",IF(AND(H116>0,COUNT(H128:H129)<2),\"Preencher Escalão 4\",\"\"))","v":""}]
[null,"onde,"]
[null,"A = Valor do indexante de mercado associada à oferta comercial durante o último mês anterior à data do reporte. Indicar a unidade de referência associada ao indexante de mercado, através do campo “Unidade”."]
[null,"α = Constante multiplicativa."]
[null,"β = Constante aditiva, EUR/kWh."]
[null,"TAR(Energia) BP< = Valor das tarifas de acesso às redes do termo de energia em Baixa Pressão < 10 000 m3/ano, EUR/kWh."]
[null,"Componente variável = Preço da componente variável da fórmula de indexação, EUR/kWh."]
[null,"Indexante de mercado: A = indicar o indexante de mercado associado à fórmula de indexação do preço da oferta comercial."]
[null,"γ = Constante aditiva, EUR/dia."]
[null,"TARTermo Fixo = Valor das tarifas de acesso às redes do termo tarifário fixo em Baixa Tensão Normal por escalão de consumo, EUR/dia."]
[null,"Componente Fixa = Preço da componente fixa da fórmula de indexação, EUR/dia."]
[null,"* campos de preenchimento obrigatório (preencher apenas as células em branco)."]
[]
["DISPOSIÇÕES DE REPORTE DE OFERTAS COMERCIAIS INDEXADAS OU DINÂMICAS"]
[]
[null,"O reporte das ofertas comerciais a preços indexados ou a preços dinâmicos obedece às seguintes especificações:\n\n- A identificação das ofertas como sendo indexadas ou dinâmicas é feita através da folha \"Detalhe\", devendo os correspondentes campos ser preenchidos com a opção \"Sim\". Devem ainda ser apresentados e descritos de forma sucinta os mecanismos e as características da fórmula de indexação de preços, as suas várias componentes de faturação nos campos aí disponibilizados, assim como terá de ser preenchida a folha de verificação de equivalência de fórmulas (ERSE_Aux_Indexadas);\n- As ofertas comerciais devem ser comunicadas sempre que houver alterações nas componentes da fórmula de indexação ou atualizações nas tarifas de Acesso às Redes;\n- O reporte dos preços das ofertas deverá ser feita numa base mensal;\n- O incumprimento do envio da informação das ofertas indexadas ou dinâmicas de acordo com as indicações anteriores tem por consequência a exclusão da oferta comercial do simulador de preços da ERSE, até ao envio de uma nova comunicação de informação atualizada."]

{"sheet":"ERSE_Precos_Fixos","index":5,"n_rows":41,"n_cols":15,"rows_kept":41,"cut":false,"hidden":true,"merged":[]}
[]
[null,"#","COD_CRIA","COM","Pot_Cont","Escalao","ORD","COD_Proposta","Contagem","TF","TV|TVFV|TVP","TVV|TVC","TVVz","TFGN","TVGN"]
[{"$f":"+IF(Detalhe!C4=\"\",\"\",Detalhe!C4)","v":""},1,{"$f":"+IF(Detalhe!$C$4=\"\",\"\",Detalhe!$C$4)","v":""},{"$f":"$A$3","v":""},1.1499999999999999,1,null,{"$f":"+ERSE_Precos_Fixos!$D3&\"_\"&ERSE_Aux!$C$3","v":{"$error":"#N/A"}},1,{"$f":"+IF(AND(Detalhe!$C$54=1,Detalhe!$C$62=1),IF(Preços_Fixos!C9=\"\",\"\",IF(AND(SUM(Preços_Fixos!$C$9:$K$21)>0,SUM(Preços_Fixos!$O$9:$W$21)=0),Preços_Fixos!C9,Preços_Fixos!C9*Preços_Fixos!$D$4/SUM(Preços_Fixos!$D$4,Preços_Fixos!$P$4)+Preços_Fixos!O9*Preços_Fixos!$P$4/SUM(Preços_Fixos!$D$4,Preços_Fixos!$P$4))),\"\")","v":""},{"$f":"+IF(J3=\"\",\"\",IF(Preços_Fixos!D9=\"\",\"\",IF(AND(SUM(Preços_Fixos!$C$9:$K$21)>0,SUM(Preços_Fixos!$O$9:$W$21)=0),Preços_Fixos!D9,Preços_Fixos!D9*Preços_Fixos!$D$4/SUM(Preços_Fixos!$D$4,Preços_Fixos!$P$4)+Preços_Fixos!P9*Preços_Fixos!$P$4/SUM(Preços_Fixos!$D$4,Preços_Fixos!$P$4))))","v":""},null,null,{"$f":"+IF(Detalhe!$C$58=1,IF(Preços_Fixos!C30=\"\",\"\",IF(AND(SUM(Preços_Fixos!$C$30:$D$33)>0,SUM(Preços_Fixos!$O$30:$P$33)=0),Preços_Fixos!C30,Preços_Fixos!C30*Preços_Fixos!$D$26/SUM(Preços_Fixos!$D$26,Preços_Fixos!$P$26)+Preços_Fixos!O30*Preços_Fixos!$P$26/SUM(Preços_Fixos!$D$26,Preços_Fixos!$P$26))),\"\")","v":""},{"$f":"+IF(N3=\"\",\"\",IF(Preços_Fixos!D30=\"\",\"\",IF(AND(SUM(Preços_Fixos!$C$30:$D$33)>0,SUM(Preços_Fixos!$O$30:$P$33)=0),Preços_Fixos!D30,Preços_Fixos!D30*Preços_Fixos!$D$26/SUM(Preços_Fixos!$D$26,Preços_Fixos!$P$26)+Preços_Fixos!P30*Preços_Fixos!$P$26/SUM(Preços_Fixos!$D$26,Preços_Fixos!$P$26))))","v":""}]
[null,{"$f":"+B3+1","v":2},{"$f":"+IF(Detalhe!$C$4=\"\",\"\",Detalhe!$C$4)","v":""},{"$f":"$A$3","v":""},2.2999999999999998,2,null,{"$f":"+ERSE_Precos_Fixos!$D4&\"_\"&ERSE_Aux!$C$3","v":{"$error":"#N/A"}},{"$f":"+I3","v":1},{"$f":"+IF(AND(Detalhe!$C$54=1,Detalhe!$C$62=1),IF(Preços_Fixos!C10=\"\",\"\",IF(AND(SUM(Preços_Fixos!$C$9:$K$21)>0,SUM(Preços_Fixos!$O$9:$W$21)=0),Preços_Fixos!C10,Preços_Fixos!C10*Preços_Fixos!$D$4/SUM(Preços_Fixos!$D$4,Preços_Fixos!$P$4)+Preços_Fixos!O10*Preços_Fixos!$P$4/SUM(Preços_Fixos!$D$4,Preços_Fixos!$P$4))),\"\")","v":""},{"$f":"+IF(J4=\"\",\"\",IF(Preços_Fixos!D10=\"\",\"\",IF(AND(SUM(Preços_Fixos!$C$9:$K$21)>0,SUM(Preços_Fixos!$O$9:$W$21)=0),Preços_Fixos!D10,Preços_Fixos!D10*Preços_Fixos!$D$4/SUM(Preços_Fixos!$D$4,Preços_Fixos!$P$4)+Preços_Fixos!P10*Preços_Fixos!$P$4/SUM(Preços_Fixos!$D$4,Preços_Fixos!$P$4))))","v":""},null,null,{"$f":"+IF(Detalhe!$C$58=1,IF(Preços_Fixos!C31=\"\",\"\",IF(AND(SUM(Preços_Fixos!$C$30:$D$33)>0,SUM(Preços_Fixos!$O$30:$P$33)=0),Preços_Fixos!C31,Preços_Fixos!C31*Preços_Fixos!$D$26/SUM(Preços_Fixos!$D$26,Preços_Fixos!$P$26)+Preços_Fixos!O31*Preços_Fixos!$P$26/SUM(Preços_Fixos!$D$26,Preços_Fixos!$P$26))),\"\")","v":""},{"$f":"+IF(N4=\"\",\"\",IF(Preços_Fixos!D31=\"\",\"\",IF(AND(SUM(Preços_Fixos!$C$30:$D$33)>0,SUM(Preços_Fixos!$O$30:$P$33)=0),Preços_Fixos!D31,Preços_Fixos!D31*Preços_Fixos!$D$26/SUM(Preços_Fixos!$D$26,Preços_Fixos!$P$26)+Preços_Fixos!P31*Preços_Fixos!$P$26/SUM(Preços_Fixos!$D$26,Preços_Fixos!$P$26))))","v":""}]
[null,3,{"$f":"+IF(Detalhe!$C$4=\"\",\"\",Detalhe!$C$4)","v":""},"",3.45,3,null,{"$f":"+ERSE_Precos_Fixos!$D5&\"_\"&ERSE_Aux!$C$3","v":{"$error":"#N/A"}},{"$f":"+I4","v":1},{"$f":"+IF(AND(Detalhe!$C$54=1,Detalhe!$C$62=1),IF(Preços_Fixos!C11=\"\",\"\",IF(AND(SUM(Preços_Fixos!$C$9:$K$21)>0,SUM(Preços_Fixos!$O$9:$W$21)=0),Preços_Fixos!C11,Preços_Fixos!C11*Preços_Fixos!$D$4/SUM(Preços_Fixos!$D$4,Preços_Fixos!$P$4)+Preços_Fixos!O11*Preços_Fixos!$P$4/SUM(Preços_Fixos!$D$4,Preços_Fixos!$P$4))),\"\")","v":""},{"$f":"+IF(J5=\"\",\"\",IF(Preços_Fixos!D11=\"\",\"\",IF(AND(SUM(Preços_Fixos!$C$9:$K$21)>0,SUM(Preços_Fixos!$O$9:$W$21)=0),Preços_Fixos!D11,Preços_Fixos!D11*Preços_Fixos!$D$4/SUM(Preços_Fixos!$D$4,Preços_Fixos!$P$4)+Preços_Fixos!P11*Preços_Fixos!$P$4/SUM(Preços_Fixos!$D$4,Preços_Fixos!$P$4))))","v":""},null,null,{"$f":"+IF(Detalhe!$C$58=1,IF(Preços_Fixos!C32=\"\",\"\",IF(AND(SUM(Preços_Fixos!$C$30:$D$33)>0,SUM(Preços_Fixos!$O$30:$P$33)=0),Preços_Fixos!C32,Preços_Fixos!C32*Preços_Fixos!$D$26/SUM(Preços_Fixos!$D$26,Preços_Fixos!$P$26)+Preços_Fixos!O32*Preços_Fixos!$P$26/SUM(Preços_Fixos!$D$26,Preços_Fixos!$P$26))),\"\")","v":""},{"$f":"+IF(N5=\"\",\"\",IF(Preços_Fixos!D32=\"\",\"\",IF(AND(SUM(Preços_Fixos!$C$30:$D$33)>0,SUM(Preços_Fixos!$O$30:$P$33)=0),Preços_Fixos!D32,Preços_Fixos!D32*Preços_Fixos!$D$26/SUM(Preços_Fixos!$D$26,Preços_Fixos!$P$26)+Preços_Fixos!P32*Preços_Fixos!$P$26/SUM(Preços_Fixos!$D$26,Preços_Fixos!$P$26))))","v":""}]
[null,4,{"$f":"+IF(Detalhe!$C$4=\"\",\"\",Detalhe!$C$4)","v":""},"",4.5999999999999996,4,null,{"$f":"+ERSE_Precos_Fixos!$D6&\"_\"&ERSE_Aux!$C$3","v":{"$error":"#N/A"}},1,{"$f":"+IF(AND(Detalhe!$C$54=1,Detalhe!$C$62=1),IF(Preços_Fixos!C12=\"\",\"\",IF(AND(SUM(Preços_Fixos!$C$9:$K$21)>0,SUM(Preços_Fixos!$O$9:$W$21)=0),Preços_Fixos!C12,Preços_Fixos!C12*Preços_Fixos!$D$4/SUM(Preços_Fixos!$D$4,Preços_Fixos!$P$4)+Preços_Fixos!O12*Preços_Fixos!$P$4/SUM(Preços_Fixos!$D$4,Preços_Fixos!$P$4))),\"\")","v":""},{"$f":"+IF(J6=\"\",\"\",IF(Preços_Fixos!D12=\"\",\"\",IF(AND(SUM(Preços_Fixos!$C$9:$K$21)>0,SUM(Preços_Fixos!$O$9:$W$21)=0),Preços_Fixos!D12,Preços_Fixos!D12*Preços_Fixos!$D$4/SUM(Preços_Fixos!$D$4,Preços_Fixos!$P$4)+Preços_Fixos!P12*Preços_Fixos!$P$4/SUM(Preços_Fixos!$D$4,Preços_Fixos!$P$4))))","v":""},null,null,{"$f":"+IF(Detalhe!$C$58=1,IF(Preços_Fixos!C33=\"\",\"\",IF(AND(SUM(Preços_Fixos!$C$30:$D$33)>0,SUM(Preços_Fixos!$O$30:$P$33)=0),Preços_Fixos!C33,Preços_Fixos!C33*Preços_Fixos!$D$26/SUM(Preços_Fixos!$D$26,Preços_Fixos!$P$26)+Preços_Fixos!O33*Preços_Fixos!$P$26/SUM(Preços_Fixos!$D$26,Preços_Fixos!$P$26))),\"\")","v":""},{"$f":"+IF(N6=\"\",\"\",IF(Preços_Fixos!D33=\"\",\"\",IF(AND(SUM(Preços_Fixos!$C$30:$D$33)>0,SUM(Preços_Fixos!$O$30:$P$33)=0),Preços_Fixos!D33,Preços_Fixos!D33*Preços_Fixos!$D$26/SUM(Preços_Fixos!$D$26,Preços_Fixos!$P$26)+Preços_Fixos!P33*Preços_Fixos!$P$26/SUM(Preços_Fixos!$D$26,Preços_Fixos!$P$26))))","v":""}]
[null,5,{"$f":"+IF(Detalhe!$C$4=\"\",\"\",Detalhe!$C$4)","v":""},"",5.75,null,null,{"$f":"+ERSE_Precos_Fixos!$D7&\"_\"&ERSE_Aux!$C$3","v":{"$error":"#N/A"}},1,{"$f":"+IF(AND(Detalhe!$C$54=1,Detalhe!$C$62=1),IF(Preços_Fixos!C13=\"\",\"\",IF(AND(SUM(Preços_Fixos!$C$9:$K$21)>0,SUM(Preços_Fixos!$O$9:$W$21)=0),Preços_Fixos!C13,Preços_Fixos!C13*Preços_Fixos!$D$4/SUM(Preços_Fixos!$D$4,Preços_Fixos!$P$4)+Preços_Fixos!O13*Preços_Fixos!$P$4/SUM(Preços_Fixos!$D$4,Preços_Fixos!$P$4))),\"\")","v":""},{"$f":"+IF(J7=\"\",\"\",IF(Preços_Fixos!D13=\"\",\"\",IF(AND(SUM(Preços_Fixos!$C$9:$K$21)>0,SUM(Preços_Fixos!$O$9:$W$21)=0),Preços_Fixos!D13,Preços_Fixos!D13*Preços_Fixos!$D$4/SUM(Preços_Fixos!$D$4,Preços_Fixos!$P$4)+Preços_Fixos!P13*Preços_Fixos!$P$4/SUM(Preços_Fixos!$D$4,Preços_Fixos!$P$4))))","v":""}]
[null,6,{"$f":"+IF(Detalhe!$C$4=\"\",\"\",Detalhe!$C$4)","v":""},"",6.9,null,null,{"$f":"+ERSE_Precos_Fixos!$D8&\"_\"&ERSE_Aux!$C$3","v":{"$error":"#N/A"}},1,{"$f":"+IF(AND(Detalhe!$C$54=1,Detalhe!$C$62=1),IF(Preços_Fixos!C14=\"\",\"\",IF(AND(SUM(Preços_Fixos!$C$9:$K$21)>0,SUM(Preços_Fixos!$O$9:$W$21)=0),Preços_Fixos!C14,Preços_Fixos!C14*Preços_Fixos!$D$4/SUM(Preços_Fixos!$D$4,Preços_Fixos!$P$4)+Preços_Fixos!O14*Preços_Fixos!$P$4/SUM(Preços_Fixos!$D$4,Preços_Fixos!$P$4))),\"\")","v":""},{"$f":"+IF(J8=\"\",\"\",IF(Preços_Fixos!D14=\"\",\"\",IF(AND(SUM(Preços_Fixos!$C$9:$K$21)>0,SUM(Preços_Fixos!$O$9:$W$21)=0),Preços_Fixos!D14,Preços_Fixos!D14*Preços_Fixos!$D$4/SUM(Preços_Fixos!$D$4,Preços_Fixos!$P$4)+Preços_Fixos!P14*Preços_Fixos!$P$4/SUM(Preços_Fixos!$D$4,Preços_Fixos!$P$4))))","v":""}]
[null,7,{"$f":"+IF(Detalhe!$C$4=\"\",\"\",Detalhe!$C$4)","v":""},"",10.35,null,null,{"$f":"+ERSE_Precos_Fixos!$D9&\"_\"&ERSE_Aux!$C$3","v":{"$error":"#N/A"}},1,{"$f":"+IF(AND(Detalhe!$C$54=1,Detalhe!$C$62=1),IF(Preços_Fixos!C15=\"\",\"\",IF(AND(SUM(Preços_Fixos!$C$9:$K$21)>0,SUM(Preços_Fixos!$O$9:$W$21)=0),Preços_Fixos!C15,Preços_Fixos!C15*Preços_Fixos!$D$4/SUM(Preços_Fixos!$D$4,Preços_Fixos!$P$4)+Preços_Fixos!O15*Preços_Fixos!$P$4/SUM(Preços_Fixos!$D$4,Preços_Fixos!$P$4))),\"\")","v":""},{"$f":"+IF(J9=\"\",\"\",IF(Preços_Fixos!D15=\"\",\"\",IF(AND(SUM(Preços_Fixos!$C$9:$K$21)>0,SUM(Preços_Fixos!$O$9:$W$21)=0),Preços_Fixos!D15,Preços_Fixos!D15*Preços_Fixos!$D$4/SUM(Preços_Fixos!$D$4,Preços_Fixos!$P$4)+Preços_Fixos!P15*Preços_Fixos!$P$4/SUM(Preços_Fixos!$D$4,Preços_Fixos!$P$4))))","v":""}]
[null,8,{"$f":"+IF(Detalhe!$C$4=\"\",\"\",Detalhe!$C$4)","v":""},"",13.8,null,null,{"$f":"+ERSE_Precos_Fixos!$D10&\"_\"&ERSE_Aux!$C$3","v":{"$error":"#N/A"}},1,{"$f":"+IF(AND(Detalhe!$C$54=1,Detalhe!$C$62=1),IF(Preços_Fixos!C16=\"\",\"\",IF(AND(SUM(Preços_Fixos!$C$9:$K$21)>0,SUM(Preços_Fixos!$O$9:$W$21)=0),Preços_Fixos!C16,Preços_Fixos!C16*Preços_Fixos!$D$4/SUM(Preços_Fixos!$D$4,Preços_Fixos!$P$4)+Preços_Fixos!O16*Preços_Fixos!$P$4/SUM(Preços_Fixos!$D$4,Preços_Fixos!$P$4))),\"\")","v":""},{"$f":"+IF(J10=\"\",\"\",IF(Preços_Fixos!D16=\"\",\"\",IF(AND(SUM(Preços_Fixos!$C$9:$K$21)>0,SUM(Preços_Fixos!$O$9:$W$21)=0),Preços_Fixos!D16,Preços_Fixos!D16*Preços_Fixos!$D$4/SUM(Preços_Fixos!$D$4,Preços_Fixos!$P$4)+Preços_Fixos!P16*Preços_Fixos!$P$4/SUM(Preços_Fixos!$D$4,Preços_Fixos!$P$4))))","v":""}]
[null,9,{"$f":"+IF(Detalhe!$C$4=\"\",\"\",Detalhe!$C$4)","v":""},"",17.25,null,null,{"$f":"+ERSE_Precos_Fixos!$D11&\"_\"&ERSE_Aux!$C$3","v":{"$error":"#N/A"}},1,{"$f":"+IF(AND(Detalhe!$C$54=1,Detalhe!$C$62=1),IF(Preços_Fixos!C17=\"\",\"\",IF(AND(SUM(Preços_Fixos!$C$9:$K$21)>0,SUM(Preços_Fixos!$O$9:$W$21)=0),Preços_Fixos!C17,Preços_Fixos!C17*Preços_Fixos!$D$4/SUM(Preços_Fixos!$D$4,Preços_Fixos!$P$4)+Preços_Fixos!O17*Preços_Fixos!$P$4/SUM(Preços_Fixos!$D$4,Preços_Fixos!$P$4))),\"\")","v":""},{"$f":"+IF(J11=\"\",\"\",IF(Preços_Fixos!D17=\"\",\"\",IF(AND(SUM(Preços_Fixos!$C$9:$K$21)>0,SUM(Preços_Fixos!$O$9:$W$21)=0),Preços_Fixos!D17,Preços_Fixos!D17*Preços_Fixos!$D$4/SUM(Preços_Fixos!$D$4,Preços_Fixos!$P$4)+Preços_Fixos!P17*Preços_Fixos!$P$4/SUM(Preços_Fixos!$D$4,Preços_Fixos!$P$4))))","v":""}]
[null,10,{"$f":"+IF(Detalhe!$C$4=\"\",\"\",Detalhe!$C$4)","v":""},"",20.7,null,null,{"$f":"+ERSE_Precos_Fixos!$D12&\"_\"&ERSE_Aux!$C$3","v":{"$error":"#N/A"}},1,{"$f":"+IF(AND(Detalhe!$C$54=1,Detalhe!$C$62=1),IF(Preços_Fixos!C18=\"\",\"\",IF(AND(SUM(Preços_Fixos!$C$9:$K$21)>0,SUM(Preços_Fixos!$O$9:$W$21)=0),Preços_Fixos!C18,Preços_Fixos!C18*Preços_Fixos!$D$4/SUM(Preços_Fixos!$D$4,Preços_Fixos!$P$4)+Preços_Fixos!O18*Preços_Fixos!$P$4/SUM(Preços_Fixos!$D$4,Preços_Fixos!$P$4))),\"\")","v":""},{"$f":"+IF(J12=\"\",\"\",IF(Preços_Fixos!D18=\"\",\"\",IF(AND(SUM(Preços_Fixos!$C$9:$K$21)>0,SUM(Preços_Fixos!$O$9:$W$21)=0),Preços_Fixos!D18,Preços_Fixos!D18*Preços_Fixos!$D$4/SUM(Preços_Fixos!$D$4,Preços_Fixos!$P$4)+Preços_Fixos!P18*Preços_Fixos!$P$4/SUM(Preços_Fixos!$D$4,Preços_Fixos!$P$4))))","v":""}]
[null,11,{"$f":"+IF(Detalhe!$C$4=\"\",\"\",Detalhe!$C$4)","v":""},"",27.6,null,null,{"$f":"+ERSE_Precos_Fixos!$D13&\"_\"&ERSE_Aux!$C$3","v":{"$error":"#N/A"}},1]
[null,12,{"$f":"+IF(Detalhe!$C$4=\"\",\"\",Detalhe!$C$4)","v":""},"",34.5,null,null,{"$f":"+ERSE_Precos_Fixos!$D14&\"_\"&ERSE_Aux!$C$3","v":{"$error":"#N/A"}},1]
[null,13,{"$f":"+IF(Detalhe!$C$4=\"\",\"\",Detalhe!$C$4)","v":""},"",41.4,null,null,{"$f":"+ERSE_Precos_Fixos!$D15&\"_\"&ERSE_Aux!$C$3","v":{"$error":"#N/A"}},1]
[null,14,{"$f":"+IF(Detalhe!$C$4=\"\",\"\",Detalhe!$C$4)","v":""},"",1.1499999999999999,null,null,{"$f":"+ERSE_Precos_Fixos!$D16&\"_\"&ERSE_Aux!$C$3","v":{"$error":"#N/A"}},2,{"$f":"+IF(AND(Detalhe!$C$54=1,Detalhe!$C$62=1),IF(Preços_Fixos!E9=\"\",\"\",IF(AND(SUM(Preços_Fixos!$C$9:$K$21)>0,SUM(Preços_Fixos!$O$9:$W$21)=0),Preços_Fixos!E9,Preços_Fixos!E9*Preços_Fixos!$D$4/SUM(Preços_Fixos!$D$4,Preços_Fixos!$P$4)+Preços_Fixos!Q9*Preços_Fixos!$P$4/SUM(Preços_Fixos!$D$4,Preços_Fixos!$P$4))),\"\")","v":""},{"$f":"+IF(J16=\"\",\"\",IF(Preços_Fixos!F9=\"\",\"\",IF(AND(SUM(Preços_Fixos!$C$9:$K$21)>0,SUM(Preços_Fixos!$O$9:$W$21)=0),Preços_Fixos!F9,Preços_Fixos!F9*Preços_Fixos!$D$4/SUM(Preços_Fixos!$D$4,Preços_Fixos!$P$4)+Preços_Fixos!R9*Preços_Fixos!$P$4/SUM(Preços_Fixos!$D$4,Preços_Fixos!$P$4))))","v":""},{"$f":"+IF(J16=\"\",\"\",IF(Preços_Fixos!G9=\"\",\"\",IF(AND(SUM(Preços_Fixos!$C$9:$K$21)>0,SUM(Preços_Fixos!$O$9:$W$21)=0),Preços_Fixos!G9,Preços_Fixos!G9*Preços_Fixos!$D$4/SUM(Preços_Fixos!$D$4,Preços_Fixos!$P$4)+Preços_Fixos!S9*Preços_Fixos!$P$4/SUM(Preços_Fixos!$D$4,Preços_Fixos!$P$4))))","v":""}]
[null,15,{"$f":"+IF(Detalhe!$C$4=\"\",\"\",Detalhe!$C$4)","v":""},"",2.2999999999999998,null,null,{"$f":"+ERSE_Precos_Fixos!$D17&\"_\"&ERSE_Aux!$C$3","v":{"$error":"#N/A"}},{"$f":"+I16","v":2},{"$f":"+IF(AND(Detalhe!$C$54=1,Detalhe!$C$62=1),IF(Preços_Fixos!E10=\"\",\"\",IF(AND(SUM(Preços_Fixos!$C$9:$K$21)>0,SUM(Preços_Fixos!$O$9:$W$21)=0),Preços_Fixos!E10,Preços_Fixos!E10*Preços_Fixos!$D$4/SUM(Preços_Fixos!$D$4,Preços_Fixos!$P$4)+Preços_Fixos!Q10*Preços_Fixos!$P$4/SUM(Preços_Fixos!$D$4,Preços_Fixos!$P$4))),\"\")","v":""},{"$f":"+IF(J17=\"\",\"\",IF(Preços_Fixos!F10=\"\",\"\",IF(AND(SUM(Preços_Fixos!$C$9:$K$21)>0,SUM(Preços_Fixos!$O$9:$W$21)=0),Preços_Fixos!F10,Preços_Fixos!F10*Preços_Fixos!$D$4/SUM(Preços_Fixos!$D$4,Preços_Fixos!$P$4)+Preços_Fixos!R10*Preços_Fixos!$P$4/SUM(Preços_Fixos!$D$4,Preços_Fixos!$P$4))))","v":""},{"$f":"+IF(J17=\"\",\"\",IF(Preços_Fixos!G10=\"\",\"\",IF(AND(SUM(Preços_Fixos!$C$9:$K$21)>0,SUM(Preços_Fixos!$O$9:$W$21)=0),Preços_Fixos!G10,Preços_Fixos!G10*Preços_Fixos!$D$4/SUM(Preços_Fixos!$D$4,Preços_Fixos!$P$4)+Preços_Fixos!S10*Preços_Fixos!$P$4/SUM(Preços_Fixos!$D$4,Preços_Fixos!$P$4))))","v":""}]
[null,16,{"$f":"+IF(Detalhe!$C$4=\"\",\"\",Detalhe!$C$4)","v":""},"",3.45,null,null,{"$f":"+ERSE_Precos_Fixos!$D18&\"_\"&ERSE_Aux!$C$3","v":{"$error":"#N/A"}},{"$f":"+I17","v":2},{"$f":"+IF(AND(Detalhe!$C$54=1,Detalhe!$C$62=1),IF(Preços_Fixos!E11=\"\",\"\",IF(AND(SUM(Preços_Fixos!$C$9:$K$21)>0,SUM(Preços_Fixos!$O$9:$W$21)=0),Preços_Fixos!E11,Preços_Fixos!E11*Preços_Fixos!$D$4/SUM(Preços_Fixos!$D$4,Preços_Fixos!$P$4)+Preços_Fixos!Q11*Preços_Fixos!$P$4/SUM(Preços_Fixos!$D$4,Preços_Fixos!$P$4))),\"\")","v":""},{"$f":"+IF(J18=\"\",\"\",IF(Preços_Fixos!F11=\"\",\"\",IF(AND(SUM(Preços_Fixos!$C$9:$K$21)>0,SUM(Preços_Fixos!$O$9:$W$21)=0),Preços_Fixos!F11,Preços_Fixos!F11*Preços_Fixos!$D$4/SUM(Preços_Fixos!$D$4,Preços_Fixos!$P$4)+Preços_Fixos!R11*Preços_Fixos!$P$4/SUM(Preços_Fixos!$D$4,Preços_Fixos!$P$4))))","v":""},{"$f":"+IF(J18=\"\",\"\",IF(Preços_Fixos!G11=\"\",\"\",IF(AND(SUM(Preços_Fixos!$C$9:$K$21)>0,SUM(Preços_Fixos!$O$9:$W$21)=0),Preços_Fixos!G11,Preços_Fixos!G11*Preços_Fixos!$D$4/SUM(Preços_Fixos!$D$4,Preços_Fixos!$P$4)+Preços_Fixos!S11*Preços_Fixos!$P$4/SUM(Preços_Fixos!$D$4,Preços_Fixos!$P$4))))","v":""}]
[null,17,{"$f":"+IF(Detalhe!$C$4=\"\",\"\",Detalhe!$C$4)","v":""},"",4.5999999999999996,null,null,{"$f":"+ERSE_Precos_Fixos!$D19&\"_\"&ERSE_Aux!$C$3","v":{"$error":"#N/A"}},2,{"$f":"+IF(AND(Detalhe!$C$54=1,Detalhe!$C$62=1),IF(Preços_Fixos!E12=\"\",\"\",IF(AND(SUM(Preços_Fixos!$C$9:$K$21)>0,SUM(Preços_Fixos!$O$9:$W$21)=0),Preços_Fixos!E12,Preços_Fixos!E12*Preços_Fixos!$D$4/SUM(Preços_Fixos!$D$4,Preços_Fixos!$P$4)+Preços_Fixos!Q12*Preços_Fixos!$P$4/SUM(Preços_Fixos!$D$4,Preços_Fixos!$P$4))),\"\")","v":""},{"$f":"+IF(J19=\"\",\"\",IF(Preços_Fixos!F12=\"\",\"\",IF(AND(SUM(Preços_Fixos!$C$9:$K$21)>0,SUM(Preços_Fixos!$O$9:$W$21)=0),Preços_Fixos!F12,Preços_Fixos!F12*Preços_Fixos!$D$4/SUM(Preços_Fixos!$D$4,Preços_Fixos!$P$4)+Preços_Fixos!R12*Preços_Fixos!$P$4/SUM(Preços_Fixos!$D$4,Preços_Fixos!$P$4))))","v":""},{"$f":"+IF(J19=\"\",\"\",IF(Preços_Fixos!G12=\"\",\"\",IF(AND(SUM(Preços_Fixos!$C$9:$K$21)>0,SUM(Preços_Fixos!$O$9:$W$21)=0),Preços_Fixos!G12,Preços_Fixos!G12*Preços_Fixos!$D$4/SUM(Preços_Fixos!$D$4,Preços_Fixos!$P$4)+Preços_Fixos!S12*Preços_Fixos!$P$4/SUM(Preços_Fixos!$D$4,Preços_Fixos!$P$4))))","v":""}]
[null,18,{"$f":"+IF(Detalhe!$C$4=\"\",\"\",Detalhe!$C$4)","v":""},"",5.75,null,null,{"$f":"+ERSE_Precos_Fixos!$D20&\"_\"&ERSE_Aux!$C$3","v":{"$error":"#N/A"}},2,{"$f":"+IF(AND(Detalhe!$C$54=1,Detalhe!$C$62=1),IF(Preços_Fixos!E13=\"\",\"\",IF(AND(SUM(Preços_Fixos!$C$9:$K$21)>0,SUM(Preços_Fixos!$O$9:$W$21)=0),Preços_Fixos!E13,Preços_Fixos!E13*Preços_Fixos!$D$4/SUM(Preços_Fixos!$D$4,Preços_Fixos!$P$4)+Preços_Fixos!Q13*Preços_Fixos!$P$4/SUM(Preços_Fixos!$D$4,Preços_Fixos!$P$4))),\"\")","v":""},{"$f":"+IF(J20=\"\",\"\",IF(Preços_Fixos!F13=\"\",\"\",IF(AND(SUM(Preços_Fixos!$C$9:$K$21)>0,SUM(Preços_Fixos!$O$9:$W$21)=0),Preços_Fixos!F13,Preços_Fixos!F13*Preços_Fixos!$D$4/SUM(Preços_Fixos!$D$4,Preços_Fixos!$P$4)+Preços_Fixos!R13*Preços_Fixos!$P$4/SUM(Preços_Fixos!$D$4,Preços_Fixos!$P$4))))","v":""},{"$f":"+IF(J20=\"\",\"\",IF(Preços_Fixos!G13=\"\",\"\",IF(AND(SUM(Preços_Fixos!$C$9:$K$21)>0,SUM(Preços_Fixos!$O$9:$W$21)=0),Preços_Fixos!G13,Preços_Fixos!G13*Preços_Fixos!$D$4/SUM(Preços_Fixos!$D$4,Preços_Fixos!$P$4)+Preços_Fixos!S13*Preços_Fixos!$P$4/SUM(Preços_Fixos!$D$4,Preços_Fixos!$P$4))))","v":""}]
[null,19,{"$f":"+IF(Detalhe!$C$4=\"\",\"\",Detalhe!$C$4)","v":""},"",6.9,null,null,{"$f":"+ERSE_Precos_Fixos!$D21&\"_\"&ERSE_Aux!$C$3","v":{"$error":"#N/A"}},2,{"$f":"+IF(AND(Detalhe!$C$54=1,Detalhe!$C$62=1),IF(Preços_Fixos!E14=\"\",\"\",IF(AND(SUM(Preços_Fixos!$C$9:$K$21)>0,SUM(Preços_Fixos!$O$9:$W$21)=0),Preços_Fixos!E14,Preços_Fixos!E14*Preços_Fixos!$D$4/SUM(Preços_Fixos!$D$4,Preços_Fixos!$P$4)+Preços_Fixos!Q14*Preços_Fixos!$P$4/SUM(Preços_Fixos!$D$4,Preços_Fixos!$P$4))),\"\")","v":""},{"$f":"+IF(J21=\"\",\"\",IF(Preços_Fixos!F14=\"\",\"\",IF(AND(SUM(Preços_Fixos!$C$9:$K$21)>0,SUM(Preços_Fixos!$O$9:$W$21)=0),Preços_Fixos!F14,Preços_Fixos!F14*Preços_Fixos!$D$4/SUM(Preços_Fixos!$D$4,Preços_Fixos!$P$4)+Preços_Fixos!R14*Preços_Fixos!$P$4/SUM(Preços_Fixos!$D$4,Preços_Fixos!$P$4))))","v":""},{"$f":"+IF(J21=\"\",\"\",IF(Preços_Fixos!G14=\"\",\"\",IF(AND(SUM(Preços_Fixos!$C$9:$K$21)>0,SUM(Preços_Fixos!$O$9:$W$21)=0),Preços_Fixos!G14,Preços_Fixos!G14*Preços_Fixos!$D$4/SUM(Preços_Fixos!$D$4,Preços_Fixos!$P$4)+Preços_Fixos!S14*Preços_Fixos!$P$4/SUM(Preços_Fixos!$D$4,Preços_Fixos!$P$4))))","v":""}]
[null,20,{"$f":"+IF(Detalhe!$C$4=\"\",\"\",Detalhe!$C$4)","v":""},"",10.35,null,null,{"$f":"+ERSE_Precos_Fixos!$D22&\"_\"&ERSE_Aux!$C$3","v":{"$error":"#N/A"}},2,{"$f":"+IF(AND(Detalhe!$C$54=1,Detalhe!$C$62=1),IF(Preços_Fixos!E15=\"\",\"\",IF(AND(SUM(Preços_Fixos!$C$9:$K$21)>0,SUM(Preços_Fixos!$O$9:$W$21)=0),Preços_Fixos!E15,Preços_Fixos!E15*Preços_Fixos!$D$4/SUM(Preços_Fixos!$D$4,Preços_Fixos!$P$4)+Preços_Fixos!Q15*Preços_Fixos!$P$4/SUM(Preços_Fixos!$D$4,Preços_Fixos!$P$4))),\"\")","v":""},{"$f":"+IF(J22=\"\",\"\",IF(Preços_Fixos!F15=\"\",\"\",IF(AND(SUM(Preços_Fixos!$C$9:$K$21)>0,SUM(Preços_Fixos!$O$9:$W$21)=0),Preços_Fixos!F15,Preços_Fixos!F15*Preços_Fixos!$D$4/SUM(Preços_Fixos!$D$4,Preços_Fixos!$P$4)+Preços_Fixos!R15*Preços_Fixos!$P$4/SUM(Preços_Fixos!$D$4,Preços_Fixos!$P$4))))","v":""},{"$f":"+IF(J22=\"\",\"\",IF(Preços_Fixos!G15=\"\",\"\",IF(AND(SUM(Preços_Fixos!$C$9:$K$21)>0,SUM(Preços_Fixos!$O$9:$W$21)=0),Preços_Fixos!G15,Preços_Fixos!G15*Preços_Fixos!$D$4/SUM(Preços_Fixos!$D$4,Preços_Fixos!$P$4)+Preços_Fixos!S15*Preços_Fixos!$P$4/SUM(Preços_Fixos!$D$4,Preços_Fixos!$P$4))))","v":""}]
[null,21,{"$f":"+IF(Detalhe!$C$4=\"\",\"\",Detalhe!$C$4)","v":""},"",13.8,null,null,{"$f":"+ERSE_Precos_Fixos!$D23&\"_\"&ERSE_Aux!$C$3","v":{"$error":"#N/A"}},2,{"$f":"+IF(AND(Detalhe!$C$54=1,Detalhe!$C$62=1),IF(Preços_Fixos!E16=\"\",\"\",IF(AND(SUM(Preços_Fixos!$C$9:$K$21)>0,SUM(Preços_Fixos!$O$9:$W$21)=0),Preços_Fixos!E16,Preços_Fixos!E16*Preços_Fixos!$D$4/SUM(Preços_Fixos!$D$4,Preços_Fixos!$P$4)+Preços_Fixos!Q16*Preços_Fixos!$P$4/SUM(Preços_Fixos!$D$4,Preços_Fixos!$P$4))),\"\")","v":""},{"$f":"+IF(J23=\"\",\"\",IF(Preços_Fixos!F16=\"\",\"\",IF(AND(SUM(Preços_Fixos!$C$9:$K$21)>0,SUM(Preços_Fixos!$O$9:$W$21)=0),Preços_Fixos!F16,Preços_Fixos!F16*Preços_Fixos!$D$4/SUM(Preços_Fixos!$D$4,Preços_Fixos!$P$4)+Preços_Fixos!R16*Preços_Fixos!$P$4/SUM(Preços_Fixos!$D$4,Preços_Fixos!$P$4))))","v":""},{"$f":"+IF(J23=\"\",\"\",IF(Preços_Fixos!G16=\"\",\"\",IF(AND(SUM(Preços_Fixos!$C$9:$K$21)>0,SUM(Preços_Fixos!$O$9:$W$21)=0),Preços_Fixos!G16,Preços_Fixos!G16*Preços_Fixos!$D$4/SUM(Preços_Fixos!$D$4,Preços_Fixos!$P$4)+Preços_Fixos!S16*Preços_Fixos!$P$4/SUM(Preços_Fixos!$D$4,Preços_Fixos!$P$4))))","v":""}]
[null,22,{"$f":"+IF(Detalhe!$C$4=\"\",\"\",Detalhe!$C$4)","v":""},"",17.25,null,null,{"$f":"+ERSE_Precos_Fixos!$D24&\"_\"&ERSE_Aux!$C$3","v":{"$error":"#N/A"}},2,{"$f":"+IF(AND(Detalhe!$C$54=1,Detalhe!$C$62=1),IF(Preços_Fixos!E17=\"\",\"\",IF(AND(SUM(Preços_Fixos!$C$9:$K$21)>0,SUM(Preços_Fixos!$O$9:$W$21)=0),Preços_Fixos!E17,Preços_Fixos!E17*Preços_Fixos!$D$4/SUM(Preços_Fixos!$D$4,Preços_Fixos!$P$4)+Preços_Fixos!Q17*Preços_Fixos!$P$4/SUM(Preços_Fixos!$D$4,Preços_Fixos!$P$4))),\"\")","v":""},{"$f":"+IF(J24=\"\",\"\",IF(Preços_Fixos!F17=\"\",\"\",IF(AND(SUM(Preços_Fixos!$C$9:$K$21)>0,SUM(Preços_Fixos!$O$9:$W$21)=0),Preços_Fixos!F17,Preços_Fixos!F17*Preços_Fixos!$D$4/SUM(Preços_Fixos!$D$4,Preços_Fixos!$P$4)+Preços_Fixos!R17*Preços_Fixos!$P$4/SUM(Preços_Fixos!$D$4,Preços_Fixos!$P$4))))","v":""},{"$f":"+IF(J24=\"\",\"\",IF(Preços_Fixos!G17=\"\",\"\",IF(AND(SUM(Preços_Fixos!$C$9:$K$21)>0,SUM(Preços_Fixos!$O$9:$W$21)=0),Preços_Fixos!G17,Preços_Fixos!G17*Preços_Fixos!$D$4/SUM(Preços_Fixos!$D$4,Preços_Fixos!$P$4)+Preços_Fixos!S17*Preços_Fixos!$P$4/SUM(Preços_Fixos!$D$4,Preços_Fixos!$P$4))))","v":""}]
[null,23,{"$f":"+IF(Detalhe!$C$4=\"\",\"\",Detalhe!$C$4)","v":""},"",20.7,null,null,{"$f":"+ERSE_Precos_Fixos!$D25&\"_\"&ERSE_Aux!$C$3","v":{"$error":"#N/A"}},2,{"$f":"+IF(AND(Detalhe!$C$54=1,Detalhe!$C$62=1),IF(Preços_Fixos!E18=\"\",\"\",IF(AND(SUM(Preços_Fixos!$C$9:$K$21)>0,SUM(Preços_Fixos!$O$9:$W$21)=0),Preços_Fixos!E18,Preços_Fixos!E18*Preços_Fixos!$D$4/SUM(Preços_Fixos!$D$4,Preços_Fixos!$P$4)+Preços_Fixos!Q18*Preços_Fixos!$P$4/SUM(Preços_Fixos!$D$4,Preços_Fixos!$P$4))),\"\")","v":""},{"$f":"+IF(J25=\"\",\"\",IF(Preços_Fixos!F18=\"\",\"\",IF(AND(SUM(Preços_Fixos!$C$9:$K$21)>0,SUM(Preços_Fixos!$O$9:$W$21)=0),Preços_Fixos!F18,Preços_Fixos!F18*Preços_Fixos!$D$4/SUM(Preços_Fixos!$D$4,Preços_Fixos!$P$4)+Preços_Fixos!R18*Preços_Fixos!$P$4/SUM(Preços_Fixos!$D$4,Preços_Fixos!$P$4))))","v":""},{"$f":"+IF(J25=\"\",\"\",IF(Preços_Fixos!G18=\"\",\"\",IF(AND(SUM(Preços_Fixos!$C$9:$K$21)>0,SUM(Preços_Fixos!$O$9:$W$21)=0),Preços_Fixos!G18,Preços_Fixos!G18*Preços_Fixos!$D$4/SUM(Preços_Fixos!$D$4,Preços_Fixos!$P$4)+Preços_Fixos!S18*Preços_Fixos!$P$4/SUM(Preços_Fixos!$D$4,Preços_Fixos!$P$4))))","v":""}]
[null,24,{"$f":"+IF(Detalhe!$C$4=\"\",\"\",Detalhe!$C$4)","v":""},"",27.6,null,null,{"$f":"+ERSE_Precos_Fixos!$D26&\"_\"&ERSE_Aux!$C$3","v":{"$error":"#N/A"}},2]
[null,25,{"$f":"+IF(Detalhe!$C$4=\"\",\"\",Detalhe!$C$4)","v":""},"",34.5,null,null,{"$f":"+ERSE_Precos_Fixos!$D27&\"_\"&ERSE_Aux!$C$3","v":{"$error":"#N/A"}},2]
[null,26,{"$f":"+IF(Detalhe!$C$4=\"\",\"\",Detalhe!$C$4)","v":""},"",41.4,null,null,{"$f":"+ERSE_Precos_Fixos!$D28&\"_\"&ERSE_Aux!$C$3","v":{"$error":"#N/A"}},2]
[null,27,{"$f":"+IF(Detalhe!$C$4=\"\",\"\",Detalhe!$C$4)","v":""},"",1.1499999999999999,null,null,{"$f":"+ERSE_Precos_Fixos!$D29&\"_\"&ERSE_Aux!$C$3","v":{"$error":"#N/A"}},3,{"$f":"+IF(AND(Detalhe!$C$54=1,Detalhe!$C$62=1),IF(Preços_Fixos!H9=\"\",\"\",IF(AND(SUM(Preços_Fixos!$C$9:$K$21)>0,SUM(Preços_Fixos!$O$9:$W$21)=0),Preços_Fixos!H9,Preços_Fixos!H9*Preços_Fixos!$D$4/SUM(Preços_Fixos!$D$4,Preços_Fixos!$P$4)+Preços_Fixos!T9*Preços_Fixos!$P$4/SUM(Preços_Fixos!$D$4,Preços_Fixos!$P$4))),\"\")","v":""},{"$f":"+IF(J29=\"\",\"\",IF(Preços_Fixos!I9=\"\",\"\",IF(AND(SUM(Preços_Fixos!$C$9:$K$21)>0,SUM(Preços_Fixos!$O$9:$W$21)=0),Preços_Fixos!I9,Preços_Fixos!I9*Preços_Fixos!$D$4/SUM(Preços_Fixos!$D$4,Preços_Fixos!$P$4)+Preços_Fixos!U9*Preços_Fixos!$P$4/SUM(Preços_Fixos!$D$4,Preços_Fixos!$P$4))))","v":""},{"$f":"+IF(J29=\"\",\"\",IF(Preços_Fixos!J9=\"\",\"\",IF(AND(SUM(Preços_Fixos!$C$9:$K$21)>0,SUM(Preços_Fixos!$O$9:$W$21)=0),Preços_Fixos!J9,Preços_Fixos!J9*Preços_Fixos!$D$4/SUM(Preços_Fixos!$D$4,Preços_Fixos!$P$4)+Preços_Fixos!V9*Preços_Fixos!$P$4/SUM(Preços_Fixos!$D$4,Preços_Fixos!$P$4))))","v":""},{"$f":"+IF(J29=\"\",\"\",IF(Preços_Fixos!K9=\"\",\"\",IF(AND(SUM(Preços_Fixos!$C$9:$K$21)>0,SUM(Preços_Fixos!$O$9:$W$21)=0),Preços_Fixos!K9,Preços_Fixos!K9*Preços_Fixos!$D$4/SUM(Preços_Fixos!$D$4,Preços_Fixos!$P$4)+Preços_Fixos!W9*Preços_Fixos!$P$4/SUM(Preços_Fixos!$D$4,Preços_Fixos!$P$4))))","v":""}]
[null,28,{"$f":"+IF(Detalhe!$C$4=\"\",\"\",Detalhe!$C$4)","v":""},"",2.2999999999999998,null,null,{"$f":"+ERSE_Precos_Fixos!$D30&\"_\"&ERSE_Aux!$C$3","v":{"$error":"#N/A"}},{"$f":"+I29","v":3},{"$f":"+IF(AND(Detalhe!$C$54=1,Detalhe!$C$62=1),IF(Preços_Fixos!H10=\"\",\"\",IF(AND(SUM(Preços_Fixos!$C$9:$K$21)>0,SUM(Preços_Fixos!$O$9:$W$21)=0),Preços_Fixos!H10,Preços_Fixos!H10*Preços_Fixos!$D$4/SUM(Preços_Fixos!$D$4,Preços_Fixos!$P$4)+Preços_Fixos!T10*Preços_Fixos!$P$4/SUM(Preços_Fixos!$D$4,Preços_Fixos!$P$4))),\"\")","v":""},{"$f":"+IF(J30=\"\",\"\",IF(Preços_Fixos!I10=\"\",\"\",IF(AND(SUM(Preços_Fixos!$C$9:$K$21)>0,SUM(Preços_Fixos!$O$9:$W$21)=0),Preços_Fixos!I10,Preços_Fixos!I10*Preços_Fixos!$D$4/SUM(Preços_Fixos!$D$4,Preços_Fixos!$P$4)+Preços_Fixos!U10*Preços_Fixos!$P$4/SUM(Preços_Fixos!$D$4,Preços_Fixos!$P$4))))","v":""},{"$f":"+IF(J30=\"\",\"\",IF(Preços_Fixos!J10=\"\",\"\",IF(AND(SUM(Preços_Fixos!$C$9:$K$21)>0,SUM(Preços_Fixos!$O$9:$W$21)=0),Preços_Fixos!J10,Preços_Fixos!J10*Preços_Fixos!$D$4/SUM(Preços_Fixos!$D$4,Preços_Fixos!$P$4)+Preços_Fixos!V10*Preços_Fixos!$P$4/SUM(Preços_Fixos!$D$4,Preços_Fixos!$P$4))))","v":""},{"$f":"+IF(J30=\"\",\"\",IF(Preços_Fixos!K10=\"\",\"\",IF(AND(SUM(Preços_Fixos!$C$9:$K$21)>0,SUM(Preços_Fixos!$O$9:$W$21)=0),Preços_Fixos!K10,Preços_Fixos!K10*Preços_Fixos!$D$4/SUM(Preços_Fixos!$D$4,Preços_Fixos!$P$4)+Preços_Fixos!W10*Preços_Fixos!$P$4/SUM(Preços_Fixos!$D$4,Preços_Fixos!$P$4))))","v":""}]
[null,29,{"$f":"+IF(Detalhe!$C$4=\"\",\"\",Detalhe!$C$4)","v":""},"",3.45,null,null,{"$f":"+ERSE_Precos_Fixos!$D31&\"_\"&ERSE_Aux!$C$3","v":{"$error":"#N/A"}},{"$f":"+I30","v":3},{"$f":"+IF(AND(Detalhe!$C$54=1,Detalhe!$C$62=1),IF(Preços_Fixos!H11=\"\",\"\",IF(AND(SUM(Preços_Fixos!$C$9:$K$21)>0,SUM(Preços_Fixos!$O$9:$W$21)=0),Preços_Fixos!H11,Preços_Fixos!H11*Preços_Fixos!$D$4/SUM(Preços_Fixos!$D$4,Preços_Fixos!$P$4)+Preços_Fixos!T11*Preços_Fixos!$P$4/SUM(Preços_Fixos!$D$4,Preços_Fixos!$P$4))),\"\")","v":""},{"$f":"+IF(J31=\"\",\"\",IF(Preços_Fixos!I11=\"\",\"\",IF(AND(SUM(Preços_Fixos!$C$9:$K$21)>0,SUM(Preços_Fixos!$O$9:$W$21)=0),Preços_Fixos!I11,Preços_Fixos!I11*Preços_Fixos!$D$4/SUM(Preços_Fixos!$D$4,Preços_Fixos!$P$4)+Preços_Fixos!U11*Preços_Fixos!$P$4/SUM(Preços_Fixos!$D$4,Preços_Fixos!$P$4))))","v":""},{"$f":"+IF(J31=\"\",\"\",IF(Preços_Fixos!J11=\"\",\"\",IF(AND(SUM(Preços_Fixos!$C$9:$K$21)>0,SUM(Preços_Fixos!$O$9:$W$21)=0),Preços_Fixos!J11,Preços_Fixos!J11*Preços_Fixos!$D$4/SUM(Preços_Fixos!$D$4,Preços_Fixos!$P$4)+Preços_Fixos!V11*Preços_Fixos!$P$4/SUM(Preços_Fixos!$D$4,Preços_Fixos!$P$4))))","v":""},{"$f":"+IF(J31=\"\",\"\",IF(Preços_Fixos!K11=\"\",\"\",IF(AND(SUM(Preços_Fixos!$C$9:$K$21)>0,SUM(Preços_Fixos!$O$9:$W$21)=0),Preços_Fixos!K11,Preços_Fixos!K11*Preços_Fixos!$D$4/SUM(Preços_Fixos!$D$4,Preços_Fixos!$P$4)+Preços_Fixos!W11*Preços_Fixos!$P$4/SUM(Preços_Fixos!$D$4,Preços_Fixos!$P$4))))","v":""}]
[null,30,{"$f":"+IF(Detalhe!$C$4=\"\",\"\",Detalhe!$C$4)","v":""},"",4.5999999999999996,null,null,{"$f":"+ERSE_Precos_Fixos!$D32&\"_\"&ERSE_Aux!$C$3","v":{"$error":"#N/A"}},3,{"$f":"+IF(AND(Detalhe!$C$54=1,Detalhe!$C$62=1),IF(Preços_Fixos!H12=\"\",\"\",IF(AND(SUM(Preços_Fixos!$C$9:$K$21)>0,SUM(Preços_Fixos!$O$9:$W$21)=0),Preços_Fixos!H12,Preços_Fixos!H12*Preços_Fixos!$D$4/SUM(Preços_Fixos!$D$4,Preços_Fixos!$P$4)+Preços_Fixos!T12*Preços_Fixos!$P$4/SUM(Preços_Fixos!$D$4,Preços_Fixos!$P$4))),\"\")","v":""},{"$f":"+IF(J32=\"\",\"\",IF(Preços_Fixos!I12=\"\",\"\",IF(AND(SUM(Preços_Fixos!$C$9:$K$21)>0,SUM(Preços_Fixos!$O$9:$W$21)=0),Preços_Fixos!I12,Preços_Fixos!I12*Preços_Fixos!$D$4/SUM(Preços_Fixos!$D$4,Preços_Fixos!$P$4)+Preços_Fixos!U12*Preços_Fixos!$P$4/SUM(Preços_Fixos!$D$4,Preços_Fixos!$P$4))))","v":""},{"$f":"+IF(J32=\"\",\"\",IF(Preços_Fixos!J12=\"\",\"\",IF(AND(SUM(Preços_Fixos!$C$9:$K$21)>0,SUM(Preços_Fixos!$O$9:$W$21)=0),Preços_Fixos!J12,Preços_Fixos!J12*Preços_Fixos!$D$4/SUM(Preços_Fixos!$D$4,Preços_Fixos!$P$4)+Preços_Fixos!V12*Preços_Fixos!$P$4/SUM(Preços_Fixos!$D$4,Preços_Fixos!$P$4))))","v":""},{"$f":"+IF(J32=\"\",\"\",IF(Preços_Fixos!K12=\"\",\"\",IF(AND(SUM(Preços_Fixos!$C$9:$K$21)>0,SUM(Preços_Fixos!$O$9:$W$21)=0),Preços_Fixos!K12,Preços_Fixos!K12*Preços_Fixos!$D$4/SUM(Preços_Fixos!$D$4,Preços_Fixos!$P$4)+Preços_Fixos!W12*Preços_Fixos!$P$4/SUM(Preços_Fixos!$D$4,Preços_Fixos!$P$4))))","v":""}]
[null,31,{"$f":"+IF(Detalhe!$C$4=\"\",\"\",Detalhe!$C$4)","v":""},"",5.75,null,null,{"$f":"+ERSE_Precos_Fixos!$D33&\"_\"&ERSE_Aux!$C$3","v":{"$error":"#N/A"}},3,{"$f":"+IF(AND(Detalhe!$C$54=1,Detalhe!$C$62=1),IF(Preços_Fixos!H13=\"\",\"\",IF(AND(SUM(Preços_Fixos!$C$9:$K$21)>0,SUM(Preços_Fixos!$O$9:$W$21)=0),Preços_Fixos!H13,Preços_Fixos!H13*Preços_Fixos!$D$4/SUM(Preços_Fixos!$D$4,Preços_Fixos!$P$4)+Preços_Fixos!T13*Preços_Fixos!$P$4/SUM(Preços_Fixos!$D$4,Preços_Fixos!$P$4))),\"\")","v":""},{"$f":"+IF(J33=\"\",\"\",IF(Preços_Fixos!I13=\"\",\"\",IF(AND(SUM(Preços_Fixos!$C$9:$K$21)>0,SUM(Preços_Fixos!$O$9:$W$21)=0),Preços_Fixos!I13,Preços_Fixos!I13*Preços_Fixos!$D$4/SUM(Preços_Fixos!$D$4,Preços_Fixos!$P$4)+Preços_Fixos!U13*Preços_Fixos!$P$4/SUM(Preços_Fixos!$D$4,Preços_Fixos!$P$4))))","v":""},{"$f":"+IF(J33=\"\",\"\",IF(Preços_Fixos!J13=\"\",\"\",IF(AND(SUM(Preços_Fixos!$C$9:$K$21)>0,SUM(Preços_Fixos!$O$9:$W$21)=0),Preços_Fixos!J13,Preços_Fixos!J13*Preços_Fixos!$D$4/SUM(Preços_Fixos!$D$4,Preços_Fixos!$P$4)+Preços_Fixos!V13*Preços_Fixos!$P$4/SUM(Preços_Fixos!$D$4,Preços_Fixos!$P$4))))","v":""},{"$f":"+IF(J33=\"\",\"\",IF(Preços_Fixos!K13=\"\",\"\",IF(AND(SUM(Preços_Fixos!$C$9:$K$21)>0,SUM(Preços_Fixos!$O$9:$W$21)=0),Preços_Fixos!K13,Preços_Fixos!K13*Preços_Fixos!$D$4/SUM(Preços_Fixos!$D$4,Preços_Fixos!$P$4)+Preços_Fixos!W13*Preços_Fixos!$P$4/SUM(Preços_Fixos!$D$4,Preços_Fixos!$P$4))))","v":""}]
[null,32,{"$f":"+IF(Detalhe!$C$4=\"\",\"\",Detalhe!$C$4)","v":""},"",6.9,null,null,{"$f":"+ERSE_Precos_Fixos!$D34&\"_\"&ERSE_Aux!$C$3","v":{"$error":"#N/A"}},3,{"$f":"+IF(AND(Detalhe!$C$54=1,Detalhe!$C$62=1),IF(Preços_Fixos!H14=\"\",\"\",IF(AND(SUM(Preços_Fixos!$C$9:$K$21)>0,SUM(Preços_Fixos!$O$9:$W$21)=0),Preços_Fixos!H14,Preços_Fixos!H14*Preços_Fixos!$D$4/SUM(Preços_Fixos!$D$4,Preços_Fixos!$P$4)+Preços_Fixos!T14*Preços_Fixos!$P$4/SUM(Preços_Fixos!$D$4,Preços_Fixos!$P$4))),\"\")","v":""},{"$f":"+IF(J34=\"\",\"\",IF(Preços_Fixos!I14=\"\",\"\",IF(AND(SUM(Preços_Fixos!$C$9:$K$21)>0,SUM(Preços_Fixos!$O$9:$W$21)=0),Preços_Fixos!I14,Preços_Fixos!I14*Preços_Fixos!$D$4/SUM(Preços_Fixos!$D$4,Preços_Fixos!$P$4)+Preços_Fixos!U14*Preços_Fixos!$P$4/SUM(Preços_Fixos!$D$4,Preços_Fixos!$P$4))))","v":""},{"$f":"+IF(J34=\"\",\"\",IF(Preços_Fixos!J14=\"\",\"\",IF(AND(SUM(Preços_Fixos!$C$9:$K$21)>0,SUM(Preços_Fixos!$O$9:$W$21)=0),Preços_Fixos!J14,Preços_Fixos!J14*Preços_Fixos!$D$4/SUM(Preços_Fixos!$D$4,Preços_Fixos!$P$4)+Preços_Fixos!V14*Preços_Fixos!$P$4/SUM(Preços_Fixos!$D$4,Preços_Fixos!$P$4))))","v":""},{"$f":"+IF(J34=\"\",\"\",IF(Preços_Fixos!K14=\"\",\"\",IF(AND(SUM(Preços_Fixos!$C$9:$K$21)>0,SUM(Preços_Fixos!$O$9:$W$21)=0),Preços_Fixos!K14,Preços_Fixos!K14*Preços_Fixos!$D$4/SUM(Preços_Fixos!$D$4,Preços_Fixos!$P$4)+Preços_Fixos!W14*Preços_Fixos!$P$4/SUM(Preços_Fixos!$D$4,Preços_Fixos!$P$4))))","v":""}]
[null,33,{"$f":"+IF(Detalhe!$C$4=\"\",\"\",Detalhe!$C$4)","v":""},"",10.35,null,null,{"$f":"+ERSE_Precos_Fixos!$D35&\"_\"&ERSE_Aux!$C$3","v":{"$error":"#N/A"}},3,{"$f":"+IF(AND(Detalhe!$C$54=1,Detalhe!$C$62=1),IF(Preços_Fixos!H15=\"\",\"\",IF(AND(SUM(Preços_Fixos!$C$9:$K$21)>0,SUM(Preços_Fixos!$O$9:$W$21)=0),Preços_Fixos!H15,Preços_Fixos!H15*Preços_Fixos!$D$4/SUM(Preços_Fixos!$D$4,Preços_Fixos!$P$4)+Preços_Fixos!T15*Preços_Fixos!$P$4/SUM(Preços_Fixos!$D$4,Preços_Fixos!$P$4))),\"\")","v":""},{"$f":"+IF(J35=\"\",\"\",IF(Preços_Fixos!I15=\"\",\"\",IF(AND(SUM(Preços_Fixos!$C$9:$K$21)>0,SUM(Preços_Fixos!$O$9:$W$21)=0),Preços_Fixos!I15,Preços_Fixos!I15*Preços_Fixos!$D$4/SUM(Preços_Fixos!$D$4,Preços_Fixos!$P$4)+Preços_Fixos!U15*Preços_Fixos!$P$4/SUM(Preços_Fixos!$D$4,Preços_Fixos!$P$4))))","v":""},{"$f":"+IF(J35=\"\",\"\",IF(Preços_Fixos!J15=\"\",\"\",IF(AND(SUM(Preços_Fixos!$C$9:$K$21)>0,SUM(Preços_Fixos!$O$9:$W$21)=0),Preços_Fixos!J15,Preços_Fixos!J15*Preços_Fixos!$D$4/SUM(Preços_Fixos!$D$4,Preços_Fixos!$P$4)+Preços_Fixos!V15*Preços_Fixos!$P$4/SUM(Preços_Fixos!$D$4,Preços_Fixos!$P$4))))","v":""},{"$f":"+IF(J35=\"\",\"\",IF(Preços_Fixos!K15=\"\",\"\",IF(AND(SUM(Preços_Fixos!$C$9:$K$21)>0,SUM(Preços_Fixos!$O$9:$W$21)=0),Preços_Fixos!K15,Preços_Fixos!K15*Preços_Fixos!$D$4/SUM(Preços_Fixos!$D$4,Preços_Fixos!$P$4)+Preços_Fixos!W15*Preços_Fixos!$P$4/SUM(Preços_Fixos!$D$4,Preços_Fixos!$P$4))))","v":""}]
[null,34,{"$f":"+IF(Detalhe!$C$4=\"\",\"\",Detalhe!$C$4)","v":""},"",13.8,null,null,{"$f":"+ERSE_Precos_Fixos!$D36&\"_\"&ERSE_Aux!$C$3","v":{"$error":"#N/A"}},3,{"$f":"+IF(AND(Detalhe!$C$54=1,Detalhe!$C$62=1),IF(Preços_Fixos!H16=\"\",\"\",IF(AND(SUM(Preços_Fixos!$C$9:$K$21)>0,SUM(Preços_Fixos!$O$9:$W$21)=0),Preços_Fixos!H16,Preços_Fixos!H16*Preços_Fixos!$D$4/SUM(Preços_Fixos!$D$4,Preços_Fixos!$P$4)+Preços_Fixos!T16*Preços_Fixos!$P$4/SUM(Preços_Fixos!$D$4,Preços_Fixos!$P$4))),\"\")","v":""},{"$f":"+IF(J36=\"\",\"\",IF(Preços_Fixos!I16=\"\",\"\",IF(AND(SUM(Preços_Fixos!$C$9:$K$21)>0,SUM(Preços_Fixos!$O$9:$W$21)=0),Preços_Fixos!I16,Preços_Fixos!I16*Preços_Fixos!$D$4/SUM(Preços_Fixos!$D$4,Preços_Fixos!$P$4)+Preços_Fixos!U16*Preços_Fixos!$P$4/SUM(Preços_Fixos!$D$4,Preços_Fixos!$P$4))))","v":""},{"$f":"+IF(J36=\"\",\"\",IF(Preços_Fixos!J16=\"\",\"\",IF(AND(SUM(Preços_Fixos!$C$9:$K$21)>0,SUM(Preços_Fixos!$O$9:$W$21)=0),Preços_Fixos!J16,Preços_Fixos!J16*Preços_Fixos!$D$4/SUM(Preços_Fixos!$D$4,Preços_Fixos!$P$4)+Preços_Fixos!V16*Preços_Fixos!$P$4/SUM(Preços_Fixos!$D$4,Preços_Fixos!$P$4))))","v":""},{"$f":"+IF(J36=\"\",\"\",IF(Preços_Fixos!K16=\"\",\"\",IF(AND(SUM(Preços_Fixos!$C$9:$K$21)>0,SUM(Preços_Fixos!$O$9:$W$21)=0),Preços_Fixos!K16,Preços_Fixos!K16*Preços_Fixos!$D$4/SUM(Preços_Fixos!$D$4,Preços_Fixos!$P$4)+Preços_Fixos!W16*Preços_Fixos!$P$4/SUM(Preços_Fixos!$D$4,Preços_Fixos!$P$4))))","v":""}]
[null,35,{"$f":"+IF(Detalhe!$C$4=\"\",\"\",Detalhe!$C$4)","v":""},"",17.25,null,null,{"$f":"+ERSE_Precos_Fixos!$D37&\"_\"&ERSE_Aux!$C$3","v":{"$error":"#N/A"}},3,{"$f":"+IF(AND(Detalhe!$C$54=1,Detalhe!$C$62=1),IF(Preços_Fixos!H17=\"\",\"\",IF(AND(SUM(Preços_Fixos!$C$9:$K$21)>0,SUM(Preços_Fixos!$O$9:$W$21)=0),Preços_Fixos!H17,Preços_Fixos!H17*Preços_Fixos!$D$4/SUM(Preços_Fixos!$D$4,Preços_Fixos!$P$4)+Preços_Fixos!T17*Preços_Fixos!$P$4/SUM(Preços_Fixos!$D$4,Preços_Fixos!$P$4))),\"\")","v":""},{"$f":"+IF(J37=\"\",\"\",IF(Preços_Fixos!I17=\"\",\"\",IF(AND(SUM(Preços_Fixos!$C$9:$K$21)>0,SUM(Preços_Fixos!$O$9:$W$21)=0),Preços_Fixos!I17,Preços_Fixos!I17*Preços_Fixos!$D$4/SUM(Preços_Fixos!$D$4,Preços_Fixos!$P$4)+Preços_Fixos!U17*Preços_Fixos!$P$4/SUM(Preços_Fixos!$D$4,Preços_Fixos!$P$4))))","v":""},{"$f":"+IF(J37=\"\",\"\",IF(Preços_Fixos!J17=\"\",\"\",IF(AND(SUM(Preços_Fixos!$C$9:$K$21)>0,SUM(Preços_Fixos!$O$9:$W$21)=0),Preços_Fixos!J17,Preços_Fixos!J17*Preços_Fixos!$D$4/SUM(Preços_Fixos!$D$4,Preços_Fixos!$P$4)+Preços_Fixos!V17*Preços_Fixos!$P$4/SUM(Preços_Fixos!$D$4,Preços_Fixos!$P$4))))","v":""},{"$f":"+IF(J37=\"\",\"\",IF(Preços_Fixos!K17=\"\",\"\",IF(AND(SUM(Preços_Fixos!$C$9:$K$21)>0,SUM(Preços_Fixos!$O$9:$W$21)=0),Preços_Fixos!K17,Preços_Fixos!K17*Preços_Fixos!$D$4/SUM(Preços_Fixos!$D$4,Preços_Fixos!$P$4)+Preços_Fixos!W17*Preços_Fixos!$P$4/SUM(Preços_Fixos!$D$4,Preços_Fixos!$P$4))))","v":""}]
[null,36,{"$f":"+IF(Detalhe!$C$4=\"\",\"\",Detalhe!$C$4)","v":""},"",20.7,null,null,{"$f":"+ERSE_Precos_Fixos!$D38&\"_\"&ERSE_Aux!$C$3","v":{"$error":"#N/A"}},3,{"$f":"+IF(AND(Detalhe!$C$54=1,Detalhe!$C$62=1),IF(Preços_Fixos!H18=\"\",\"\",IF(AND(SUM(Preços_Fixos!$C$9:$K$21)>0,SUM(Preços_Fixos!$O$9:$W$21)=0),Preços_Fixos!H18,Preços_Fixos!H18*Preços_Fixos!$D$4/SUM(Preços_Fixos!$D$4,Preços_Fixos!$P$4)+Preços_Fixos!T18*Preços_Fixos!$P$4/SUM(Preços_Fixos!$D$4,Preços_Fixos!$P$4))),\"\")","v":""},{"$f":"+IF(J38=\"\",\"\",IF(Preços_Fixos!I18=\"\",\"\",IF(AND(SUM(Preços_Fixos!$C$9:$K$21)>0,SUM(Preços_Fixos!$O$9:$W$21)=0),Preços_Fixos!I18,Preços_Fixos!I18*Preços_Fixos!$D$4/SUM(Preços_Fixos!$D$4,Preços_Fixos!$P$4)+Preços_Fixos!U18*Preços_Fixos!$P$4/SUM(Preços_Fixos!$D$4,Preços_Fixos!$P$4))))","v":""},{"$f":"+IF(J38=\"\",\"\",IF(Preços_Fixos!J18=\"\",\"\",IF(AND(SUM(Preços_Fixos!$C$9:$K$21)>0,SUM(Preços_Fixos!$O$9:$W$21)=0),Preços_Fixos!J18,Preços_Fixos!J18*Preços_Fixos!$D$4/SUM(Preços_Fixos!$D$4,Preços_Fixos!$P$4)+Preços_Fixos!V18*Preços_Fixos!$P$4/SUM(Preços_Fixos!$D$4,Preços_Fixos!$P$4))))","v":""},{"$f":"+IF(J38=\"\",\"\",IF(Preços_Fixos!K18=\"\",\"\",IF(AND(SUM(Preços_Fixos!$C$9:$K$21)>0,SUM(Preços_Fixos!$O$9:$W$21)=0),Preços_Fixos!K18,Preços_Fixos!K18*Preços_Fixos!$D$4/SUM(Preços_Fixos!$D$4,Preços_Fixos!$P$4)+Preços_Fixos!W18*Preços_Fixos!$P$4/SUM(Preços_Fixos!$D$4,Preços_Fixos!$P$4))))","v":""}]
[null,37,{"$f":"+IF(Detalhe!$C$4=\"\",\"\",Detalhe!$C$4)","v":""},"",27.6,null,null,{"$f":"+ERSE_Precos_Fixos!$D39&\"_\"&ERSE_Aux!$C$3","v":{"$error":"#N/A"}},3,{"$f":"+IF(AND(Detalhe!$C$54=1,Detalhe!$C$62=1),IF(Preços_Fixos!H19=\"\",\"\",IF(AND(SUM(Preços_Fixos!$C$9:$K$21)>0,SUM(Preços_Fixos!$O$9:$W$21)=0),Preços_Fixos!H19,Preços_Fixos!H19*Preços_Fixos!$D$4/SUM(Preços_Fixos!$D$4,Preços_Fixos!$P$4)+Preços_Fixos!T19*Preços_Fixos!$P$4/SUM(Preços_Fixos!$D$4,Preços_Fixos!$P$4))),\"\")","v":""},{"$f":"+IF(J39=\"\",\"\",IF(Preços_Fixos!I19=\"\",\"\",IF(AND(SUM(Preços_Fixos!$C$9:$K$21)>0,SUM(Preços_Fixos!$O$9:$W$21)=0),Preços_Fixos!I19,Preços_Fixos!I19*Preços_Fixos!$D$4/SUM(Preços_Fixos!$D$4,Preços_Fixos!$P$4)+Preços_Fixos!U19*Preços_Fixos!$P$4/SUM(Preços_Fixos!$D$4,Preços_Fixos!$P$4))))","v":""},{"$f":"+IF(J39=\"\",\"\",IF(Preços_Fixos!J19=\"\",\"\",IF(AND(SUM(Preços_Fixos!$C$9:$K$21)>0,SUM(Preços_Fixos!$O$9:$W$21)=0),Preços_Fixos!J19,Preços_Fixos!J19*Preços_Fixos!$D$4/SUM(Preços_Fixos!$D$4,Preços_Fixos!$P$4)+Preços_Fixos!V19*Preços_Fixos!$P$4/SUM(Preços_Fixos!$D$4,Preços_Fixos!$P$4))))","v":""},{"$f":"+IF(J39=\"\",\"\",IF(Preços_Fixos!K19=\"\",\"\",IF(AND(SUM(Preços_Fixos!$C$9:$K$21)>0,SUM(Preços_Fixos!$O$9:$W$21)=0),Preços_Fixos!K19,Preços_Fixos!K19*Preços_Fixos!$D$4/SUM(Preços_Fixos!$D$4,Preços_Fixos!$P$4)+Preços_Fixos!W19*Preços_Fixos!$P$4/SUM(Preços_Fixos!$D$4,Preços_Fixos!$P$4))))","v":""}]
[null,38,{"$f":"+IF(Detalhe!$C$4=\"\",\"\",Detalhe!$C$4)","v":""},"",34.5,null,null,{"$f":"+ERSE_Precos_Fixos!$D40&\"_\"&ERSE_Aux!$C$3","v":{"$error":"#N/A"}},3,{"$f":"+IF(AND(Detalhe!$C$54=1,Detalhe!$C$62=1),IF(Preços_Fixos!H20=\"\",\"\",IF(AND(SUM(Preços_Fixos!$C$9:$K$21)>0,SUM(Preços_Fixos!$O$9:$W$21)=0),Preços_Fixos!H20,Preços_Fixos!H20*Preços_Fixos!$D$4/SUM(Preços_Fixos!$D$4,Preços_Fixos!$P$4)+Preços_Fixos!T20*Preços_Fixos!$P$4/SUM(Preços_Fixos!$D$4,Preços_Fixos!$P$4))),\"\")","v":""},{"$f":"+IF(J40=\"\",\"\",IF(Preços_Fixos!I20=\"\",\"\",IF(AND(SUM(Preços_Fixos!$C$9:$K$21)>0,SUM(Preços_Fixos!$O$9:$W$21)=0),Preços_Fixos!I20,Preços_Fixos!I20*Preços_Fixos!$D$4/SUM(Preços_Fixos!$D$4,Preços_Fixos!$P$4)+Preços_Fixos!U20*Preços_Fixos!$P$4/SUM(Preços_Fixos!$D$4,Preços_Fixos!$P$4))))","v":""},{"$f":"+IF(J40=\"\",\"\",IF(Preços_Fixos!J20=\"\",\"\",IF(AND(SUM(Preços_Fixos!$C$9:$K$21)>0,SUM(Preços_Fixos!$O$9:$W$21)=0),Preços_Fixos!J20,Preços_Fixos!J20*Preços_Fixos!$D$4/SUM(Preços_Fixos!$D$4,Preços_Fixos!$P$4)+Preços_Fixos!V20*Preços_Fixos!$P$4/SUM(Preços_Fixos!$D$4,Preços_Fixos!$P$4))))","v":""},{"$f":"+IF(J40=\"\",\"\",IF(Preços_Fixos!K20=\"\",\"\",IF(AND(SUM(Preços_Fixos!$C$9:$K$21)>0,SUM(Preços_Fixos!$O$9:$W$21)=0),Preços_Fixos!K20,Preços_Fixos!K20*Preços_Fixos!$D$4/SUM(Preços_Fixos!$D$4,Preços_Fixos!$P$4)+Preços_Fixos!W20*Preços_Fixos!$P$4/SUM(Preços_Fixos!$D$4,Preços_Fixos!$P$4))))","v":""}]
[null,39,{"$f":"+IF(Detalhe!$C$4=\"\",\"\",Detalhe!$C$4)","v":""},"",41.4,null,null,{"$f":"+ERSE_Precos_Fixos!$D41&\"_\"&ERSE_Aux!$C$3","v":{"$error":"#N/A"}},3,{"$f":"+IF(AND(Detalhe!$C$54=1,Detalhe!$C$62=1),IF(Preços_Fixos!H21=\"\",\"\",IF(AND(SUM(Preços_Fixos!$C$9:$K$21)>0,SUM(Preços_Fixos!$O$9:$W$21)=0),Preços_Fixos!H21,Preços_Fixos!H21*Preços_Fixos!$D$4/SUM(Preços_Fixos!$D$4,Preços_Fixos!$P$4)+Preços_Fixos!T21*Preços_Fixos!$P$4/SUM(Preços_Fixos!$D$4,Preços_Fixos!$P$4))),\"\")","v":""},{"$f":"+IF(J41=\"\",\"\",IF(Preços_Fixos!I21=\"\",\"\",IF(AND(SUM(Preços_Fixos!$C$9:$K$21)>0,SUM(Preços_Fixos!$O$9:$W$21)=0),Preços_Fixos!I21,Preços_Fixos!I21*Preços_Fixos!$D$4/SUM(Preços_Fixos!$D$4,Preços_Fixos!$P$4)+Preços_Fixos!U21*Preços_Fixos!$P$4/SUM(Preços_Fixos!$D$4,Preços_Fixos!$P$4))))","v":""},{"$f":"+IF(J41=\"\",\"\",IF(Preços_Fixos!J21=\"\",\"\",IF(AND(SUM(Preços_Fixos!$C$9:$K$21)>0,SUM(Preços_Fixos!$O$9:$W$21)=0),Preços_Fixos!J21,Preços_Fixos!J21*Preços_Fixos!$D$4/SUM(Preços_Fixos!$D$4,Preços_Fixos!$P$4)+Preços_Fixos!V21*Preços_Fixos!$P$4/SUM(Preços_Fixos!$D$4,Preços_Fixos!$P$4))))","v":""},{"$f":"+IF(J41=\"\",\"\",IF(Preços_Fixos!K21=\"\",\"\",IF(AND(SUM(Preços_Fixos!$C$9:$K$21)>0,SUM(Preços_Fixos!$O$9:$W$21)=0),Preços_Fixos!K21,Preços_Fixos!K21*Preços_Fixos!$D$4/SUM(Preços_Fixos!$D$4,Preços_Fixos!$P$4)+Preços_Fixos!W21*Preços_Fixos!$P$4/SUM(Preços_Fixos!$D$4,Preços_Fixos!$P$4))))","v":""}]

{"sheet":"ERSE_Precos_Index","index":6,"n_rows":41,"n_cols":31,"rows_kept":41,"cut":false,"hidden":true,"merged":[]}
[]
[null,"#","COD_CRIA","COM","Pot_Cont","Escalao","ORD","COD_Proposta","Contagem","TF","TV|TVFV|TVP","TVV|TVC","TVVz","A_TV|TVFV|TVP","A_TVV|TVC","A_TVVz","alfa_TV|TVFV|TVP","alfa_TVV|TVC","alfa_TVVz","beta_TV|TVFV|TVP","beta_TVV|TVC","beta_TVVz","TAR_TV|TVFV|TVP","TAR_TVV|TVC","TAR_TVVz","TFGN","TVGN","A_indexa_GN","alfa_GN","beta_GN","TAR_GN"]
[{"$f":"+IF(Detalhe!C4=\"\",\"\",Detalhe!C4)","v":""},1,{"$f":"+IF(Detalhe!$C$4=\"\",\"\",Detalhe!$C$4)","v":""},{"$f":"$A$3","v":""},1.1499999999999999,1,null,{"$f":"+ERSE_Precos_Index!$D3&\"_\"&ERSE_Aux!$C$3","v":{"$error":"#N/A"}},1,{"$f":"+IF(AND(Detalhe!$C$54=2,Detalhe!$C$62=2),\"\", IF(OR(Detalhe!$C$54=2,Detalhe!$C$62=2),IF(Preços_Index!E80=\"\",\"\",Preços_Index!E80),\"\"))","v":""},{"$f":"+IF(J3=\"\",\"\",IF(ERSE_Aux!$H$5=1,Preços_Index!E54,IF(ERSE_Aux!$H$5=2,Preços_Index!$E$67)))","v":""},null,null,{"$f":"IF(J3=\"\",\"\",IF(AND(Detalhe!$C$54=2,Detalhe!$C$62=2),\"\",IF(OR(Detalhe!$C$54=2,Detalhe!$C$62=2),IF(Preços_Index!$E$23=\"\",\"\",Preços_Index!$E$23),\"\")))","v":""},null,null,{"$f":"+IF(N3=\"\",\"\",IF(ERSE_Aux!$H$5=1,Preços_Index!E26,IF(ERSE_Aux!$H$5=2,Preços_Index!$E$24)))","v":""},null,null,{"$f":"+IF(N3=\"\",\"\",IF(ERSE_Aux!$H$5=1,Preços_Index!E39,IF(ERSE_Aux!$H$5=2,Preços_Index!$E$25)))","v":""},null,null,{"$f":"+IF(N3=\"\",\"\",Preços_Index!$E$52)","v":""},null,null,{"$f":"+IF(Detalhe!$C$58=1,\"\",IF(Preços_Index!$E$130=\"\",\"\",Preços_Index!$E$130))","v":""},{"$f":"+IF(Detalhe!$C$58=1,\"\",IF(Z3=\"\",\"\",Preços_Index!$E$120))","v":""},{"$f":"+IF(Detalhe!$C$58=1,\"\",IF(Preços_Index!$E$116=\"\",\"\",Preços_Index!$E$116))","v":""},{"$f":"+IF(Detalhe!$C$58=1,\"\",IF(AB3=\"\",\"\",Preços_Index!$E$117))","v":""},{"$f":"+IF(Detalhe!$C$58=1,\"\",IF(AB3=\"\",\"\",Preços_Index!$E$118))","v":""},{"$f":"+IF(Detalhe!$C$58=1,\"\",IF(AB3=\"\",\"\",Preços_Index!$E$119))","v":""}]
[null,{"$f":"+B3+1","v":2},{"$f":"+IF(Detalhe!$C$4=\"\",\"\",Detalhe!$C$4)","v":""},{"$f":"$A$3","v":""},2.2999999999999998,2,null,{"$f":"+ERSE_Precos_Index!$D4&\"_\"&ERSE_Aux!$C$3","v":{"$error":"#N/A"}},{"$f":"+I3","v":1},{"$f":"+IF(AND(Detalhe!$C$54=2,Detalhe!$C$62=2),\"\",IF(OR(Detalhe!$C$54=2,Detalhe!$C$62=2),IF(Preços_Index!F80=\"\",\"\",Preços_Index!F80),\"\"))","v":""},{"$f":"+IF(J4=\"\",\"\",IF(ERSE_Aux!$H$5=1,Preços_Index!E55,IF(ERSE_Aux!$H$5=2,Preços_Index!$E$67)))","v":""},null,null,{"$f":"IF(J4=\"\",\"\",IF(AND(Detalhe!$C$54=2,Detalhe!$C$62=2),\"\",IF(OR(Detalhe!$C$54=2,Detalhe!$C$62=2),IF(Preços_Index!$E$23=\"\",\"\",Preços_Index!$E$23),\"\")))","v":""},null,null,{"$f":"+IF(N4=\"\",\"\",IF(ERSE_Aux!$H$5=1,Preços_Index!E27,IF(ERSE_Aux!$H$5=2,Preços_Index!$E$24)))","v":""},null,null,{"$f":"+IF(N4=\"\",\"\",IF(ERSE_Aux!$H$5=1,Preços_Index!E40,IF(ERSE_Aux!$H$5=2,Preços_Index!$E$25)))","v":""},null,null,{"$f":"+IF(N4=\"\",\"\",Preços_Index!$E$52)","v":""},null,null,{"$f":"+IF(Detalhe!$C$58=1,\"\",IF(Preços_Index!$F$130=\"\",\"\",Preços_Index!$F$130))","v":""},{"$f":"+IF(Detalhe!$C$58=1,\"\",IF(Z4=\"\",\"\",Preços_Index!$F$120))","v":""},{"$f":"+IF(Detalhe!$C$58=1,\"\",IF(Preços_Index!$F$116=\"\",\"\",Preços_Index!$F$116))","v":""},{"$f":"+IF(Detalhe!$C$58=1,\"\",IF(AB4=\"\",\"\",Preços_Index!$F$117))","v":""},{"$f":"+IF(Detalhe!$C$58=1,\"\",IF(AB4=\"\",\"\",Preços_Index!$F$118))","v":""},{"$f":"+IF(Detalhe!$C$58=1,\"\",IF(AB4=\"\",\"\",Preços_Index!$F$119))","v":""}]
[null,3,{"$f":"+IF(Detalhe!$C$4=\"\",\"\",Detalhe!$C$4)","v":""},"",3.45,3,null,{"$f":"+ERSE_Precos_Index!$D5&\"_\"&ERSE_Aux!$C$3","v":{"$error":"#N/A"}},{"$f":"+I4","v":1},{"$f":"+IF(AND(Detalhe!$C$54=2,Detalhe!$C$62=2),\"\",IF(OR(Detalhe!$C$54=2,Detalhe!$C$62=2),IF(Preços_Index!G80=\"\",\"\",Preços_Index!G80),\"\"))","v":""},{"$f":"+IF(J5=\"\",\"\",IF(ERSE_Aux!$H$5=1,Preços_Index!E56,IF(ERSE_Aux!$H$5=2,Preços_Index!$E$67)))","v":""},null,null,{"$f":"IF(J5=\"\",\"\",IF(AND(Detalhe!$C$54=2,Detalhe!$C$62=2),\"\",IF(OR(Detalhe!$C$54=2,Detalhe!$C$62=2),IF(Preços_Index!$E$23=\"\",\"\",Preços_Index!$E$23),\"\")))","v":""},null,null,{"$f":"+IF(N5=\"\",\"\",IF(ERSE_Aux!$H$5=1,Preços_Index!E28,IF(ERSE_Aux!$H$5=2,Preços_Index!$E$24)))","v":""},null,null,{"$f":"+IF(N5=\"\",\"\",IF(ERSE_Aux!$H$5=1,Preços_Index!E41,IF(ERSE_Aux!$H$5=2,Preços_Index!$E$25)))","v":""},null,null,{"$f":"+IF(N5=\"\",\"\",Preços_Index!$E$52)","v":""},null,null,{"$f":"+IF(Detalhe!$C$58=1,\"\",IF(Preços_Index!$G$130=\"\",\"\",Preços_Index!$G$130))","v":""},{"$f":"+IF(Detalhe!$C$58=1,\"\",IF(Z5=\"\",\"\",Preços_Index!$G$120))","v":""},{"$f":"+IF(Detalhe!$C$58=1,\"\",IF(Preços_Index!$G$116=\"\",\"\",Preços_Index!$G$116))","v":""},{"$f":"+IF(Detalhe!$C$58=1,\"\",IF(AB5=\"\",\"\",Preços_Index!$G$117))","v":""},{"$f":"+IF(Detalhe!$C$58=1,\"\",IF(AB5=\"\",\"\",Preços_Index!$G$118))","v":""},{"$f":"+IF(Detalhe!$C$58=1,\"\",IF(AB5=\"\",\"\",Preços_Index!$G$119))","v":""}]
[null,4,{"$f":"+IF(Detalhe!$C$4=\"\",\"\",Detalhe!$C$4)","v":""},"",4.5999999999999996,4,null,{"$f":"+ERSE_Precos_Index!$D6&\"_\"&ERSE_Aux!$C$3","v":{"$error":"#N/A"}},1,{"$f":"+IF(AND(Detalhe!$C$54=2,Detalhe!$C$62=2),\"\",IF(OR(Detalhe!$C$54=2,Detalhe!$C$62=2),IF(Preços_Index!H80=\"\",\"\",Preços_Index!H80),\"\"))","v":""},{"$f":"+IF(J6=\"\",\"\",IF(ERSE_Aux!$H$5=1,Preços_Index!E57,IF(ERSE_Aux!$H$5=2,Preços_Index!$E$67)))","v":""},null,null,{"$f":"IF(J6=\"\",\"\",IF(AND(Detalhe!$C$54=2,Detalhe!$C$62=2),\"\",IF(OR(Detalhe!$C$54=2,Detalhe!$C$62=2),IF(Preços_Index!$E$23=\"\",\"\",Preços_Index!$E$23),\"\")))","v":""},null,null,{"$f":"+IF(N6=\"\",\"\",IF(ERSE_Aux!$H$5=1,Preços_Index!E29,IF(ERSE_Aux!$H$5=2,Preços_Index!$E$24)))","v":""},null,null,{"$f":"+IF(N6=\"\",\"\",IF(ERSE_Aux!$H$5=1,Preços_Index!E42,IF(ERSE_Aux!$H$5=2,Preços_Index!$E$25)))","v":""},null,null,{"$f":"+IF(N6=\"\",\"\",Preços_Index!$E$52)","v":""},null,null,{"$f":"+IF(Detalhe!$C$58=1,\"\",IF(Preços_Index!$H$130=\"\",\"\",Preços_Index!$H$130))","v":""},{"$f":"+IF(Detalhe!$C$58=1,\"\",IF(Z6=\"\",\"\",Preços_Index!$H$120))","v":""},{"$f":"+IF(Detalhe!$C$58=1,\"\",IF(Preços_Index!$H$116=\"\",\"\",Preços_Index!$H$116))","v":""},{"$f":"+IF(Detalhe!$C$58=1,\"\",IF(AB6=\"\",\"\",Preços_Index!$H$117))","v":""},{"$f":"+IF(Detalhe!$C$58=1,\"\",IF(AB6=\"\",\"\",Preços_Index!$H$118))","v":""},{"$f":"+IF(Detalhe!$C$58=1,\"\",IF(AB6=\"\",\"\",Preços_Index!$H$119))","v":""}]
[null,5,{"$f":"+IF(Detalhe!$C$4=\"\",\"\",Detalhe!$C$4)","v":""},"",5.75,null,null,{"$f":"+ERSE_Precos_Index!$D7&\"_\"&ERSE_Aux!$C$3","v":{"$error":"#N/A"}},1,{"$f":"+IF(AND(Detalhe!$C$54=2,Detalhe!$C$62=2),\"\",IF(OR(Detalhe!$C$54=2,Detalhe!$C$62=2),IF(Preços_Index!I80=\"\",\"\",Preços_Index!I80),\"\"))","v":""},{"$f":"+IF(J7=\"\",\"\",IF(ERSE_Aux!$H$5=1,Preços_Index!E58,IF(ERSE_Aux!$H$5=2,Preços_Index!$E$67)))","v":""},null,null,{"$f":"IF(J7=\"\",\"\",IF(AND(Detalhe!$C$54=2,Detalhe!$C$62=2),\"\",IF(OR(Detalhe!$C$54=2,Detalhe!$C$62=2),IF(Preços_Index!$E$23=\"\",\"\",Preços_Index!$E$23),\"\")))","v":""},null,null,{"$f":"+IF(N7=\"\",\"\",IF(ERSE_Aux!$H$5=1,Preços_Index!E30,IF(ERSE_Aux!$H$5=2,Preços_Index!$E$24)))","v":""},null,null,{"$f":"+IF(N7=\"\",\"\",IF(ERSE_Aux!$H$5=1,Preços_Index!E43,IF(ERSE_Aux!$H$5=2,Preços_Index!$E$25)))","v":""},null,null,{"$f":"+IF(N7=\"\",\"\",Preços_Index!$E$52)","v":""}]
[null,6,{"$f":"+IF(Detalhe!$C$4=\"\",\"\",Detalhe!$C$4)","v":""},"",6.9,null,null,{"$f":"+ERSE_Precos_Index!$D8&\"_\"&ERSE_Aux!$C$3","v":{"$error":"#N/A"}},1,{"$f":"+IF(AND(Detalhe!$C$54=2,Detalhe!$C$62=2),\"\",IF(OR(Detalhe!$C$54=2,Detalhe!$C$62=2),IF(Preços_Index!J80=\"\",\"\",Preços_Index!J80),\"\"))","v":""},{"$f":"+IF(J8=\"\",\"\",IF(ERSE_Aux!$H$5=1,Preços_Index!E59,IF(ERSE_Aux!$H$5=2,Preços_Index!$E$67)))","v":""},null,null,{"$f":"IF(J8=\"\",\"\",IF(AND(Detalhe!$C$54=2,Detalhe!$C$62=2),\"\",IF(OR(Detalhe!$C$54=2,Detalhe!$C$62=2),IF(Preços_Index!$E$23=\"\",\"\",Preços_Index!$E$23),\"\")))","v":""},null,null,{"$f":"+IF(N8=\"\",\"\",IF(ERSE_Aux!$H$5=1,Preços_Index!E31,IF(ERSE_Aux!$H$5=2,Preços_Index!$E$24)))","v":""},null,null,{"$f":"+IF(N8=\"\",\"\",IF(ERSE_Aux!$H$5=1,Preços_Index!E44,IF(ERSE_Aux!$H$5=2,Preços_Index!$E$25)))","v":""},null,null,{"$f":"+IF(N8=\"\",\"\",Preços_Index!$E$52)","v":""}]
[null,7,{"$f":"+IF(Detalhe!$C$4=\"\",\"\",Detalhe!$C$4)","v":""},"",10.35,null,null,{"$f":"+ERSE_Precos_Index!$D9&\"_\"&ERSE_Aux!$C$3","v":{"$error":"#N/A"}},1,{"$f":"+IF(AND(Detalhe!$C$54=2,Detalhe!$C$62=2),\"\",IF(OR(Detalhe!$C$54=2,Detalhe!$C$62=2),IF(Preços_Index!K80=\"\",\"\",Preços_Index!K80),\"\"))","v":""},{"$f":"+IF(J9=\"\",\"\",IF(ERSE_Aux!$H$5=1,Preços_Index!E60,IF(ERSE_Aux!$H$5=2,Preços_Index!$E$67)))","v":""},null,null,{"$f":"IF(J9=\"\",\"\",IF(AND(Detalhe!$C$54=2,Detalhe!$C$62=2),\"\",IF(OR(Detalhe!$C$54=2,Detalhe!$C$62=2),IF(Preços_Index!$E$23=\"\",\"\",Preços_Index!$E$23),\"\")))","v":""},null,null,{"$f":"+IF(N9=\"\",\"\",IF(ERSE_Aux!$H$5=1,Preços_Index!E32,IF(ERSE_Aux!$H$5=2,Preços_Index!$E$24)))","v":""},null,null,{"$f":"+IF(N9=\"\",\"\",IF(ERSE_Aux!$H$5=1,Preços_Index!E45,IF(ERSE_Aux!$H$5=2,Preços_Index!$E$25)))","v":""},null,null,{"$f":"+IF(N9=\"\",\"\",Preços_Index!$E$52)","v":""}]
[null,8,{"$f":"+IF(Detalhe!$C$4=\"\",\"\",Detalhe!$C$4)","v":""},"",13.8,null,null,{"$f":"+ERSE_Precos_Index!$D10&\"_\"&ERSE_Aux!$C$3","v":{"$error":"#N/A"}},1,{"$f":"+IF(AND(Detalhe!$C$54=2,Detalhe!$C$62=2),\"\",IF(OR(Detalhe!$C$54=2,Detalhe!$C$62=2),IF(Preços_Index!L80=\"\",\"\",Preços_Index!L80),\"\"))","v":""},{"$f":"+IF(J10=\"\",\"\",IF(ERSE_Aux!$H$5=1,Preços_Index!E61,IF(ERSE_Aux!$H$5=2,Preços_Index!$E$67)))","v":""},null,null,{"$f":"IF(J10=\"\",\"\",IF(AND(Detalhe!$C$54=2,Detalhe!$C$62=2),\"\",IF(OR(Detalhe!$C$54=2,Detalhe!$C$62=2),IF(Preços_Index!$E$23=\"\",\"\",Preços_Index!$E$23),\"\")))","v":""},null,null,{"$f":"+IF(N10=\"\",\"\",IF(ERSE_Aux!$H$5=1,Preços_Index!E33,IF(ERSE_Aux!$H$5=2,Preços_Index!$E$24)))","v":""},null,null,{"$f":"+IF(N10=\"\",\"\",IF(ERSE_Aux!$H$5=1,Preços_Index!E46,IF(ERSE_Aux!$H$5=2,Preços_Index!$E$25)))","v":""},null,null,{"$f":"+IF(N10=\"\",\"\",Preços_Index!$E$52)","v":""}]
[null,9,{"$f":"+IF(Detalhe!$C$4=\"\",\"\",Detalhe!$C$4)","v":""},"",17.25,null,null,{"$f":"+ERSE_Precos_Index!$D11&\"_\"&ERSE_Aux!$C$3","v":{"$error":"#N/A"}},1,{"$f":"+IF(AND(Detalhe!$C$54=2,Detalhe!$C$62=2),\"\",IF(OR(Detalhe!$C$54=2,Detalhe!$C$62=2),IF(Preços_Index!M80=\"\",\"\",Preços_Index!M80),\"\"))","v":""},{"$f":"+IF(J11=\"\",\"\",IF(ERSE_Aux!$H$5=1,Preços_Index!E62,IF(ERSE_Aux!$H$5=2,Preços_Index!$E$67)))","v":""},null,null,{"$f":"IF(J11=\"\",\"\",IF(AND(Detalhe!$C$54=2,Detalhe!$C$62=2),\"\",IF(OR(Detalhe!$C$54=2,Detalhe!$C$62=2),IF(Preços_Index!$E$23=\"\",\"\",Preços_Index!$E$23),\"\")))","v":""},null,null,{"$f":"+IF(N11=\"\",\"\",IF(ERSE_Aux!$H$5=1,Preços_Index!E34,IF(ERSE_Aux!$H$5=2,Preços_Index!$E$24)))","v":""},null,null,{"$f":"+IF(N11=\"\",\"\",IF(ERSE_Aux!$H$5=1,Preços_Index!E47,IF(ERSE_Aux!$H$5=2,Preços_Index!$E$25)))","v":""},null,null,{"$f":"+IF(N11=\"\",\"\",Preços_Index!$E$52)","v":""}]
[null,10,{"$f":"+IF(Detalhe!$C$4=\"\",\"\",Detalhe!$C$4)","v":""},"",20.7,null,null,{"$f":"+ERSE_Precos_Index!$D12&\"_\"&ERSE_Aux!$C$3","v":{"$error":"#N/A"}},1,{"$f":"+IF(AND(Detalhe!$C$54=2,Detalhe!$C$62=2),\"\",IF(OR(Detalhe!$C$54=2,Detalhe!$C$62=2),IF(Preços_Index!N80=\"\",\"\",Preços_Index!N80),\"\"))","v":""},{"$f":"+IF(J12=\"\",\"\",IF(ERSE_Aux!$H$5=1,Preços_Index!E63,IF(ERSE_Aux!$H$5=2,Preços_Index!$E$67)))","v":""},null,null,{"$f":"IF(J12=\"\",\"\",IF(AND(Detalhe!$C$54=2,Detalhe!$C$62=2),\"\",IF(OR(Detalhe!$C$54=2,Detalhe!$C$62=2),IF(Preços_Index!$E$23=\"\",\"\",Preços_Index!$E$23),\"\")))","v":""},null,null,{"$f":"+IF(N12=\"\",\"\",IF(ERSE_Aux!$H$5=1,Preços_Index!E35,IF(ERSE_Aux!$H$5=2,Preços_Index!$E$24)))","v":""},null,null,{"$f":"+IF(N12=\"\",\"\",IF(ERSE_Aux!$H$5=1,Preços_Index!E48,IF(ERSE_Aux!$H$5=2,Preços_Index!$E$25)))","v":""},null,null,{"$f":"+IF(N12=\"\",\"\",Preços_Index!$E$52)","v":""}]
[null,11,{"$f":"+IF(Detalhe!$C$4=\"\",\"\",Detalhe!$C$4)","v":""},"",27.6,null,null,{"$f":"+ERSE_Precos_Index!$D13&\"_\"&ERSE_Aux!$C$3","v":{"$error":"#N/A"}},1]
[null,12,{"$f":"+IF(Detalhe!$C$4=\"\",\"\",Detalhe!$C$4)","v":""},"",34.5,null,null,{"$f":"+ERSE_Precos_Index!$D14&\"_\"&ERSE_Aux!$C$3","v":{"$error":"#N/A"}},1]
[null,13,{"$f":"+IF(Detalhe!$C$4=\"\",\"\",Detalhe!$C$4)","v":""},"",41.4,null,null,{"$f":"+ERSE_Precos_Index!$D15&\"_\"&ERSE_Aux!$C$3","v":{"$error":"#N/A"}},1]
[null,14,{"$f":"+IF(Detalhe!$C$4=\"\",\"\",Detalhe!$C$4)","v":""},"",1.1499999999999999,null,null,{"$f":"+ERSE_Precos_Index!$D16&\"_\"&ERSE_Aux!$C$3","v":{"$error":"#N/A"}},2,{"$f":"+IF(AND(Detalhe!$C$54=2,Detalhe!$C$62=2),\"\",IF(OR(Detalhe!$C$54=2,Detalhe!$C$62=2),IF(Preços_Index!E81=\"\",\"\",Preços_Index!E81),\"\"))","v":""},{"$f":"+IF(J16=\"\",\"\",IF(ERSE_Aux!$H$5=1,Preços_Index!F54,IF(ERSE_Aux!$H$5=2,Preços_Index!$F$67)))","v":""},{"$f":"+IF(J16=\"\",\"\",IF(ERSE_Aux!$H$5=1,Preços_Index!G54,IF(ERSE_Aux!$H$5=2,Preços_Index!$G$67)))","v":""},null,{"$f":"IF(J16=\"\",\"\",IF(AND(Detalhe!$C$54=2,Detalhe!$C$62=2),\"\",IF(OR(Detalhe!$C$54=2,Detalhe!$C$62=2),IF(Preços_Index!$F$23=\"\",\"\",Preços_Index!$F$23),\"\")))","v":""},{"$f":"IF(J16=\"\",\"\",IF(AND(Detalhe!$C$54=2,Detalhe!$C$62=2),\"\",IF(OR(Detalhe!$C$54=2,Detalhe!$C$62=2),IF(Preços_Index!$G$23=\"\",\"\",Preços_Index!$G$23),\"\")))","v":""},null,{"$f":"+IF(N16=\"\",\"\",IF(ERSE_Aux!$H$5=1,Preços_Index!F26,IF(ERSE_Aux!$H$5=2,Preços_Index!$F$24)))","v":""},{"$f":"+IF(O16=\"\",\"\",IF(ERSE_Aux!$H$5=1,Preços_Index!G26,IF(ERSE_Aux!$H$5=2,Preços_Index!$G$24)))","v":""},null,{"$f":"+IF(N16=\"\",\"\",IF(ERSE_Aux!$H$5=1,Preços_Index!F39,IF(ERSE_Aux!$H$5=2,Preços_Index!$F$25)))","v":""},{"$f":"+IF(O16=\"\",\"\",IF(ERSE_Aux!$H$5=1,Preços_Index!G39,IF(ERSE_Aux!$H$5=2,Preços_Index!$G$25)))","v":""},null,{"$f":"+IF(N16=\"\",\"\",Preços_Index!$F$52)","v":""},{"$f":"+IF(O16=\"\",\"\",Preços_Index!$G$52)","v":""}]
[null,15,{"$f":"+IF(Detalhe!$C$4=\"\",\"\",Detalhe!$C$4)","v":""},"",2.2999999999999998,null,null,{"$f":"+ERSE_Precos_Index!$D17&\"_\"&ERSE_Aux!$C$3","v":{"$error":"#N/A"}},{"$f":"+I16","v":2},{"$f":"+IF(AND(Detalhe!$C$54=2,Detalhe!$C$62=2),\"\",IF(OR(Detalhe!$C$54=2,Detalhe!$C$62=2),IF(Preços_Index!F81=\"\",\"\",Preços_Index!F81),\"\"))","v":""},{"$f":"+IF(J17=\"\",\"\",IF(ERSE_Aux!$H$5=1,Preços_Index!F55,IF(ERSE_Aux!$H$5=2,Preços_Index!$F$67)))","v":""},{"$f":"+IF(J17=\"\",\"\",IF(ERSE_Aux!$H$5=1,Preços_Index!G55,IF(ERSE_Aux!$H$5=2,Preços_Index!$G$67)))","v":""},null,{"$f":"IF(J17=\"\",\"\",IF(AND(Detalhe!$C$54=2,Detalhe!$C$62=2),\"\",IF(OR(Detalhe!$C$54=2,Detalhe!$C$62=2),IF(Preços_Index!$F$23=\"\",\"\",Preços_Index!$F$23),\"\")))","v":""},{"$f":"IF(J17=\"\",\"\",IF(AND(Detalhe!$C$54=2,Detalhe!$C$62=2),\"\",IF(OR(Detalhe!$C$54=2,Detalhe!$C$62=2),IF(Preços_Index!$G$23=\"\",\"\",Preços_Index!$G$23),\"\")))","v":""},null,{"$f":"+IF(N17=\"\",\"\",IF(ERSE_Aux!$H$5=1,Preços_Index!F27,IF(ERSE_Aux!$H$5=2,Preços_Index!$F$24)))","v":""},{"$f":"+IF(O17=\"\",\"\",IF(ERSE_Aux!$H$5=1,Preços_Index!G27,IF(ERSE_Aux!$H$5=2,Preços_Index!$G$24)))","v":""},null,{"$f":"+IF(N17=\"\",\"\",IF(ERSE_Aux!$H$5=1,Preços_Index!F40,IF(ERSE_Aux!$H$5=2,Preços_Index!$F$25)))","v":""},{"$f":"+IF(O17=\"\",\"\",IF(ERSE_Aux!$H$5=1,Preços_Index!G40,IF(ERSE_Aux!$H$5=2,Preços_Index!$G$25)))","v":""},null,{"$f":"+IF(N17=\"\",\"\",Preços_Index!$F$52)","v":""},{"$f":"+IF(O17=\"\",\"\",Preços_Index!$G$52)","v":""}]
[null,16,{"$f":"+IF(Detalhe!$C$4=\"\",\"\",Detalhe!$C$4)","v":""},"",3.45,null,null,{"$f":"+ERSE_Precos_Index!$D18&\"_\"&ERSE_Aux!$C$3","v":{"$error":"#N/A"}},{"$f":"+I17","v":2},{"$f":"+IF(AND(Detalhe!$C$54=2,Detalhe!$C$62=2),\"\",IF(OR(Detalhe!$C$54=2,Detalhe!$C$62=2),IF(Preços_Index!G81=\"\",\"\",Preços_Index!G81),\"\"))","v":""},{"$f":"+IF(J18=\"\",\"\",IF(ERSE_Aux!$H$5=1,Preços_Index!F56,IF(ERSE_Aux!$H$5=2,Preços_Index!$F$67)))","v":""},{"$f":"+IF(J18=\"\",\"\",IF(ERSE_Aux!$H$5=1,Preços_Index!G56,IF(ERSE_Aux!$H$5=2,Preços_Index!$G$67)))","v":""},null,{"$f":"IF(J18=\"\",\"\",IF(AND(Detalhe!$C$54=2,Detalhe!$C$62=2),\"\",IF(OR(Detalhe!$C$54=2,Detalhe!$C$62=2),IF(Preços_Index!$F$23=\"\",\"\",Preços_Index!$F$23),\"\")))","v":""},{"$f":"IF(J18=\"\",\"\",IF(AND(Detalhe!$C$54=2,Detalhe!$C$62=2),\"\",IF(OR(Detalhe!$C$54=2,Detalhe!$C$62=2),IF(Preços_Index!$G$23=\"\",\"\",Preços_Index!$G$23),\"\")))","v":""},null,{"$f":"+IF(N18=\"\",\"\",IF(ERSE_Aux!$H$5=1,Preços_Index!F28,IF(ERSE_Aux!$H$5=2,Preços_Index!$F$24)))","v":""},{"$f":"+IF(O18=\"\",\"\",IF(ERSE_Aux!$H$5=1,Preços_Index!G28,IF(ERSE_Aux!$H$5=2,Preços_Index!$G$24)))","v":""},null,{"$f":"+IF(N18=\"\",\"\",IF(ERSE_Aux!$H$5=1,Preços_Index!F41,IF(ERSE_Aux!$H$5=2,Preços_Index!$F$25)))","v":""},{"$f":"+IF(O18=\"\",\"\",IF(ERSE_Aux!$H$5=1,Preços_Index!G41,IF(ERSE_Aux!$H$5=2,Preços_Index!$G$25)))","v":""},null,{"$f":"+IF(N18=\"\",\"\",Preços_Index!$F$52)","v":""},{"$f":"+IF(O18=\"\",\"\",Preços_Index!$G$52)","v":""}]
[null,17,{"$f":"+IF(Detalhe!$C$4=\"\",\"\",Detalhe!$C$4)","v":""},"",4.5999999999999996,null,null,{"$f":"+ERSE_Precos_Index!$D19&\"_\"&ERSE_Aux!$C$3","v":{"$error":"#N/A"}},2,{"$f":"+IF(AND(Detalhe!$C$54=2,Detalhe!$C$62=2),\"\",IF(OR(Detalhe!$C$54=2,Detalhe!$C$62=2),IF(Preços_Index!H81=\"\",\"\",Preços_Index!H81),\"\"))","v":""},{"$f":"+IF(J19=\"\",\"\",IF(ERSE_Aux!$H$5=1,Preços_Index!F57,IF(ERSE_Aux!$H$5=2,Preços_Index!$F$67)))","v":""},{"$f":"+IF(J19=\"\",\"\",IF(ERSE_Aux!$H$5=1,Preços_Index!G57,IF(ERSE_Aux!$H$5=2,Preços_Index!$G$67)))","v":""},null,{"$f":"IF(J19=\"\",\"\",IF(AND(Detalhe!$C$54=2,Detalhe!$C$62=2),\"\",IF(OR(Detalhe!$C$54=2,Detalhe!$C$62=2),IF(Preços_Index!$F$23=\"\",\"\",Preços_Index!$F$23),\"\")))","v":""},{"$f":"IF(J19=\"\",\"\",IF(AND(Detalhe!$C$54=2,Detalhe!$C$62=2),\"\",IF(OR(Detalhe!$C$54=2,Detalhe!$C$62=2),IF(Preços_Index!$G$23=\"\",\"\",Preços_Index!$G$23),\"\")))","v":""},null,{"$f":"+IF(N19=\"\",\"\",IF(ERSE_Aux!$H$5=1,Preços_Index!F29,IF(ERSE_Aux!$H$5=2,Preços_Index!$F$24)))","v":""},{"$f":"+IF(O19=\"\",\"\",IF(ERSE_Aux!$H$5=1,Preços_Index!G29,IF(ERSE_Aux!$H$5=2,Preços_Index!$G$24)))","v":""},null,{"$f":"+IF(N19=\"\",\"\",IF(ERSE_Aux!$H$5=1,Preços_Index!F42,IF(ERSE_Aux!$H$5=2,Preços_Index!$F$25)))","v":""},{"$f":"+IF(O19=\"\",\"\",IF(ERSE_Aux!$H$5=1,Preços_Index!G42,IF(ERSE_Aux!$H$5=2,Preços_Index!$G$25)))","v":""},null,{"$f":"+IF(N19=\"\",\"\",Preços_Index!$F$52)","v":""},{"$f":"+IF(O19=\"\",\"\",Preços_Index!$G$52)","v":""}]
[null,18,{"$f":"+IF(Detalhe!$C$4=\"\",\"\",Detalhe!$C$4)","v":""},"",5.75,null,null,{"$f":"+ERSE_Precos_Index!$D20&\"_\"&ERSE_Aux!$C$3","v":{"$error":"#N/A"}},2,{"$f":"+IF(AND(Detalhe!$C$54=2,Detalhe!$C$62=2),\"\",IF(OR(Detalhe!$C$54=2,Detalhe!$C$62=2),IF(Preços_Index!I81=\"\",\"\",Preços_Index!I81),\"\"))","v":""},{"$f":"+IF(J20=\"\",\"\",IF(ERSE_Aux!$H$5=1,Preços_Index!F58,IF(ERSE_Aux!$H$5=2,Preços_Index!$F$67)))","v":""},{"$f":"+IF(J20=\"\",\"\",IF(ERSE_Aux!$H$5=1,Preços_Index!G58,IF(ERSE_Aux!$H$5=2,Preços_Index!$G$67)))","v":""},null,{"$f":"IF(J20=\"\",\"\",IF(AND(Detalhe!$C$54=2,Detalhe!$C$62=2),\"\",IF(OR(Detalhe!$C$54=2,Detalhe!$C$62=2),IF(Preços_Index!$F$23=\"\",\"\",Preços_Index!$F$23),\"\")))","v":""},{"$f":"IF(J20=\"\",\"\",IF(AND(Detalhe!$C$54=2,Detalhe!$C$62=2),\"\",IF(OR(Detalhe!$C$54=2,Detalhe!$C$62=2),IF(Preços_Index!$G$23=\"\",\"\",Preços_Index!$G$23),\"\")))","v":""},null,{"$f":"+IF(N20=\"\",\"\",IF(ERSE_Aux!$H$5=1,Preços_Index!F30,IF(ERSE_Aux!$H$5=2,Preços_Index!$F$24)))","v":""},{"$f":"+IF(O20=\"\",\"\",IF(ERSE_Aux!$H$5=1,Preços_Index!G30,IF(ERSE_Aux!$H$5=2,Preços_Index!$G$24)))","v":""},null,{"$f":"+IF(N20=\"\",\"\",IF(ERSE_Aux!$H$5=1,Preços_Index!F43,IF(ERSE_Aux!$H$5=2,Preços_Index!$F$25)))","v":""},{"$f":"+IF(O20=\"\",\"\",IF(ERSE_Aux!$H$5=1,Preços_Index!G43,IF(ERSE_Aux!$H$5=2,Preços_Index!$G$25)))","v":""},null,{"$f":"+IF(N20=\"\",\"\",Preços_Index!$F$52)","v":""},{"$f":"+IF(O20=\"\",\"\",Preços_Index!$G$52)","v":""}]
[null,19,{"$f":"+IF(Detalhe!$C$4=\"\",\"\",Detalhe!$C$4)","v":""},"",6.9,null,null,{"$f":"+ERSE_Precos_Index!$D21&\"_\"&ERSE_Aux!$C$3","v":{"$error":"#N/A"}},2,{"$f":"+IF(AND(Detalhe!$C$54=2,Detalhe!$C$62=2),\"\",IF(OR(Detalhe!$C$54=2,Detalhe!$C$62=2),IF(Preços_Index!J81=\"\",\"\",Preços_Index!J81),\"\"))","v":""},{"$f":"+IF(J21=\"\",\"\",IF(ERSE_Aux!$H$5=1,Preços_Index!F59,IF(ERSE_Aux!$H$5=2,Preços_Index!$F$67)))","v":""},{"$f":"+IF(J21=\"\",\"\",IF(ERSE_Aux!$H$5=1,Preços_Index!G59,IF(ERSE_Aux!$H$5=2,Preços_Index!$G$67)))","v":""},null,{"$f":"IF(J21=\"\",\"\",IF(AND(Detalhe!$C$54=2,Detalhe!$C$62=2),\"\",IF(OR(Detalhe!$C$54=2,Detalhe!$C$62=2),IF(Preços_Index!$F$23=\"\",\"\",Preços_Index!$F$23),\"\")))","v":""},{"$f":"IF(J21=\"\",\"\",IF(AND(Detalhe!$C$54=2,Detalhe!$C$62=2),\"\",IF(OR(Detalhe!$C$54=2,Detalhe!$C$62=2),IF(Preços_Index!$G$23=\"\",\"\",Preços_Index!$G$23),\"\")))","v":""},null,{"$f":"+IF(N21=\"\",\"\",IF(ERSE_Aux!$H$5=1,Preços_Index!F31,IF(ERSE_Aux!$H$5=2,Preços_Index!$F$24)))","v":""},{"$f":"+IF(O21=\"\",\"\",IF(ERSE_Aux!$H$5=1,Preços_Index!G31,IF(ERSE_Aux!$H$5=2,Preços_Index!$G$24)))","v":""},null,{"$f":"+IF(N21=\"\",\"\",IF(ERSE_Aux!$H$5=1,Preços_Index!F44,IF(ERSE_Aux!$H$5=2,Preços_Index!$F$25)))","v":""},{"$f":"+IF(O21=\"\",\"\",IF(ERSE_Aux!$H$5=1,Preços_Index!G44,IF(ERSE_Aux!$H$5=2,Preços_Index!$G$25)))","v":""},null,{"$f":"+IF(N21=\"\",\"\",Preços_Index!$F$52)","v":""},{"$f":"+IF(O21=\"\",\"\",Preços_Index!$G$52)","v":""}]
[null,20,{"$f":"+IF(Detalhe!$C$4=\"\",\"\",Detalhe!$C$4)","v":""},"",10.35,null,null,{"$f":"+ERSE_Precos_Index!$D22&\"_\"&ERSE_Aux!$C$3","v":{"$error":"#N/A"}},2,{"$f":"+IF(AND(Detalhe!$C$54=2,Detalhe!$C$62=2),\"\",IF(OR(Detalhe!$C$54=2,Detalhe!$C$62=2),IF(Preços_Index!K81=\"\",\"\",Preços_Index!K81),\"\"))","v":""},{"$f":"+IF(J22=\"\",\"\",IF(ERSE_Aux!$H$5=1,Preços_Index!F60,IF(ERSE_Aux!$H$5=2,Preços_Index!$F$67)))","v":""},{"$f":"+IF(J22=\"\",\"\",IF(ERSE_Aux!$H$5=1,Preços_Index!G60,IF(ERSE_Aux!$H$5=2,Preços_Index!$G$67)))","v":""},null,{"$f":"IF(J22=\"\",\"\",IF(AND(Detalhe!$C$54=2,Detalhe!$C$62=2),\"\",IF(OR(Detalhe!$C$54=2,Detalhe!$C$62=2),IF(Preços_Index!$F$23=\"\",\"\",Preços_Index!$F$23),\"\")))","v":""},{"$f":"IF(J22=\"\",\"\",IF(AND(Detalhe!$C$54=2,Detalhe!$C$62=2),\"\",IF(OR(Detalhe!$C$54=2,Detalhe!$C$62=2),IF(Preços_Index!$G$23=\"\",\"\",Preços_Index!$G$23),\"\")))","v":""},null,{"$f":"+IF(N22=\"\",\"\",IF(ERSE_Aux!$H$5=1,Preços_Index!F32,IF(ERSE_Aux!$H$5=2,Preços_Index!$F$24)))","v":""},{"$f":"+IF(O22=\"\",\"\",IF(ERSE_Aux!$H$5=1,Preços_Index!G32,IF(ERSE_Aux!$H$5=2,Preços_Index!$G$24)))","v":""},null,{"$f":"+IF(N22=\"\",\"\",IF(ERSE_Aux!$H$5=1,Preços_Index!F45,IF(ERSE_Aux!$H$5=2,Preços_Index!$F$25)))","v":""},{"$f":"+IF(O22=\"\",\"\",IF(ERSE_Aux!$H$5=1,Preços_Index!G45,IF(ERSE_Aux!$H$5=2,Preços_Index!$G$25)))","v":""},null,{"$f":"+IF(N22=\"\",\"\",Preços_Index!$F$52)","v":""},{"$f":"+IF(O22=\"\",\"\",Preços_Index!$G$52)","v":""}]
[null,21,{"$f":"+IF(Detalhe!$C$4=\"\",\"\",Detalhe!$C$4)","v":""},"",13.8,null,null,{"$f":"+ERSE_Precos_Index!$D23&\"_\"&ERSE_Aux!$C$3","v":{"$error":"#N/A"}},2,{"$f":"+IF(AND(Detalhe!$C$54=2,Detalhe!$C$62=2),\"\",IF(OR(Detalhe!$C$54=2,Detalhe!$C$62=2),IF(Preços_Index!L81=\"\",\"\",Preços_Index!L81),\"\"))","v":""},{"$f":"+IF(J23=\"\",\"\",IF(ERSE_Aux!$H$5=1,Preços_Index!F61,IF(ERSE_Aux!$H$5=2,Preços_Index!$F$67)))","v":""},{"$f":"+IF(J23=\"\",\"\",IF(ERSE_Aux!$H$5=1,Preços_Index!G61,IF(ERSE_Aux!$H$5=2,Preços_Index!$G$67)))","v":""},null,{"$f":"IF(J23=\"\",\"\",IF(AND(Detalhe!$C$54=2,Detalhe!$C$62=2),\"\",IF(OR(Detalhe!$C$54=2,Detalhe!$C$62=2),IF(Preços_Index!$F$23=\"\",\"\",Preços_Index!$F$23),\"\")))","v":""},{"$f":"IF(J23=\"\",\"\",IF(AND(Detalhe!$C$54=2,Detalhe!$C$62=2),\"\",IF(OR(Detalhe!$C$54=2,Detalhe!$C$62=2),IF(Preços_Index!$G$23=\"\",\"\",Preços_Index!$G$23),\"\")))","v":""},null,{"$f":"+IF(N23=\"\",\"\",IF(ERSE_Aux!$H$5=1,Preços_Index!F33,IF(ERSE_Aux!$H$5=2,Preços_Index!$F$24)))","v":""},{"$f":"+IF(O23=\"\",\"\",IF(ERSE_Aux!$H$5=1,Preços_Index!G33,IF(ERSE_Aux!$H$5=2,Preços_Index!$G$24)))","v":""},null,{"$f":"+IF(N23=\"\",\"\",IF(ERSE_Aux!$H$5=1,Preços_Index!F46,IF(ERSE_Aux!$H$5=2,Preços_Index!$F$25)))","v":""},{"$f":"+IF(O23=\"\",\"\",IF(ERSE_Aux!$H$5=1,Preços_Index!G46,IF(ERSE_Aux!$H$5=2,Preços_Index!$G$25)))","v":""},null,{"$f":"+IF(N23=\"\",\"\",Preços_Index!$F$52)","v":""},{"$f":"+IF(O23=\"\",\"\",Preços_Index!$G$52)","v":""}]
[null,22,{"$f":"+IF(Detalhe!$C$4=\"\",\"\",Detalhe!$C$4)","v":""},"",17.25,null,null,{"$f":"+ERSE_Precos_Index!$D24&\"_\"&ERSE_Aux!$C$3","v":{"$error":"#N/A"}},2,{"$f":"+IF(AND(Detalhe!$C$54=2,Detalhe!$C$62=2),\"\",IF(OR(Detalhe!$C$54=2,Detalhe!$C$62=2),IF(Preços_Index!M81=\"\",\"\",Preços_Index!M81),\"\"))","v":""},{"$f":"+IF(J24=\"\",\"\",IF(ERSE_Aux!$H$5=1,Preços_Index!F62,IF(ERSE_Aux!$H$5=2,Preços_Index!$F$67)))","v":""},{"$f":"+IF(J24=\"\",\"\",IF(ERSE_Aux!$H$5=1,Preços_Index!G62,IF(ERSE_Aux!$H$5=2,Preços_Index!$G$67)))","v":""},null,{"$f":"IF(J24=\"\",\"\",IF(AND(Detalhe!$C$54=2,Detalhe!$C$62=2),\"\",IF(OR(Detalhe!$C$54=2,Detalhe!$C$62=2),IF(Preços_Index!$F$23=\"\",\"\",Preços_Index!$F$23),\"\")))","v":""},{"$f":"IF(J24=\"\",\"\",IF(AND(Detalhe!$C$54=2,Detalhe!$C$62=2),\"\",IF(OR(Detalhe!$C$54=2,Detalhe!$C$62=2),IF(Preços_Index!$G$23=\"\",\"\",Preços_Index!$G$23),\"\")))","v":""},null,{"$f":"+IF(N24=\"\",\"\",IF(ERSE_Aux!$H$5=1,Preços_Index!F34,IF(ERSE_Aux!$H$5=2,Preços_Index!$F$24)))","v":""},{"$f":"+IF(O24=\"\",\"\",IF(ERSE_Aux!$H$5=1,Preços_Index!G34,IF(ERSE_Aux!$H$5=2,Preços_Index!$G$24)))","v":""},null,{"$f":"+IF(N24=\"\",\"\",IF(ERSE_Aux!$H$5=1,Preços_Index!F47,IF(ERSE_Aux!$H$5=2,Preços_Index!$F$25)))","v":""},{"$f":"+IF(O24=\"\",\"\",IF(ERSE_Aux!$H$5=1,Preços_Index!G47,IF(ERSE_Aux!$H$5=2,Preços_Index!$G$25)))","v":""},null,{"$f":"+IF(N24=\"\",\"\",Preços_Index!$F$52)","v":""},{"$f":"+IF(O24=\"\",\"\",Preços_Index!$G$52)","v":""}]
[null,23,{"$f":"+IF(Detalhe!$C$4=\"\",\"\",Detalhe!$C$4)","v":""},"",20.7,null,null,{"$f":"+ERSE_Precos_Index!$D25&\"_\"&ERSE_Aux!$C$3","v":{"$error":"#N/A"}},2,{"$f":"+IF(AND(Detalhe!$C$54=2,Detalhe!$C$62=2),\"\",IF(OR(Detalhe!$C$54=2,Detalhe!$C$62=2),IF(Preços_Index!N81=\"\",\"\",Preços_Index!N81),\"\"))","v":""},{"$f":"+IF(J25=\"\",\"\",IF(ERSE_Aux!$H$5=1,Preços_Index!F63,IF(ERSE_Aux!$H$5=2,Preços_Index!$F$67)))","v":""},{"$f":"+IF(J25=\"\",\"\",IF(ERSE_Aux!$H$5=1,Preços_Index!G63,IF(ERSE_Aux!$H$5=2,Preços_Index!$G$67)))","v":""},null,{"$f":"IF(J25=\"\",\"\",IF(AND(Detalhe!$C$54=2,Detalhe!$C$62=2),\"\",IF(OR(Detalhe!$C$54=2,Detalhe!$C$62=2),IF(Preços_Index!$F$23=\"\",\"\",Preços_Index!$F$23),\"\")))","v":""},{"$f":"IF(J25=\"\",\"\",IF(AND(Detalhe!$C$54=2,Detalhe!$C$62=2),\"\",IF(OR(Detalhe!$C$54=2,Detalhe!$C$62=2),IF(Preços_Index!$G$23=\"\",\"\",Preços_Index!$G$23),\"\")))","v":""},null,{"$f":"+IF(N25=\"\",\"\",IF(ERSE_Aux!$H$5=1,Preços_Index!F35,IF(ERSE_Aux!$H$5=2,Preços_Index!$F$24)))","v":""},{"$f":"+IF(O25=\"\",\"\",IF(ERSE_Aux!$H$5=1,Preços_Index!G35,IF(ERSE_Aux!$H$5=2,Preços_Index!$G$24)))","v":""},null,{"$f":"+IF(N25=\"\",\"\",IF(ERSE_Aux!$H$5=1,Preços_Index!F48,IF(ERSE_Aux!$H$5=2,Preços_Index!$F$25)))","v":""},{"$f":"+IF(O25=\"\",\"\",IF(ERSE_Aux!$H$5=1,Preços_Index!G48,IF(ERSE_Aux!$H$5=2,Preços_Index!$G$25)))","v":""},null,{"$f":"+IF(N25=\"\",\"\",Preços_Index!$F$52)","v":""},{"$f":"+IF(O25=\"\",\"\",Preços_Index!$G$52)","v":""}]
[null,24,{"$f":"+IF(Detalhe!$C$4=\"\",\"\",Detalhe!$C$4)","v":""},"",27.6,null,null,{"$f":"+ERSE_Precos_Index!$D26&\"_\"&ERSE_Aux!$C$3","v":{"$error":"#N/A"}},2]
[null,25,{"$f":"+IF(Detalhe!$C$4=\"\",\"\",Detalhe!$C$4)","v":""},"",34.5,null,null,{"$f":"+ERSE_Precos_Index!$D27&\"_\"&ERSE_Aux!$C$3","v":{"$error":"#N/A"}},2]
[null,26,{"$f":"+IF(Detalhe!$C$4=\"\",\"\",Detalhe!$C$4)","v":""},"",41.4,null,null,{"$f":"+ERSE_Precos_Index!$D28&\"_\"&ERSE_Aux!$C$3","v":{"$error":"#N/A"}},2]
[null,27,{"$f":"+IF(Detalhe!$C$4=\"\",\"\",Detalhe!$C$4)","v":""},"",1.1499999999999999,null,null,{"$f":"+ERSE_Precos_Index!$D29&\"_\"&ERSE_Aux!$C$3","v":{"$error":"#N/A"}},3,{"$f":"+IF(AND(Detalhe!$C$54=2,Detalhe!$C$62=2),\"\",IF(OR(Detalhe!$C$54=2,Detalhe!$C$62=2),IF(Preços_Index!E82=\"\",\"\",Preços_Index!E82),\"\"))","v":""},{"$f":"+IF(J29=\"\",\"\",IF(ERSE_Aux!$H$5=1,Preços_Index!H54,IF(ERSE_Aux!$H$5=2,Preços_Index!$H$67)))","v":""},{"$f":"+IF(J29=\"\",\"\",IF(ERSE_Aux!$H$5=1,Preços_Index!I54,IF(ERSE_Aux!$H$5=2,Preços_Index!$I$67)))","v":""},{"$f":"+IF(J29=\"\",\"\",IF(ERSE_Aux!$H$5=1,Preços_Index!J54,IF(ERSE_Aux!$H$5=2,Preços_Index!$J$67)))","v":""},{"$f":"IF(J29=\"\",\"\",IF(AND(Detalhe!$C$54=2,Detalhe!$C$62=2),\"\",IF(OR(Detalhe!$C$54=2,Detalhe!$C$62=2),IF(Preços_Index!$H$23=\"\",\"\",Preços_Index!$H$23),\"\")))","v":""},{"$f":"IF(J29=\"\",\"\",IF(AND(Detalhe!$C$54=2,Detalhe!$C$62=2),\"\",IF(OR(Detalhe!$C$54=2,Detalhe!$C$62=2),IF(Preços_Index!$I$23=\"\",\"\",Preços_Index!$I$23),\"\")))","v":""},{"$f":"+IF(J29=\"\",\"\",IF(AND(Detalhe!$C$54=2,Detalhe!$C$62=2),\"\",IF(OR(Detalhe!$C$54=2,Detalhe!$C$62=2),IF(Preços_Index!$J$23=\"\",\"\",Preços_Index!$J$23),\"\")))","v":""},{"$f":"+IF(N29=\"\",\"\",IF(ERSE_Aux!$H$5=1,Preços_Index!H26,IF(ERSE_Aux!$H$5=2,Preços_Index!$H$24)))","v":""},{"$f":"+IF(L29=\"\",\"\",IF(ERSE_Aux!$H$5=1,Preços_Index!I26,IF(ERSE_Aux!$H$5=2,Preços_Index!$I$24)))","v":""},{"$f":"+IF(M29=\"\",\"\",IF(ERSE_Aux!$H$5=1,Preços_Index!J26,IF(ERSE_Aux!$H$5=2,Preços_Index!$J$24)))","v":""},{"$f":"+IF(N29=\"\",\"\",IF(ERSE_Aux!$H$5=1,Preços_Index!H39,IF(ERSE_Aux!$H$5=2,Preços_Index!$H$25)))","v":""},{"$f":"+IF(L29=\"\",\"\",IF(ERSE_Aux!$H$5=1,Preços_Index!I39,IF(ERSE_Aux!$H$5=2,Preços_Index!$I$25)))","v":""},{"$f":"+IF(M29=\"\",\"\",IF(ERSE_Aux!$H$5=1,Preços_Index!J39,IF(ERSE_Aux!$H$5=2,Preços_Index!$J$25)))","v":""},{"$f":"+IF(N29=\"\",\"\",Preços_Index!$H$52)","v":""},{"$f":"+IF(O29=\"\",\"\",Preços_Index!$I$52)","v":""},{"$f":"+IF(P29=\"\",\"\",Preços_Index!$J$52)","v":""}]
[null,28,{"$f":"+IF(Detalhe!$C$4=\"\",\"\",Detalhe!$C$4)","v":""},"",2.2999999999999998,null,null,{"$f":"+ERSE_Precos_Index!$D30&\"_\"&ERSE_Aux!$C$3","v":{"$error":"#N/A"}},{"$f":"+I29","v":3},{"$f":"+IF(AND(Detalhe!$C$54=2,Detalhe!$C$62=2),\"\",IF(OR(Detalhe!$C$54=2,Detalhe!$C$62=2),IF(Preços_Index!F82=\"\",\"\",Preços_Index!F82),\"\"))","v":""},{"$f":"+IF(J30=\"\",\"\",IF(ERSE_Aux!$H$5=1,Preços_Index!H55,IF(ERSE_Aux!$H$5=2,Preços_Index!$H$67)))","v":""},{"$f":"+IF(J30=\"\",\"\",IF(ERSE_Aux!$H$5=1,Preços_Index!I55,IF(ERSE_Aux!$H$5=2,Preços_Index!$I$67)))","v":""},{"$f":"+IF(J30=\"\",\"\",IF(ERSE_Aux!$H$5=1,Preços_Index!J55,IF(ERSE_Aux!$H$5=2,Preços_Index!$J$67)))","v":""},{"$f":"IF(J30=\"\",\"\",IF(AND(Detalhe!$C$54=2,Detalhe!$C$62=2),\"\",IF(OR(Detalhe!$C$54=2,Detalhe!$C$62=2),IF(Preços_Index!$H$23=\"\",\"\",Preços_Index!$H$23),\"\")))","v":""},{"$f":"IF(J30=\"\",\"\",IF(AND(Detalhe!$C$54=2,Detalhe!$C$62=2),\"\",IF(OR(Detalhe!$C$54=2,Detalhe!$C$62=2),IF(Preços_Index!$I$23=\"\",\"\",Preços_Index!$I$23),\"\")))","v":""},{"$f":"+IF(J30=\"\",\"\",IF(AND(Detalhe!$C$54=2,Detalhe!$C$62=2),\"\",IF(OR(Detalhe!$C$54=2,Detalhe!$C$62=2),IF(Preços_Index!$J$23=\"\",\"\",Preços_Index!$J$23),\"\")))","v":""},{"$f":"+IF(N30=\"\",\"\",IF(ERSE_Aux!$H$5=1,Preços_Index!H27,IF(ERSE_Aux!$H$5=2,Preços_Index!$H$24)))","v":""},{"$f":"+IF(L30=\"\",\"\",IF(ERSE_Aux!$H$5=1,Preços_Index!I27,IF(ERSE_Aux!$H$5=2,Preços_Index!$I$24)))","v":""},{"$f":"+IF(M30=\"\",\"\",IF(ERSE_Aux!$H$5=1,Preços_Index!J27,IF(ERSE_Aux!$H$5=2,Preços_Index!$J$24)))","v":""},{"$f":"+IF(N30=\"\",\"\",IF(ERSE_Aux!$H$5=1,Preços_Index!H40,IF(ERSE_Aux!$H$5=2,Preços_Index!$H$25)))","v":""},{"$f":"+IF(L30=\"\",\"\",IF(ERSE_Aux!$H$5=1,Preços_Index!I40,IF(ERSE_Aux!$H$5=2,Preços_Index!$I$25)))","v":""},{"$f":"+IF(M30=\"\",\"\",IF(ERSE_Aux!$H$5=1,Preços_Index!J40,IF(ERSE_Aux!$H$5=2,Preços_Index!$J$25)))","v":""},{"$f":"+IF(N30=\"\",\"\",Preços_Index!$H$52)","v":""},{"$f":"+IF(O30=\"\",\"\",Preços_Index!$I$52)","v":""},{"$f":"+IF(P30=\"\",\"\",Preços_Index!$J$52)","v":""}]
[null,29,{"$f":"+IF(Detalhe!$C$4=\"\",\"\",Detalhe!$C$4)","v":""},"",3.45,null,null,{"$f":"+ERSE_Precos_Index!$D31&\"_\"&ERSE_Aux!$C$3","v":{"$error":"#N/A"}},{"$f":"+I30","v":3},{"$f":"+IF(AND(Detalhe!$C$54=2,Detalhe!$C$62=2),\"\",IF(OR(Detalhe!$C$54=2,Detalhe!$C$62=2),IF(Preços_Index!G82=\"\",\"\",Preços_Index!G82),\"\"))","v":""},{"$f":"+IF(J31=\"\",\"\",IF(ERSE_Aux!$H$5=1,Preços_Index!H56,IF(ERSE_Aux!$H$5=2,Preços_Index!$H$67)))","v":""},{"$f":"+IF(J31=\"\",\"\",IF(ERSE_Aux!$H$5=1,Preços_Index!I56,IF(ERSE_Aux!$H$5=2,Preços_Index!$I$67)))","v":""},{"$f":"+IF(J31=\"\",\"\",IF(ERSE_Aux!$H$5=1,Preços_Index!J56,IF(ERSE_Aux!$H$5=2,Preços_Index!$J$67)))","v":""},{"$f":"IF(J31=\"\",\"\",IF(AND(Detalhe!$C$54=2,Detalhe!$C$62=2),\"\",IF(OR(Detalhe!$C$54=2,Detalhe!$C$62=2),IF(Preços_Index!$H$23=\"\",\"\",Preços_Index!$H$23),\"\")))","v":""},{"$f":"IF(J31=\"\",\"\",IF(AND(Detalhe!$C$54=2,Detalhe!$C$62=2),\"\",IF(OR(Detalhe!$C$54=2,Detalhe!$C$62=2),IF(Preços_Index!$I$23=\"\",\"\",Preços_Index!$I$23),\"\")))","v":""},{"$f":"+IF(J31=\"\",\"\",IF(AND(Detalhe!$C$54=2,Detalhe!$C$62=2),\"\",IF(OR(Detalhe!$C$54=2,Detalhe!$C$62=2),IF(Preços_Index!$J$23=\"\",\"\",Preços_Index!$J$23),\"\")))","v":""},{"$f":"+IF(N31=\"\",\"\",IF(ERSE_Aux!$H$5=1,Preços_Index!H28,IF(ERSE_Aux!$H$5=2,Preços_Index!$H$24)))","v":""},{"$f":"+IF(L31=\"\",\"\",IF(ERSE_Aux!$H$5=1,Preços_Index!I28,IF(ERSE_Aux!$H$5=2,Preços_Index!$I$24)))","v":""},{"$f":"+IF(M31=\"\",\"\",IF(ERSE_Aux!$H$5=1,Preços_Index!J28,IF(ERSE_Aux!$H$5=2,Preços_Index!$J$24)))","v":""},{"$f":"+IF(N31=\"\",\"\",IF(ERSE_Aux!$H$5=1,Preços_Index!H41,IF(ERSE_Aux!$H$5=2,Preços_Index!$H$25)))","v":""},{"$f":"+IF(L31=\"\",\"\",IF(ERSE_Aux!$H$5=1,Preços_Index!I41,IF(ERSE_Aux!$H$5=2,Preços_Index!$I$25)))","v":""},{"$f":"+IF(M31=\"\",\"\",IF(ERSE_Aux!$H$5=1,Preços_Index!J41,IF(ERSE_Aux!$H$5=2,Preços_Index!$J$25)))","v":""},{"$f":"+IF(N31=\"\",\"\",Preços_Index!$H$52)","v":""},{"$f":"+IF(O31=\"\",\"\",Preços_Index!$I$52)","v":""},{"$f":"+IF(P31=\"\",\"\",Preços_Index!$J$52)","v":""}]
[null,30,{"$f":"+IF(Detalhe!$C$4=\"\",\"\",Detalhe!$C$4)","v":""},"",4.5999999999999996,null,null,{"$f":"+ERSE_Precos_Index!$D32&\"_\"&ERSE_Aux!$C$3","v":{"$error":"#N/A"}},3,{"$f":"+IF(AND(Detalhe!$C$54=2,Detalhe!$C$62=2),\"\",IF(OR(Detalhe!$C$54=2,Detalhe!$C$62=2),IF(Preços_Index!H82=\"\",\"\",Preços_Index!H82),\"\"))","v":""},{"$f":"+IF(J32=\"\",\"\",IF(ERSE_Aux!$H$5=1,Preços_Index!H57,IF(ERSE_Aux!$H$5=2,Preços_Index!$H$67)))","v":""},{"$f":"+IF(J32=\"\",\"\",IF(ERSE_Aux!$H$5=1,Preços_Index!I57,IF(ERSE_Aux!$H$5=2,Preços_Index!$I$67)))","v":""},{"$f":"+IF(J32=\"\",\"\",IF(ERSE_Aux!$H$5=1,Preços_Index!J57,IF(ERSE_Aux!$H$5=2,Preços_Index!$J$67)))","v":""},{"$f":"IF(J32=\"\",\"\",IF(AND(Detalhe!$C$54=2,Detalhe!$C$62=2),\"\",IF(OR(Detalhe!$C$54=2,Detalhe!$C$62=2),IF(Preços_Index!$H$23=\"\",\"\",Preços_Index!$H$23),\"\")))","v":""},{"$f":"IF(J32=\"\",\"\",IF(AND(Detalhe!$C$54=2,Detalhe!$C$62=2),\"\",IF(OR(Detalhe!$C$54=2,Detalhe!$C$62=2),IF(Preços_Index!$I$23=\"\",\"\",Preços_Index!$I$23),\"\")))","v":""},{"$f":"+IF(J32=\"\",\"\",IF(AND(Detalhe!$C$54=2,Detalhe!$C$62=2),\"\",IF(OR(Detalhe!$C$54=2,Detalhe!$C$62=2),IF(Preços_Index!$J$23=\"\",\"\",Preços_Index!$J$23),\"\")))","v":""},{"$f":"+IF(N32=\"\",\"\",IF(ERSE_Aux!$H$5=1,Preços_Index!H29,IF(ERSE_Aux!$H$5=2,Preços_Index!$H$24)))","v":""},{"$f":"+IF(L32=\"\",\"\",IF(ERSE_Aux!$H$5=1,Preços_Index!I29,IF(ERSE_Aux!$H$5=2,Preços_Index!$I$24)))","v":""},{"$f":"+IF(M32=\"\",\"\",IF(ERSE_Aux!$H$5=1,Preços_Index!J29,IF(ERSE_Aux!$H$5=2,Preços_Index!$J$24)))","v":""},{"$f":"+IF(N32=\"\",\"\",IF(ERSE_Aux!$H$5=1,Preços_Index!H42,IF(ERSE_Aux!$H$5=2,Preços_Index!$H$25)))","v":""},{"$f":"+IF(L32=\"\",\"\",IF(ERSE_Aux!$H$5=1,Preços_Index!I42,IF(ERSE_Aux!$H$5=2,Preços_Index!$I$25)))","v":""},{"$f":"+IF(M32=\"\",\"\",IF(ERSE_Aux!$H$5=1,Preços_Index!J42,IF(ERSE_Aux!$H$5=2,Preços_Index!$J$25)))","v":""},{"$f":"+IF(N32=\"\",\"\",Preços_Index!$H$52)","v":""},{"$f":"+IF(O32=\"\",\"\",Preços_Index!$I$52)","v":""},{"$f":"+IF(P32=\"\",\"\",Preços_Index!$J$52)","v":""}]
[null,31,{"$f":"+IF(Detalhe!$C$4=\"\",\"\",Detalhe!$C$4)","v":""},"",5.75,null,null,{"$f":"+ERSE_Precos_Index!$D33&\"_\"&ERSE_Aux!$C$3","v":{"$error":"#N/A"}},3,{"$f":"+IF(AND(Detalhe!$C$54=2,Detalhe!$C$62=2),\"\",IF(OR(Detalhe!$C$54=2,Detalhe!$C$62=2),IF(Preços_Index!I82=\"\",\"\",Preços_Index!I82),\"\"))","v":""},{"$f":"+IF(J33=\"\",\"\",IF(ERSE_Aux!$H$5=1,Preços_Index!H58,IF(ERSE_Aux!$H$5=2,Preços_Index!$H$67)))","v":""},{"$f":"+IF(J33=\"\",\"\",IF(ERSE_Aux!$H$5=1,Preços_Index!I58,IF(ERSE_Aux!$H$5=2,Preços_Index!$I$67)))","v":""},{"$f":"+IF(J33=\"\",\"\",IF(ERSE_Aux!$H$5=1,Preços_Index!J58,IF(ERSE_Aux!$H$5=2,Preços_Index!$J$67)))","v":""},{"$f":"IF(J33=\"\",\"\",IF(AND(Detalhe!$C$54=2,Detalhe!$C$62=2),\"\",IF(OR(Detalhe!$C$54=2,Detalhe!$C$62=2),IF(Preços_Index!$H$23=\"\",\"\",Preços_Index!$H$23),\"\")))","v":""},{"$f":"IF(J33=\"\",\"\",IF(AND(Detalhe!$C$54=2,Detalhe!$C$62=2),\"\",IF(OR(Detalhe!$C$54=2,Detalhe!$C$62=2),IF(Preços_Index!$I$23=\"\",\"\",Preços_Index!$I$23),\"\")))","v":""},{"$f":"+IF(J33=\"\",\"\",IF(AND(Detalhe!$C$54=2,Detalhe!$C$62=2),\"\",IF(OR(Detalhe!$C$54=2,Detalhe!$C$62=2),IF(Preços_Index!$J$23=\"\",\"\",Preços_Index!$J$23),\"\")))","v":""},{"$f":"+IF(N33=\"\",\"\",IF(ERSE_Aux!$H$5=1,Preços_Index!H30,IF(ERSE_Aux!$H$5=2,Preços_Index!$H$24)))","v":""},{"$f":"+IF(L33=\"\",\"\",IF(ERSE_Aux!$H$5=1,Preços_Index!I30,IF(ERSE_Aux!$H$5=2,Preços_Index!$I$24)))","v":""},{"$f":"+IF(M33=\"\",\"\",IF(ERSE_Aux!$H$5=1,Preços_Index!J30,IF(ERSE_Aux!$H$5=2,Preços_Index!$J$24)))","v":""},{"$f":"+IF(N33=\"\",\"\",IF(ERSE_Aux!$H$5=1,Preços_Index!H43,IF(ERSE_Aux!$H$5=2,Preços_Index!$H$25)))","v":""},{"$f":"+IF(L33=\"\",\"\",IF(ERSE_Aux!$H$5=1,Preços_Index!I43,IF(ERSE_Aux!$H$5=2,Preços_Index!$I$25)))","v":""},{"$f":"+IF(M33=\"\",\"\",IF(ERSE_Aux!$H$5=1,Preços_Index!J43,IF(ERSE_Aux!$H$5=2,Preços_Index!$J$25)))","v":""},{"$f":"+IF(N33=\"\",\"\",Preços_Index!$H$52)","v":""},{"$f":"+IF(O33=\"\",\"\",Preços_Index!$I$52)","v":""},{"$f":"+IF(P33=\"\",\"\",Preços_Index!$J$52)","v":""}]
[null,32,{"$f":"+IF(Detalhe!$C$4=\"\",\"\",Detalhe!$C$4)","v":""},"",6.9,null,null,{"$f":"+ERSE_Precos_Index!$D34&\"_\"&ERSE_Aux!$C$3","v":{"$error":"#N/A"}},3,{"$f":"+IF(AND(Detalhe!$C$54=2,Detalhe!$C$62=2),\"\",IF(OR(Detalhe!$C$54=2,Detalhe!$C$62=2),IF(Preços_Index!J82=\"\",\"\",Preços_Index!J82),\"\"))","v":""},{"$f":"+IF(J34=\"\",\"\",IF(ERSE_Aux!$H$5=1,Preços_Index!H59,IF(ERSE_Aux!$H$5=2,Preços_Index!$H$67)))","v":""},{"$f":"+IF(J34=\"\",\"\",IF(ERSE_Aux!$H$5=1,Preços_Index!I59,IF(ERSE_Aux!$H$5=2,Preços_Index!$I$67)))","v":""},{"$f":"+IF(J34=\"\",\"\",IF(ERSE_Aux!$H$5=1,Preços_Index!J59,IF(ERSE_Aux!$H$5=2,Preços_Index!$J$67)))","v":""},{"$f":"IF(J34=\"\",\"\",IF(AND(Detalhe!$C$54=2,Detalhe!$C$62=2),\"\",IF(OR(Detalhe!$C$54=2,Detalhe!$C$62=2),IF(Preços_Index!$H$23=\"\",\"\",Preços_Index!$H$23),\"\")))","v":""},{"$f":"IF(J34=\"\",\"\",IF(AND(Detalhe!$C$54=2,Detalhe!$C$62=2),\"\",IF(OR(Detalhe!$C$54=2,Detalhe!$C$62=2),IF(Preços_Index!$I$23=\"\",\"\",Preços_Index!$I$23),\"\")))","v":""},{"$f":"+IF(J34=\"\",\"\",IF(AND(Detalhe!$C$54=2,Detalhe!$C$62=2),\"\",IF(OR(Detalhe!$C$54=2,Detalhe!$C$62=2),IF(Preços_Index!$J$23=\"\",\"\",Preços_Index!$J$23),\"\")))","v":""},{"$f":"+IF(N34=\"\",\"\",IF(ERSE_Aux!$H$5=1,Preços_Index!H31,IF(ERSE_Aux!$H$5=2,Preços_Index!$H$24)))","v":""},{"$f":"+IF(L34=\"\",\"\",IF(ERSE_Aux!$H$5=1,Preços_Index!I31,IF(ERSE_Aux!$H$5=2,Preços_Index!$I$24)))","v":""},{"$f":"+IF(M34=\"\",\"\",IF(ERSE_Aux!$H$5=1,Preços_Index!J31,IF(ERSE_Aux!$H$5=2,Preços_Index!$J$24)))","v":""},{"$f":"+IF(N34=\"\",\"\",IF(ERSE_Aux!$H$5=1,Preços_Index!H44,IF(ERSE_Aux!$H$5=2,Preços_Index!$H$25)))","v":""},{"$f":"+IF(L34=\"\",\"\",IF(ERSE_Aux!$H$5=1,Preços_Index!I44,IF(ERSE_Aux!$H$5=2,Preços_Index!$I$25)))","v":""},{"$f":"+IF(M34=\"\",\"\",IF(ERSE_Aux!$H$5=1,Preços_Index!J44,IF(ERSE_Aux!$H$5=2,Preços_Index!$J$25)))","v":""},{"$f":"+IF(N34=\"\",\"\",Preços_Index!$H$52)","v":""},{"$f":"+IF(O34=\"\",\"\",Preços_Index!$I$52)","v":""},{"$f":"+IF(P34=\"\",\"\",Preços_Index!$J$52)","v":""}]
[null,33,{"$f":"+IF(Detalhe!$C$4=\"\",\"\",Detalhe!$C$4)","v":""},"",10.35,null,null,{"$f":"+ERSE_Precos_Index!$D35&\"_\"&ERSE_Aux!$C$3","v":{"$error":"#N/A"}},3,{"$f":"+IF(AND(Detalhe!$C$54=2,Detalhe!$C$62=2),\"\",IF(OR(Detalhe!$C$54=2,Detalhe!$C$62=2),IF(Preços_Index!K82=\"\",\"\",Preços_Index!K82),\"\"))","v":""},{"$f":"+IF(J35=\"\",\"\",IF(ERSE_Aux!$H$5=1,Preços_Index!H60,IF(ERSE_Aux!$H$5=2,Preços_Index!$H$67)))","v":""},{"$f":"+IF(J35=\"\",\"\",IF(ERSE_Aux!$H$5=1,Preços_Index!I60,IF(ERSE_Aux!$H$5=2,Preços_Index!$I$67)))","v":""},{"$f":"+IF(J35=\"\",\"\",IF(ERSE_Aux!$H$5=1,Preços_Index!J60,IF(ERSE_Aux!$H$5=2,Preços_Index!$J$67)))","v":""},{"$f":"IF(J35=\"\",\"\",IF(AND(Detalhe!$C$54=2,Detalhe!$C$62=2),\"\",IF(OR(Detalhe!$C$54=2,Detalhe!$C$62=2),IF(Preços_Index!$H$23=\"\",\"\",Preços_Index!$H$23),\"\")))","v":""},{"$f":"IF(J35=\"\",\"\",IF(AND(Detalhe!$C$54=2,Detalhe!$C$62=2),\"\",IF(OR(Detalhe!$C$54=2,Detalhe!$C$62=2),IF(Preços_Index!$I$23=\"\",\"\",Preços_Index!$I$23),\"\")))","v":""},{"$f":"+IF(J35=\"\",\"\",IF(AND(Detalhe!$C$54=2,Detalhe!$C$62=2),\"\",IF(OR(Detalhe!$C$54=2,Detalhe!$C$62=2),IF(Preços_Index!$J$23=\"\",\"\",Preços_Index!$J$23),\"\")))","v":""},{"$f":"+IF(N35=\"\",\"\",IF(ERSE_Aux!$H$5=1,Preços_Index!H32,IF(ERSE_Aux!$H$5=2,Preços_Index!$H$24)))","v":""},{"$f":"+IF(L35=\"\",\"\",IF(ERSE_Aux!$H$5=1,Preços_Index!I32,IF(ERSE_Aux!$H$5=2,Preços_Index!$I$24)))","v":""},{"$f":"+IF(M35=\"\",\"\",IF(ERSE_Aux!$H$5=1,Preços_Index!J32,IF(ERSE_Aux!$H$5=2,Preços_Index!$J$24)))","v":""},{"$f":"+IF(N35=\"\",\"\",IF(ERSE_Aux!$H$5=1,Preços_Index!H45,IF(ERSE_Aux!$H$5=2,Preços_Index!$H$25)))","v":""},{"$f":"+IF(L35=\"\",\"\",IF(ERSE_Aux!$H$5=1,Preços_Index!I45,IF(ERSE_Aux!$H$5=2,Preços_Index!$I$25)))","v":""},{"$f":"+IF(M35=\"\",\"\",IF(ERSE_Aux!$H$5=1,Preços_Index!J45,IF(ERSE_Aux!$H$5=2,Preços_Index!$J$25)))","v":""},{"$f":"+IF(N35=\"\",\"\",Preços_Index!$H$52)","v":""},{"$f":"+IF(O35=\"\",\"\",Preços_Index!$I$52)","v":""},{"$f":"+IF(P35=\"\",\"\",Preços_Index!$J$52)","v":""}]
[null,34,{"$f":"+IF(Detalhe!$C$4=\"\",\"\",Detalhe!$C$4)","v":""},"",13.8,null,null,{"$f":"+ERSE_Precos_Index!$D36&\"_\"&ERSE_Aux!$C$3","v":{"$error":"#N/A"}},3,{"$f":"+IF(AND(Detalhe!$C$54=2,Detalhe!$C$62=2),\"\",IF(OR(Detalhe!$C$54=2,Detalhe!$C$62=2),IF(Preços_Index!L82=\"\",\"\",Preços_Index!L82),\"\"))","v":""},{"$f":"+IF(J36=\"\",\"\",IF(ERSE_Aux!$H$5=1,Preços_Index!H61,IF(ERSE_Aux!$H$5=2,Preços_Index!$H$67)))","v":""},{"$f":"+IF(J36=\"\",\"\",IF(ERSE_Aux!$H$5=1,Preços_Index!I61,IF(ERSE_Aux!$H$5=2,Preços_Index!$I$67)))","v":""},{"$f":"+IF(J36=\"\",\"\",IF(ERSE_Aux!$H$5=1,Preços_Index!J61,IF(ERSE_Aux!$H$5=2,Preços_Index!$J$67)))","v":""},{"$f":"IF(J36=\"\",\"\",IF(AND(Detalhe!$C$54=2,Detalhe!$C$62=2),\"\",IF(OR(Detalhe!$C$54=2,Detalhe!$C$62=2),IF(Preços_Index!$H$23=\"\",\"\",Preços_Index!$H$23),\"\")))","v":""},{"$f":"IF(J36=\"\",\"\",IF(AND(Detalhe!$C$54=2,Detalhe!$C$62=2),\"\",IF(OR(Detalhe!$C$54=2,Detalhe!$C$62=2),IF(Preços_Index!$I$23=\"\",\"\",Preços_Index!$I$23),\"\")))","v":""},{"$f":"+IF(J36=\"\",\"\",IF(AND(Detalhe!$C$54=2,Detalhe!$C$62=2),\"\",IF(OR(Detalhe!$C$54=2,Detalhe!$C$62=2),IF(Preços_Index!$J$23=\"\",\"\",Preços_Index!$J$23),\"\")))","v":""},{"$f":"+IF(N36=\"\",\"\",IF(ERSE_Aux!$H$5=1,Preços_Index!H33,IF(ERSE_Aux!$H$5=2,Preços_Index!$H$24)))","v":""},{"$f":"+IF(L36=\"\",\"\",IF(ERSE_Aux!$H$5=1,Preços_Index!I33,IF(ERSE_Aux!$H$5=2,Preços_Index!$I$24)))","v":""},{"$f":"+IF(M36=\"\",\"\",IF(ERSE_Aux!$H$5=1,Preços_Index!J33,IF(ERSE_Aux!$H$5=2,Preços_Index!$J$24)))","v":""},{"$f":"+IF(N36=\"\",\"\",IF(ERSE_Aux!$H$5=1,Preços_Index!H46,IF(ERSE_Aux!$H$5=2,Preços_Index!$H$25)))","v":""},{"$f":"+IF(L36=\"\",\"\",IF(ERSE_Aux!$H$5=1,Preços_Index!I46,IF(ERSE_Aux!$H$5=2,Preços_Index!$I$25)))","v":""},{"$f":"+IF(M36=\"\",\"\",IF(ERSE_Aux!$H$5=1,Preços_Index!J46,IF(ERSE_Aux!$H$5=2,Preços_Index!$J$25)))","v":""},{"$f":"+IF(N36=\"\",\"\",Preços_Index!$H$52)","v":""},{"$f":"+IF(O36=\"\",\"\",Preços_Index!$I$52)","v":""},{"$f":"+IF(P36=\"\",\"\",Preços_Index!$J$52)","v":""}]
[null,35,{"$f":"+IF(Detalhe!$C$4=\"\",\"\",Detalhe!$C$4)","v":""},"",17.25,null,null,{"$f":"+ERSE_Precos_Index!$D37&\"_\"&ERSE_Aux!$C$3","v":{"$error":"#N/A"}},3,{"$f":"+IF(AND(Detalhe!$C$54=2,Detalhe!$C$62=2),\"\",IF(OR(Detalhe!$C$54=2,Detalhe!$C$62=2),IF(Preços_Index!M82=\"\",\"\",Preços_Index!M82),\"\"))","v":""},{"$f":"+IF(J37=\"\",\"\",IF(ERSE_Aux!$H$5=1,Preços_Index!H62,IF(ERSE_Aux!$H$5=2,Preços_Index!$H$67)))","v":""},{"$f":"+IF(J37=\"\",\"\",IF(ERSE_Aux!$H$5=1,Preços_Index!I62,IF(ERSE_Aux!$H$5=2,Preços_Index!$I$67)))","v":""},{"$f":"+IF(J37=\"\",\"\",IF(ERSE_Aux!$H$5=1,Preços_Index!J62,IF(ERSE_Aux!$H$5=2,Preços_Index!$J$67)))","v":""},{"$f":"IF(J37=\"\",\"\",IF(AND(Detalhe!$C$54=2,Detalhe!$C$62=2),\"\",IF(OR(Detalhe!$C$54=2,Detalhe!$C$62=2),IF(Preços_Index!$H$23=\"\",\"\",Preços_Index!$H$23),\"\")))","v":""},{"$f":"IF(J37=\"\",\"\",IF(AND(Detalhe!$C$54=2,Detalhe!$C$62=2),\"\",IF(OR(Detalhe!$C$54=2,Detalhe!$C$62=2),IF(Preços_Index!$I$23=\"\",\"\",Preços_Index!$I$23),\"\")))","v":""},{"$f":"+IF(J37=\"\",\"\",IF(AND(Detalhe!$C$54=2,Detalhe!$C$62=2),\"\",IF(OR(Detalhe!$C$54=2,Detalhe!$C$62=2),IF(Preços_Index!$J$23=\"\",\"\",Preços_Index!$J$23),\"\")))","v":""},{"$f":"+IF(N37=\"\",\"\",IF(ERSE_Aux!$H$5=1,Preços_Index!H34,IF(ERSE_Aux!$H$5=2,Preços_Index!$H$24)))","v":""},{"$f":"+IF(L37=\"\",\"\",IF(ERSE_Aux!$H$5=1,Preços_Index!I34,IF(ERSE_Aux!$H$5=2,Preços_Index!$I$24)))","v":""},{"$f":"+IF(M37=\"\",\"\",IF(ERSE_Aux!$H$5=1,Preços_Index!J34,IF(ERSE_Aux!$H$5=2,Preços_Index!$J$24)))","v":""},{"$f":"+IF(N37=\"\",\"\",IF(ERSE_Aux!$H$5=1,Preços_Index!H47,IF(ERSE_Aux!$H$5=2,Preços_Index!$H$25)))","v":""},{"$f":"+IF(L37=\"\",\"\",IF(ERSE_Aux!$H$5=1,Preços_Index!I47,IF(ERSE_Aux!$H$5=2,Preços_Index!$I$25)))","v":""},{"$f":"+IF(M37=\"\",\"\",IF(ERSE_Aux!$H$5=1,Preços_Index!J47,IF(ERSE_Aux!$H$5=2,Preços_Index!$J$25)))","v":""},{"$f":"+IF(N37=\"\",\"\",Preços_Index!$H$52)","v":""},{"$f":"+IF(O37=\"\",\"\",Preços_Index!$I$52)","v":""},{"$f":"+IF(P37=\"\",\"\",Preços_Index!$J$52)","v":""}]
[null,36,{"$f":"+IF(Detalhe!$C$4=\"\",\"\",Detalhe!$C$4)","v":""},"",20.7,null,null,{"$f":"+ERSE_Precos_Index!$D38&\"_\"&ERSE_Aux!$C$3","v":{"$error":"#N/A"}},3,{"$f":"+IF(AND(Detalhe!$C$54=2,Detalhe!$C$62=2),\"\",IF(OR(Detalhe!$C$54=2,Detalhe!$C$62=2),IF(Preços_Index!N82=\"\",\"\",Preços_Index!N82),\"\"))","v":""},{"$f":"+IF(J38=\"\",\"\",IF(ERSE_Aux!$H$5=1,Preços_Index!H63,IF(ERSE_Aux!$H$5=2,Preços_Index!$H$67)))","v":""},{"$f":"+IF(J38=\"\",\"\",IF(ERSE_Aux!$H$5=1,Preços_Index!I63,IF(ERSE_Aux!$H$5=2,Preços_Index!$I$67)))","v":""},{"$f":"+IF(J38=\"\",\"\",IF(ERSE_Aux!$H$5=1,Preços_Index!J63,IF(ERSE_Aux!$H$5=2,Preços_Index!$J$67)))","v":""},{"$f":"IF(J38=\"\",\"\",IF(AND(Detalhe!$C$54=2,Detalhe!$C$62=2),\"\",IF(OR(Detalhe!$C$54=2,Detalhe!$C$62=2),IF(Preços_Index!$H$23=\"\",\"\",Preços_Index!$H$23),\"\")))","v":""},{"$f":"IF(J38=\"\",\"\",IF(AND(Detalhe!$C$54=2,Detalhe!$C$62=2),\"\",IF(OR(Detalhe!$C$54=2,Detalhe!$C$62=2),IF(Preços_Index!$I$23=\"\",\"\",Preços_Index!$I$23),\"\")))","v":""},{"$f":"+IF(J38=\"\",\"\",IF(AND(Detalhe!$C$54=2,Detalhe!$C$62=2),\"\",IF(OR(Detalhe!$C$54=2,Detalhe!$C$62=2),IF(Preços_Index!$J$23=\"\",\"\",Preços_Index!$J$23),\"\")))","v":""},{"$f":"+IF(N38=\"\",\"\",IF(ERSE_Aux!$H$5=1,Preços_Index!H35,IF(ERSE_Aux!$H$5=2,Preços_Index!$H$24)))","v":""},{"$f":"+IF(L38=\"\",\"\",IF(ERSE_Aux!$H$5=1,Preços_Index!I35,IF(ERSE_Aux!$H$5=2,Preços_Index!$I$24)))","v":""},{"$f":"+IF(M38=\"\",\"\",IF(ERSE_Aux!$H$5=1,Preços_Index!J35,IF(ERSE_Aux!$H$5=2,Preços_Index!$J$24)))","v":""},{"$f":"+IF(N38=\"\",\"\",IF(ERSE_Aux!$H$5=1,Preços_Index!H48,IF(ERSE_Aux!$H$5=2,Preços_Index!$H$25)))","v":""},{"$f":"+IF(L38=\"\",\"\",IF(ERSE_Aux!$H$5=1,Preços_Index!I48,IF(ERSE_Aux!$H$5=2,Preços_Index!$I$25)))","v":""},{"$f":"+IF(M38=\"\",\"\",IF(ERSE_Aux!$H$5=1,Preços_Index!J48,IF(ERSE_Aux!$H$5=2,Preços_Index!$J$25)))","v":""},{"$f":"+IF(N38=\"\",\"\",Preços_Index!$H$52)","v":""},{"$f":"+IF(O38=\"\",\"\",Preços_Index!$I$52)","v":""},{"$f":"+IF(P38=\"\",\"\",Preços_Index!$J$52)","v":""}]
[null,37,{"$f":"+IF(Detalhe!$C$4=\"\",\"\",Detalhe!$C$4)","v":""},"",27.6,null,null,{"$f":"+ERSE_Precos_Index!$D39&\"_\"&ERSE_Aux!$C$3","v":{"$error":"#N/A"}},3,{"$f":"+IF(AND(Detalhe!$C$54=2,Detalhe!$C$62=2),\"\",IF(OR(Detalhe!$C$54=2,Detalhe!$C$62=2),IF(Preços_Index!O82=\"\",\"\",Preços_Index!O82),\"\"))","v":""},{"$f":"+IF(J39=\"\",\"\",IF(ERSE_Aux!$H$5=1,Preços_Index!H64,IF(ERSE_Aux!$H$5=2,Preços_Index!$H$68)))","v":""},{"$f":"+IF(J39=\"\",\"\",IF(ERSE_Aux!$H$5=1,Preços_Index!I64,IF(ERSE_Aux!$H$5=2,Preços_Index!$I$68)))","v":""},{"$f":"+IF(J39=\"\",\"\",IF(ERSE_Aux!$H$5=1,Preços_Index!J64,IF(ERSE_Aux!$H$5=2,Preços_Index!$J$68)))","v":""},{"$f":"IF(J39=\"\",\"\",IF(AND(Detalhe!$C$54=2,Detalhe!$C$62=2),\"\",IF(OR(Detalhe!$C$54=2,Detalhe!$C$62=2),IF(Preços_Index!$H$23=\"\",\"\",Preços_Index!$H$23),\"\")))","v":""},{"$f":"IF(J39=\"\",\"\",IF(AND(Detalhe!$C$54=2,Detalhe!$C$62=2),\"\",IF(OR(Detalhe!$C$54=2,Detalhe!$C$62=2),IF(Preços_Index!$I$23=\"\",\"\",Preços_Index!$I$23),\"\")))","v":""},{"$f":"+IF(J39=\"\",\"\",IF(AND(Detalhe!$C$54=2,Detalhe!$C$62=2),\"\",IF(OR(Detalhe!$C$54=2,Detalhe!$C$62=2),IF(Preços_Index!$J$23=\"\",\"\",Preços_Index!$J$23),\"\")))","v":""},{"$f":"+IF(N39=\"\",\"\",IF(ERSE_Aux!$H$5=1,Preços_Index!H36,IF(ERSE_Aux!$H$5=2,Preços_Index!$H$24)))","v":""},{"$f":"+IF(L39=\"\",\"\",IF(ERSE_Aux!$H$5=1,Preços_Index!I36,IF(ERSE_Aux!$H$5=2,Preços_Index!$I$24)))","v":""},{"$f":"+IF(M39=\"\",\"\",IF(ERSE_Aux!$H$5=1,Preços_Index!J36,IF(ERSE_Aux!$H$5=2,Preços_Index!$J$24)))","v":""},{"$f":"+IF(N39=\"\",\"\",IF(ERSE_Aux!$H$5=1,Preços_Index!H49,IF(ERSE_Aux!$H$5=2,Preços_Index!$H$25)))","v":""},{"$f":"+IF(L39=\"\",\"\",IF(ERSE_Aux!$H$5=1,Preços_Index!I49,IF(ERSE_Aux!$H$5=2,Preços_Index!$I$25)))","v":""},{"$f":"+IF(M39=\"\",\"\",IF(ERSE_Aux!$H$5=1,Preços_Index!J49,IF(ERSE_Aux!$H$5=2,Preços_Index!$J$25)))","v":""},{"$f":"+IF(N39=\"\",\"\",Preços_Index!$H$53)","v":""},{"$f":"+IF(O39=\"\",\"\",Preços_Index!$I$53)","v":""},{"$f":"+IF(P39=\"\",\"\",Preços_Index!$J$53)","v":""}]
[null,38,{"$f":"+IF(Detalhe!$C$4=\"\",\"\",Detalhe!$C$4)","v":""},"",34.5,null,null,{"$f":"+ERSE_Precos_Index!$D40&\"_\"&ERSE_Aux!$C$3","v":{"$error":"#N/A"}},3,{"$f":"+IF(AND(Detalhe!$C$54=2,Detalhe!$C$62=2),\"\",IF(OR(Detalhe!$C$54=2,Detalhe!$C$62=2),IF(Preços_Index!P82=\"\",\"\",Preços_Index!P82),\"\"))","v":""},{"$f":"+IF(J40=\"\",\"\",IF(ERSE_Aux!$H$5=1,Preços_Index!H65,IF(ERSE_Aux!$H$5=2,Preços_Index!$H$68)))","v":""},{"$f":"+IF(J40=\"\",\"\",IF(ERSE_Aux!$H$5=1,Preços_Index!I65,IF(ERSE_Aux!$H$5=2,Preços_Index!$I$68)))","v":""},{"$f":"+IF(J40=\"\",\"\",IF(ERSE_Aux!$H$5=1,Preços_Index!J65,IF(ERSE_Aux!$H$5=2,Preços_Index!$J$68)))","v":""},{"$f":"IF(J40=\"\",\"\",IF(AND(Detalhe!$C$54=2,Detalhe!$C$62=2),\"\",IF(OR(Detalhe!$C$54=2,Detalhe!$C$62=2),IF(Preços_Index!$H$23=\"\",\"\",Preços_Index!$H$23),\"\")))","v":""},{"$f":"IF(J40=\"\",\"\",IF(AND(Detalhe!$C$54=2,Detalhe!$C$62=2),\"\",IF(OR(Detalhe!$C$54=2,Detalhe!$C$62=2),IF(Preços_Index!$I$23=\"\",\"\",Preços_Index!$I$23),\"\")))","v":""},{"$f":"+IF(J40=\"\",\"\",IF(AND(Detalhe!$C$54=2,Detalhe!$C$62=2),\"\",IF(OR(Detalhe!$C$54=2,Detalhe!$C$62=2),IF(Preços_Index!$J$23=\"\",\"\",Preços_Index!$J$23),\"\")))","v":""},{"$f":"+IF(N40=\"\",\"\",IF(ERSE_Aux!$H$5=1,Preços_Index!H37,IF(ERSE_Aux!$H$5=2,Preços_Index!$H$24)))","v":""},{"$f":"+IF(L40=\"\",\"\",IF(ERSE_Aux!$H$5=1,Preços_Index!I37,IF(ERSE_Aux!$H$5=2,Preços_Index!$I$24)))","v":""},{"$f":"+IF(M40=\"\",\"\",IF(ERSE_Aux!$H$5=1,Preços_Index!J37,IF(ERSE_Aux!$H$5=2,Preços_Index!$J$24)))","v":""},{"$f":"+IF(N40=\"\",\"\",IF(ERSE_Aux!$H$5=1,Preços_Index!H50,IF(ERSE_Aux!$H$5=2,Preços_Index!$H$25)))","v":""},{"$f":"+IF(L40=\"\",\"\",IF(ERSE_Aux!$H$5=1,Preços_Index!I50,IF(ERSE_Aux!$H$5=2,Preços_Index!$I$25)))","v":""},{"$f":"+IF(M40=\"\",\"\",IF(ERSE_Aux!$H$5=1,Preços_Index!J50,IF(ERSE_Aux!$H$5=2,Preços_Index!$J$25)))","v":""},{"$f":"+IF(N40=\"\",\"\",Preços_Index!$H$53)","v":""},{"$f":"+IF(O40=\"\",\"\",Preços_Index!$I$53)","v":""},{"$f":"+IF(P40=\"\",\"\",Preços_Index!$J$53)","v":""}]
[null,39,{"$f":"+IF(Detalhe!$C$4=\"\",\"\",Detalhe!$C$4)","v":""},"",41.4,null,null,{"$f":"+ERSE_Precos_Index!$D41&\"_\"&ERSE_Aux!$C$3","v":{"$error":"#N/A"}},3,{"$f":"+IF(AND(Detalhe!$C$54=2,Detalhe!$C$62=2),\"\",IF(OR(Detalhe!$C$54=2,Detalhe!$C$62=2),IF(Preços_Index!Q82=\"\",\"\",Preços_Index!Q82),\"\"))","v":""},{"$f":"+IF(J41=\"\",\"\",IF(ERSE_Aux!$H$5=1,Preços_Index!H66,IF(ERSE_Aux!$H$5=2,Preços_Index!$H$68)))","v":""},{"$f":"+IF(J41=\"\",\"\",IF(ERSE_Aux!$H$5=1,Preços_Index!I66,IF(ERSE_Aux!$H$5=2,Preços_Index!$I$68)))","v":""},{"$f":"+IF(J41=\"\",\"\",IF(ERSE_Aux!$H$5=1,Preços_Index!J66,IF(ERSE_Aux!$H$5=2,Preços_Index!$J$68)))","v":""},{"$f":"IF(J41=\"\",\"\",IF(AND(Detalhe!$C$54=2,Detalhe!$C$62=2),\"\",IF(OR(Detalhe!$C$54=2,Detalhe!$C$62=2),IF(Preços_Index!$H$23=\"\",\"\",Preços_Index!$H$23),\"\")))","v":""},{"$f":"IF(J41=\"\",\"\",IF(AND(Detalhe!$C$54=2,Detalhe!$C$62=2),\"\",IF(OR(Detalhe!$C$54=2,Detalhe!$C$62=2),IF(Preços_Index!$I$23=\"\",\"\",Preços_Index!$I$23),\"\")))","v":""},{"$f":"+IF(J41=\"\",\"\",IF(AND(Detalhe!$C$54=2,Detalhe!$C$62=2),\"\",IF(OR(Detalhe!$C$54=2,Detalhe!$C$62=2),IF(Preços_Index!$J$23=\"\",\"\",Preços_Index!$J$23),\"\")))","v":""},{"$f":"+IF(N41=\"\",\"\",IF(ERSE_Aux!$H$5=1,Preços_Index!H38,IF(ERSE_Aux!$H$5=2,Preços_Index!$H$24)))","v":""},{"$f":"+IF(L41=\"\",\"\",IF(ERSE_Aux!$H$5=1,Preços_Index!I38,IF(ERSE_Aux!$H$5=2,Preços_Index!$I$24)))","v":""},{"$f":"+IF(M41=\"\",\"\",IF(ERSE_Aux!$H$5=1,Preços_Index!J38,IF(ERSE_Aux!$H$5=2,Preços_Index!$J$24)))","v":""},{"$f":"+IF(N41=\"\",\"\",IF(ERSE_Aux!$H$5=1,Preços_Index!H51,IF(ERSE_Aux!$H$5=2,Preços_Index!$H$25)))","v":""},{"$f":"+IF(L41=\"\",\"\",IF(ERSE_Aux!$H$5=1,Preços_Index!I51,IF(ERSE_Aux!$H$5=2,Preços_Index!$I$25)))","v":""},{"$f":"+IF(M41=\"\",\"\",IF(ERSE_Aux!$H$5=1,Preços_Index!J51,IF(ERSE_Aux!$H$5=2,Preços_Index!$J$25)))","v":""},{"$f":"+IF(N41=\"\",\"\",Preços_Index!$H$53)","v":""},{"$f":"+IF(O41=\"\",\"\",Preços_Index!$I$53)","v":""},{"$f":"+IF(P41=\"\",\"\",Preços_Index!$J$53)","v":""}]

{"sheet":"ERSE_CondComerciais","index":7,"n_rows":117,"n_cols":78,"rows_kept":117,"cut":false,"hidden":true,"merged":[]}
[null,null,"1.0_Comercializador",null,"1.3_Nome_proposta","1.3.1_Modalidade","1.5_SegmentoOferta",null,null,null,null,null,"2.1_Fornecimento","2.2_Duração contrato","2.3_Data início","2.4_Data de fim","2.5_Web-Pres-Telef","2.6_FE-papel","2.7_DD-MB-Loja","2.8_Escr-Pres-Tel-Elec","2.10_Fidelização Não/Sim","2.11_ELE 100%Renovavel Não/Sim","2.13_RestricoesAdic Não/Sim","2.16_PrecosIndex ELE _Não/Sim","3.1_ServicosAdic Não/Sim","Não/Sim","4.1_reembolsos Não/Sim","4.2_desconto Novos Clientes Não/Sim","3.1.1_ServAdic sem IVA (€/ano)","3.1.2_ServAdic com IVA (€/ano)","4.1.1_ReembFixo","4.1.2_ReembTFixo_ELE","4.1.3_ReembTVaria_ELE","4.1.4_ReembEnergia_ELE","4.1.5_ReembTFixo_GN","4.1.6_ReembTVaria_GN","4.1.7_ReembEnergia_GN","4.2.1_ReembFixo","4.2.2_ReembTFixo_ELE","4.2.3_ReembTVaria_ELE","4.2.4_ReembEnergia_ELE","4.2.5_ReembTFixo_GN","4.2.6_ReembTVaria_GN","4.2.7_ReembEnergia_GN","1.3_Detalhe",null,"1.6_WebComercializador","1.7_LinkOfertaCom","1.8_LinkFichaPadronizada","1.9_LinkCondiçõesGerais","1.10_ContactoComTEL","1.11_ContactoEletronic","2.5.Contrat_Elect","2.5.Contrat_Presencial","2.5.Contrat_Telef","2.5_Elec|Presen|Tel","2.6_Ele|Papel","2.7_DD|MB/Transf|Loja/Agente","2.8_Escrito|Presen|Tel|Ele","2.9_ModalidadeFaturacao","2.10.1_Fidelização","2.13_RestricoesAdicionais","2.12.5_Detalhe restrições","2.14_Detalhe OutrosDescontos/beneficios","2.15_Atualizacao preços","3.1.2_DetalheSerAdic","3.2_DetalheOutrosSerAdic","4.1.8/4.2.8_DetalheReembolsos e Detalhe Desconto Novo Cliente","Preços diferentes no periodo","1.1_CRIA","1.2_Marca Comercial","2.12_Gás Renovávl","2.17_PrecosIndex GN _Não/Sim"]
[null,"#","COM","CODProposta","NomeProposta","TxTModalidade","Segmento","TipoContagem","ConsIni_GN","ConsFim_GN","ConsIni_ELE","ConsFim_ELE","Fornecimento","DuracaoContrato","Data ini","Data fim","FiltroContratacao","Filtrofaturacao","FiltroPagamento","FiltroAtendimento","FiltroFidelização","FiltroRenovavel","FiltroRestrições","FiltroPrecosIndex_ELE","FiltroServicosAdic","FiltroTarifaSocial","FiltroReembolsos","Filtro Novos Clientes","CustoServicos_s/IVA (€/ano)","CustoServicos_c/IVA (€/ano)","ReembFixo (€/ano)","ReembTF_ELE (%)","ReembTW_ELE (%)","ReembW_ELE (€/kWh)","ReembTF_GN (%)","ReembTW_GN (%)","ReembW_GN (€/kWh)","Desc. Fixo (€/ano) - Novo Cliente","Desc. TF_ELE (%) - Novo Cliente","Desc. TW_ELE (%) - Novo Cliente","Desc. W_ELE (€/kWh) - Novo Cliente","Desc. TF_GN (%) - Novo Cliente","Desc. TW_GN (%) - Novo Cliente","Desc. W_GN (€/kWh) - Novo Cliente","TxTOferta","TxTERSE","LinkCOM","LinkOfertaCom","LinkFichaPadrao","LinkCondicoesGerais","ContactoComercialTel","ContactoWEBouMAIL","Contrat_Elect","Contrat_Presen","Contrat_Telef","TxTContratação","TxTFatura","TxTPagamento","TxTAtendimento","TxTFaturacao","TxTFidelização","TxT Condicionadas","Detalhe restrições","DetalheOutrosBen ","TxTAtualizaPrecos","TxTServicoAdic","TxToutrosServicoAdic","TxTReembolsos","PrecosPeriodo","COD_CRIA","Marca_COM","FiltroRenovavel_GN","FiltroPrecosIndex_GN","FiltroPrecosDinâmicos_ELE","Indexante_ELE","Unidade_indexante_ELE","Indexante_GN","Unidade_indexante_GN"]
[null,1,{"$f":"+IF(Detalhe!C3=\"\",\"\",Detalhe!C3)","v":""},{"$f":"+ERSE_Precos_Fixos!$H3","v":{"$error":"#N/A"}},{"$f":"+IF(Detalhe!C6=\"\",\"\",Detalhe!C6)","v":""},{"$f":"IF(Detalhe!$C$7=\"\",\"\",Detalhe!$C$7)","v":""},{"$f":"IF(ERSE_Aux!$C$9=\"\",\"\",ERSE_Aux!$C$9)","v":{"$error":"#N/A"}},{"$f":"+IF(ERSE_Aux!$C$62=\"\",\"\",ERSE_Aux!$C$62)","v":""},{"$f":"+IF(Detalhe!$C$99=\"\",\"\",Detalhe!$C$99)","v":""},{"$f":"+IF(Detalhe!$C$100=\"\",\"\",Detalhe!$C$100)","v":""},{"$f":"+IF(Detalhe!$C$96=\"\",\"\",Detalhe!$C$96)","v":""},{"$f":"+IF(Detalhe!$C$97=\"\",\"\",Detalhe!$C$97)","v":""},{"$f":"+IF(ERSE_Aux!$C$3=\"\",\"\",ERSE_Aux!$C$3)","v":{"$error":"#N/A"}},{"$f":"IF(Detalhe!$C19=\"\",\"\",Detalhe!$C19)","v":""},{"$f":"+IF(Detalhe!C20=\"\",\"\",Detalhe!C20)","v":""},{"$f":"+IF(Detalhe!C21=\"\",\"\",Detalhe!C21)","v":""},{"$f":"+IF(ERSE_Aux!$C$31=\"\",\"\",ERSE_Aux!$C$31)","v":"000"},{"$f":"+IF(ERSE_Aux!C41=\"\",\"\",ERSE_Aux!C41)","v":"00"},{"$f":"+IF(ERSE_Aux!C36=\"\",\"\",ERSE_Aux!C36)","v":"000"},{"$f":"N(Detalhe!$C34)&N(Detalhe!$C35)&N(Detalhe!$C36)&N(Detalhe!$C37)","v":"0000"},{"$f":"+IFERROR(ERSE_Aux!C15,\"N\")","v":"N"},{"$f":"+IFERROR(ERSE_Aux!C45,\"N\")","v":"N"},{"$f":"+IFERROR(ERSE_Aux!$C$55,\"N\")","v":"N"},{"$f":"+IFERROR(ERSE_Aux!$C$91,\"N\")","v":"N"},{"$f":"+IFERROR(ERSE_Aux!$C$19,\"N\")","v":"N"},{"$f":"+IFERROR(ERSE_Aux!C67,\"N\")","v":"N"},{"$f":"+IFERROR(ERSE_Aux!$C$23,\"N\")","v":"N"},{"$f":"+IFERROR(ERSE_Aux!$C$27,\"N\")","v":"N"},{"$f":"+IF(Detalhe!$C$68=\"\",\"\",Detalhe!$C$68)","v":""},{"$f":"+IF(Detalhe!$C$69=\"\",\"\",Detalhe!$C$69)","v":""},{"$f":"+IF(AND(Detalhe!$C$75<>0,Detalhe!$C$75<>\"\"),ABS(Detalhe!$C$75),0)","v":0},{"$f":"+IF(AND(Detalhe!$C$76<>0,Detalhe!$C$76<>\"\"),ABS(Detalhe!$C$76),0)","v":0},{"$f":"+IF(AND(Detalhe!$C$77<>0,Detalhe!$C$77<>\"\"),ABS(Detalhe!$C$77),0)","v":0},{"$f":"+IF(AND(Detalhe!$C$78<>0,Detalhe!$C$78<>\"\"),ABS(Detalhe!$C$78),0)","v":0},{"$f":"+IF(AND(Detalhe!$C$79<>0,Detalhe!$C$79<>\"\"),ABS(Detalhe!$C$79),0)","v":0},{"$f":"+IF(AND(Detalhe!$C$80<>0,Detalhe!$C$80<>\"\"),ABS(Detalhe!$C$80),0)","v":0},{"$f":"+IF(AND(Detalhe!$C$81<>0,Detalhe!$C$81<>\"\"),ABS(Detalhe!$C$81),0)","v":0},{"$f":"+IF(AND(Detalhe!$C$85<>0,Detalhe!$C$85<>\"\"),ABS(Detalhe!$C$85),0)","v":0},{"$f":"+IF(AND(Detalhe!$C$86<>0,Detalhe!$C$86<>\"\"),ABS(Detalhe!$C$86),0)","v":0},{"$f":"+IF(AND(Detalhe!$C$87<>0,Detalhe!$C$87<>\"\"),ABS(Detalhe!$C$87),0)","v":0},{"$f":"+IF(AND(Detalhe!$C$88<>0,Detalhe!$C$88<>\"\"),ABS(Detalhe!$C$88),0)","v":0},{"$f":"+IF(AND(Detalhe!$C$89<>0,Detalhe!$C$89<>\"\"),ABS(Detalhe!$C$89),0)","v":0},{"$f":"+IF(AND(Detalhe!$C$90<>0,Detalhe!$C$90<>\"\"),ABS(Detalhe!$C$90),0)","v":0},{"$f":"+IF(AND(Detalhe!$C$91<>0,Detalhe!$C$91<>\"\"),ABS(Detalhe!$C$91),0)","v":0},{"$f":"IF(Detalhe!$C8=\"\",\"\",Detalhe!$C8)","v":""},{"$f":"IF(Instruções!A15=\"\",\"\",Instruções!A15)","v":""},{"$f":"+IF(Detalhe!$C$10=\"\",\"\",Detalhe!$C$10)","v":""},{"$f":"+IF(Detalhe!$C$11=\"\",\"\",Detalhe!$C$11)","v":""},{"$f":"+IF(Detalhe!$C$12=\"\",\"\",Detalhe!$C$12)","v":""},{"$f":"+IF(Detalhe!$C$13=\"\",\"\",Detalhe!$C$13)","v":""},{"$f":"+IF(Detalhe!$C$14=\"\",\"\",Detalhe!$C$14)","v":""},{"$f":"+IF(Detalhe!$C$15=\"\",\"\",Detalhe!$C$15)","v":""},{"$f":"IF(Detalhe!C23=\"\",\"\",Detalhe!C23)","v":""},{"$f":"IF(Detalhe!C24=\"\",\"\",Detalhe!C24)","v":""},{"$f":"IF(Detalhe!C25=\"\",\"\",Detalhe!C25)","v":""},{"$f":"IF(+ERSE_Aux!$D$31=\"\",\"\",+ERSE_Aux!$D$31)","v":""},{"$f":"+IF(ERSE_Aux!$D$41=\"\",\"\",ERSE_Aux!$D$41)","v":""},{"$f":"+IF(ERSE_Aux!$D$36=\"\",\"\",ERSE_Aux!$D$36)","v":""},{"$f":"+IF(ERSE_Aux!$D$49=\"\",\"\",ERSE_Aux!$D$49)","v":""},{"$f":"IF(Detalhe!$C38=\"\",\"\",Detalhe!$C38)","v":""},{"$f":"+IF(Detalhe!C40=\"\",\"\",Detalhe!C40)","v":""},{"$f":"+IF(ERSE_Aux!$D$59=\"\",\"\",ERSE_Aux!$D$59)","v":""},null,{"$f":"IF(Detalhe!$C48=\"\",\"\",Detalhe!$C48)","v":""},{"$f":"IF(AND(ERSE_Aux!C82=\"\",ERSE_Aux!D101=\"\"),\"\",ERSE_Aux!C82&\" \"&ERSE_Aux!D101)","v":""},{"$f":"IF(Detalhe!$C70=\"\",\"\",Detalhe!$C70)","v":""},{"$f":"IF(Detalhe!$C71=\"\",\"\",Detalhe!$C71)","v":""},{"$f":"IF(ERSE_Aux!C85&ERSE_Aux!C86=\"\",\"\",ERSE_Aux!D85&\" \"&ERSE_Aux!D86)","v":""},{"$f":"+ERSE_Aux!C88","v":{"$error":"#N/A"}},{"$f":"+IF(Detalhe!$C$4=\"\",\"\",Detalhe!$C$4)","v":""},{"$f":"+IF(Detalhe!$C$5=\"\",\"\",Detalhe!$C$5)","v":""},{"$f":"+IFERROR(ERSE_Aux!C95,\"N\")","v":"N"},{"$f":"+IFERROR(ERSE_Aux!$C$105,\"N\")","v":"N"},{"$f":"+IFERROR(ERSE_Aux!$C$109,\"N\")","v":"N"},{"$f":"IF(Preços_Index!$F$70=\"\",\"\",Preços_Index!$F$70)","v":""},{"$f":"IF(Preços_Index!$K$23=\"\",\"\",Preços_Index!$K$23)","v":""},{"$f":"IF(Preços_Index!$F$122=\"\",\"\",Preços_Index!$F$122)","v":""},{"$f":"IF(Preços_Index!$I$116=\"\",\"\",Preços_Index!$I$116)","v":""}]
[]
[]
[]
[]
[]
[]
[]
[]
[]
[]
[]
[]
[]
[]
[]
[]
[]
[]
[]
[]
[]
[]
[]
[]
[]
[]
[]
[]
[]
[]
[]
[]
[]
[]
[]
[]
[]
[]
[]
[]
[]
[]
[]
[]
[]
[]
[]
[]
[]
[]
[]
[]
[]
[]
[]
[]
[]
[]
[]
[]
[]
[]
[]
[]
[]
[]
[]
[]
[]
[]
[]
[]
[]
[]
[]
[]
[]
[]
[]
[]
[]
[]
[]
[]
[]
[]
[]
[]
[]
[]
[]
[]
[]
[]
[]
[]
[]
[]
[]
[]
[]
[]
[]
[]
[]
[]
[]
[]
[]
[]
[]
[]
[]
[null,null,null,null,null,null,null,null,{"$f":"IF(Preços_Index!$F$70=\"\",\"\",Preços_Index!$F$70)","v":""}]

{"sheet":"ERSE_Aux","index":8,"n_rows":116,"n_cols":9,"rows_kept":116,"cut":false,"hidden":true,"merged":[]}
[null,"Comboboxes",null,null,null,null,null,"Macro"]
[null,null,null,null,null,null,null,"Filtro Av.","Drop box"]
[null,"Tipo_fornecimento = ",{"$f":"+INDEX(ERSE_Aux!$C$4:$C$7,MATCH(Detalhe!$C$18,ERSE_Aux!$A$4:$A$7,0))","v":{"$error":"#N/A"}},{"$f":"+IF(SUM(C114:C116)>0,\"N\",OR(IF(Preços_Fixos!D4<Detalhe!C19,\"S\",\"N\"),IF(Preços_Fixos!D26<Detalhe!C19,\"S\",\"N\")))","v":{"$error":"#N/A"}},null,null,null,"sim/não","Não"]
[1,null,"Erro",{"$f":"+IF(C3=\"ELE\",IF(SUM(C114,C116)>0,\"N\",IF(Preços_Fixos!D4<Detalhe!C19,\"S\",\"N\")),IF(C3=\"GN\",IF(C115>0,\"N\",IF(Preços_Fixos!D26<Detalhe!C19,\"S\",\"N\"))))","v":{"$error":"#N/A"}},null,null,null,0,"Sim"]
[2,"Eletricidade","ELE",null,null,null,null,2,"Célula ligada à macro."]
[3,"Gás","GN"]
[4,"Dual","DUAL"]
[]
[null,"Segmento =",{"$f":"+INDEX(ERSE_Aux!$C$10:$C$13,MATCH(Detalhe!$C$9,ERSE_Aux!$A$10:$A$13,0))","v":{"$error":"#N/A"}}]
[1,null,"Erro"]
[2,"Todos","Tod"]
[{"$f":"+A11+1","v":3},"Doméstico","Dom"]
[{"$f":"+A12+1","v":4},"Não doméstico","Ndom"]
[]
[null,"Fidelização =",{"$f":"+INDEX(ERSE_Aux!$C$16:$C$17,MATCH(Detalhe!$C$39,ERSE_Aux!$A$16:$A$17,0))","v":{"$error":"#N/A"}}]
[1,"Não","N"]
[{"$f":"+A16+1","v":2},"Sim","S"]
[]
[null,"Serviços adicionais obrigatórios =",{"$f":"+INDEX(ERSE_Aux!$C$20:$C$21,MATCH(Detalhe!$C$67,ERSE_Aux!$A$20:$A$21,0))","v":{"$error":"#N/A"}}]
[1,"Não","N"]
[{"$f":"+A20+1","v":2},"Sim","S"]
[]
[null,"Reembolsos/Descontos",{"$f":"+INDEX(ERSE_Aux!$C$24:$C$25,MATCH(Detalhe!$C$74,ERSE_Aux!$A$24:$A$25,0))","v":{"$error":"#N/A"}}]
[1,"Não","N"]
[{"$f":"+A24+1","v":2},"Sim","S"]
[]
[null,"Descontos Novos Clientes",{"$f":"+INDEX(ERSE_Aux!$C$28:$C$29,MATCH(Detalhe!$C$84,ERSE_Aux!$A$28:$A$29,0))","v":{"$error":"#N/A"}}]
[1,"Não","N"]
[{"$f":"+A28+1","v":2},"Sim","S"]
[]
[null,"Contratação =",{"$f":"+D32&D33&D34","v":"000"},{"$f":"+IF(E32=\"\",\"\",E32&F32)&IF(E33=\"\",\"\",E33&F33)&E34","v":""}]
[null,"Eletrónica",{"$f":"+IF(Detalhe!C23=\"\",FALSE,TRUE)","v":false},{"$f":"+IF($C32=TRUE,1,0)","v":0},{"$f":"+IF(C32=TRUE,B32,\"\")","v":""},{"$f":"+IF(E32=\"\",\"\",IF(OR(E33<>\"\",E34<>\"\"),\", \",\"\"))","v":""}]
[null,"Presencial",{"$f":"+IF(Detalhe!C24=\"\",FALSE,TRUE)","v":false},{"$f":"+IF($C33=TRUE,1,0)","v":0},{"$f":"+IF(C33=TRUE,B33,\"\")","v":""},{"$f":"+IF(E33=\"\",\"\",IF(AND(E33<>\"\",E34<>\"\"),\", \",\"\"))","v":""}]
[null,"Telefónica",{"$f":"+IF(Detalhe!C25=\"\",FALSE,TRUE)","v":false},{"$f":"+IF($C34=TRUE,1,0)","v":0},""]
[]
[null,"Pagamento",{"$f":"+D37&D38&D39","v":"000"},{"$f":"+IF(E37=\"\",\"\",E37&F37)&IF(E38=\"\",\"\",E38&F38)&E39","v":""}]
[null,"Débito Direto",{"$f":"+Detalhe!C30","v":0},{"$f":"+IF($C37=TRUE,1,0)","v":0},{"$f":"+IF(C37=TRUE,B37,\"\")","v":""},{"$f":"+IF(E37=\"\",\"\",IF(OR(E38<>\"\",E39<>\"\"),\", \",\"\"))","v":""}]
[null,"Multibanco",{"$f":"+Detalhe!C31","v":0},{"$f":"+IF($C38=TRUE,1,0)","v":0},{"$f":"+IF(C38=TRUE,B38,\"\")","v":""},{"$f":"+IF(E38=\"\",\"\",IF(AND(E38<>\"\",E39<>\"\"),\", \",\"\"))","v":""}]
[null,"Numerário/Payshop/CTT",{"$f":"+Detalhe!C32","v":0},0,""]
[]
[null,"Modo de faturação =",{"$f":"+D42&D43","v":"00"},{"$f":"+IF(E42=\"\",\"\",E42&F42)&E43","v":""}]
[null,"Fatura eletrónica",{"$f":"+Detalhe!C27","v":0},{"$f":"+IF($C42=TRUE,1,0)","v":0},{"$f":"+IF(C42=TRUE,B42,\"\")","v":""},{"$f":"+IF(E42=\"\",\"\",IF(AND(E42<>\"\",E43<>\"\"),\", \",\"\"))","v":""}]
[null,"Fatura em papel",{"$f":"+Detalhe!C28","v":0},{"$f":"+IF($C43=TRUE,1,0)","v":0},""]
[]
[null,"ELE Energia Verde =",{"$f":"+INDEX(ERSE_Aux!$C$46:$C$47,MATCH(Detalhe!$C$42,ERSE_Aux!$A$46:$A$47,0))","v":{"$error":"#N/A"}}]
[1,"Não","N"]
[{"$f":"+A46+1","v":2},"100% Renovável","S"]
[]
[null,"Meios de atendimento =",{"$f":"+D50&D51&D52&D53","v":"0000"},{"$f":"+IF(E50=\"\",\"\",E50&F50)&IF(E51=\"\",\"\",E51&F51)&IF(E52=\"\",\"\",E52&F52)&E53","v":""}]
[null,"Por escrito",{"$f":"+Detalhe!C34","v":0},{"$f":"+IF($C50=TRUE,1,0)","v":0},{"$f":"+IF(C50=TRUE,B50,\"\")","v":""},{"$f":"+IF(E50=\"\",\"\",IF(OR(E51<>\"\",E52<>\"\",E53<>\"\"),\", \",\"\"))","v":""}]
[null,"Presencial",{"$f":"+Detalhe!C35","v":0},{"$f":"+IF($C51=TRUE,1,0)","v":0},{"$f":"+IF(C51=TRUE,B51,\"\")","v":""},{"$f":"+IF(E51=\"\",\"\",IF(OR(E52<>\"\",E53<>\"\"),\", \",\"\"))","v":""}]
[null,"Telefónico",{"$f":"+Detalhe!C36","v":0},0,"",{"$f":"+IF(E52=\"\",\"\",IF(E53<>\"\",\", \",\"\"))","v":""}]
[null,"Eletrónico",{"$f":"+Detalhe!C37","v":0},0,""]
[]
[null,"Ofertas Condicionadas",{"$f":"+INDEX(ERSE_Aux!$C$56:$C$57,MATCH(Detalhe!$C$46,ERSE_Aux!$A$56:$A$57,0))","v":{"$error":"#N/A"}}]
[1,"Não","N"]
[{"$f":"+A56+1","v":2},"Sim","S"]
[]
[null,"Detalhe Ofertas Condicionadas =",null,{"$f":"+IF(Detalhe!$C$47=\"\",\"\",Detalhe!$C$47)","v":""}]
[]
[]
[null,"Tipo de Contagem?",{"$f":"+IF(C63=TRUE,A63,\"\")&IF(C64=TRUE,A64,\"\")&IF(C65=TRUE,A65,\"\")","v":""}]
[1,"1H",{"$f":"+IF(OR(SUM(Preços_Fixos!$C$9:$D$21)>0,SUM(Preços_Index!$E$54:$E$68)>0),TRUE,FALSE)","v":false}]
[2,"2H",{"$f":"+IF(OR(SUM(Preços_Fixos!$E$9:$G$21)>0,SUM(Preços_Index!$F$54:$G$68)>0),TRUE,FALSE)","v":false}]
[3,"3H",{"$f":"+IF(OR(SUM(Preços_Fixos!$H$9:$K$21)>0,SUM(Preços_Index!$H$54:$J$68)>0),TRUE,FALSE)","v":false}]
[]
[null,"Tarifa Social?",{"$f":"+IF($C$9=\"Ndom\",\"N\",\"S\")","v":{"$error":"#N/A"}}]
[]
[null,"Detalhe/Descrição"]
[null,"Descrição Políticas de atualização",{"$f":"+IF(Detalhe!C52=\"\",\"\",Detalhe!C52)","v":""},{"$f":"+IF(RIGHT(C70,1)=\".\",C70,SUBSTITUTE(C70,C70,C70&\".\"))","v":""}]
[null,"Descrição sobre se os Preços se mantêm",{"$f":"+IF(Detalhe!C53=\"\",\"\",Detalhe!C53)","v":""},{"$f":"+IF(RIGHT(C71,1)=\".\",C71,SUBSTITUTE(C71,C71,C71&\".\"))","v":""}]
[]
[]
[null,"Atualização TAR?",{"$f":"IF(Detalhe!C50,ERSE_Aux!B75,\"\")","v":""}]
[null,"Atualização dos preços em função das alterações nas tarifas de acesso às redes aprovadas pela ERSE."]
[]
[null,"Descrição energia elétrica 100% Renovável?",{"$f":"+IF(Detalhe!C43=\"\",\"\",Detalhe!C43)","v":""},{"$f":"+IF(RIGHT(C77,1)=\".\",C77,SUBSTITUTE(C77,C77,C77&\".\"))","v":""}]
[]
[null,"Descrição gás 100% renovável ou de baixo teor em carbono?",{"$f":"+IF(Detalhe!C45=\"\",\"\",Detalhe!C45)","v":""},{"$f":"+IF(RIGHT(C79,1)=\".\",C79,SUBSTITUTE(C79,C79,C79&\".\"))","v":""}]
[]
[null,"Os preços são atualizados em função de outros parâmetros?",{"$f":"IF(Detalhe!C51,D70,\"\")","v":""}]
[null,"Concatenação de campos descritivos:",{"$f":"+IF(AND(C74=\"\",C81=\"\"),$D$71,$C$74&\" \"&$C$81&\" \"&$D$71&\" \"&$D$77&\" \"&D79)","v":""}]
[]
[null,"Detalhe/Descrição"]
[null,"Descrição reembolsos para qualquer cliente",{"$f":"+IF(Detalhe!C82=\"\",\"\",Detalhe!C82)","v":""},{"$f":"+IF(RIGHT(C85,1)=\".\",C85,SUBSTITUTE(C85,C85,C85&\".\"))","v":""}]
[null,"Descrição descontos para novos clientes",{"$f":"+IF(Detalhe!C92=\"\",\"\",Detalhe!C92)","v":""},{"$f":"+IF(RIGHT(C86,1)=\".\",C86,SUBSTITUTE(C86,C86,C86&\".\"))","v":""}]
[]
[null,"Diferentes preços/diferentes períodos",{"$f":"+C89","v":{"$error":"#N/A"}}]
[null,"S / N",{"$f":"+IF(C3=\"DUAL\",IF(AND(Preços_Fixos!D4=0,Preços_Fixos!D26=0),\"\",IF(AND(Preços_Fixos!D4>0,Preços_Fixos!D26>0,(Preços_Fixos!D4+Preços_Fixos!D26)/2<Detalhe!C19),\"S\",\n\nIF(AND(OR(Preços_Fixos!D4>0,Preços_Fixos!D26>0),(Preços_Fixos!D4+Preços_Fixos!D26)<Detalhe!C19),\"S\",\"N\"))),\n\nIF(C3=\"ELE\",IF(SUM(C114,C116)>0,\"N\",IF(Preços_Fixos!D4<Detalhe!C19,\"S\",\"N\")),IF(C3=\"GN\",IF(C115>0,\"N\",IF(Preços_Fixos!D26<Detalhe!C19,\"S\",\"N\")))))","v":{"$error":"#N/A"}}]
[]
[null,"Preços Indexados ELE =",{"$f":"+INDEX(ERSE_Aux!$C$92:$C$93,MATCH(Detalhe!$C$54,ERSE_Aux!$A$92:$A$93,0))","v":{"$error":"#N/A"}}]
[1,"Não","N"]
[{"$f":"+A92+1","v":2},"Sim","S"]
[]
[null,"GN Energia 100% renovável =",{"$f":"+INDEX(ERSE_Aux!$C$46:$C$47,MATCH(Detalhe!$C$44,ERSE_Aux!$A$46:$A$47,0))","v":{"$error":"#N/A"}}]
[1,"Não","N"]
[{"$f":"+A96+1","v":2},"100% renovável ou de baixo teor em carbono","S"]
[]
[]
[]
[null,"Descrição Preços Indexados_ELE",{"$f":"+IF(Detalhe!C55=\"\",\"\",IF(RIGHT(Detalhe!C55,1)=\".\",Detalhe!C55,SUBSTITUTE(Detalhe!C55,Detalhe!C55,Detalhe!C55&\".\")))","v":""},{"$f":"+IF(AND($C$101=\"\",$C$102=\"\",$C$103=\"\"),\"\",IF(AND($C$101<>\"\",$C$102<>\"\"),$C$101&\" \"&$C$102,IF(AND($C$102<>\"\",$C$103<>\"\"),$C$102&\" \"&$C$103,IF(SUM(E101:E103)=1,$C$101&$C$102&$C$103,\"\"))))","v":""},{"$f":"+IF(C101<>\"\",1,0)","v":0}]
[null,"Descrição Preços Indexados_GN",{"$f":"+IF(Detalhe!C59=\"\",\"\",IF(RIGHT(Detalhe!C59,1)=\".\",Detalhe!C59,SUBSTITUTE(Detalhe!C59,Detalhe!C59,Detalhe!C59&\".\")))","v":""},null,{"$f":"+IF(C102<>\"\",1,0)","v":0}]
[null,"Descrição Preços Dinâmicos ELE",{"$f":"+IF(Detalhe!C63=\"\",\"\",IF(RIGHT(Detalhe!C63,1)=\".\",Detalhe!C63,SUBSTITUTE(Detalhe!C63,Detalhe!C63,Detalhe!C63&\".\")))","v":""},null,0]
[]
[null,"Indexação Preços GN =",{"$f":"+INDEX(ERSE_Aux!$C$106:$C$107,MATCH(Detalhe!$C$58,ERSE_Aux!$A$106:$A$107,0))","v":{"$error":"#N/A"}}]
[1,"Não","N"]
[{"$f":"+A106+1","v":2},"Sim","S"]
[]
[null,"Preços dinâmicos ELE =",{"$f":"+INDEX(ERSE_Aux!$C$110:$C$111,MATCH(Detalhe!$C$62,ERSE_Aux!$A$110:$A$111,0))","v":{"$error":"#N/A"}}]
[1,"Não","N"]
[{"$f":"+A110+1","v":2},"Sim","S"]
[]
[null,"Teste Erro Index/Dinamico ELE ="]
[null,"Preços Indexados ELE",{"$f":"+IF(C91=\"S\",1,0)","v":{"$error":"#N/A"}},{"$f":"+IF(AND(C114=1,C116=1), \"Erro\",\"OK\")","v":{"$error":"#N/A"}}]
[null,"Indexação Preços GN ",{"$f":"+IF(C105=\"S\",1,0)","v":{"$error":"#N/A"}}]
[null,"Preços dinâmicos ELE ",{"$f":"+IF(C109=\"S\",1,0)","v":{"$error":"#N/A"}}]

{"sheet":"ERSE_Aux_Indexadas","index":9,"n_rows":36,"n_cols":27,"rows_kept":36,"cut":false,"hidden":false,"merged":[[8,3,9,3],[6,1,6,2],[8,4,9,4],[6,15,6,21],[10,3,23,3],[10,15,23,15],[1,2,1,7],[1,14,1,19],[2,13,2,21],[6,13,6,14],[8,15,9,15],[8,16,9,16],[8,17,9,17],[8,18,9,18],[6,3,6,9],[8,5,9,5],[8,6,9,6],[2,1,2,9]]}
[]
[null,null,"Eletricidade",null,null,null,null,null,null,null,null,null,null,null,"Gás",null,null,null,null,null,null,null,null,null,"Nome do Comercializador *","Marca comercial*","Nome da Oferta comercial *"]
[null,"Verificação da equivalência das fórmulas para opção Simples",null,null,null,null,null,null,null,null,null,null,null,"Verificação da equivalência das fórmulas para o Escalão 1",null,null,null,null,null,null,null,null,null,null,{"$f":"+Detalhe!C3","v":0},{"$f":"+Detalhe!C5","v":0},{"$f":"+Detalhe!C6","v":0}]
[]
[]
[null,null,null,"(Indicar a fórmula de indexação de preço conforme Ficha Informativa Normalizada - FIN)",null,null,null,null,null,null,null,null,null,null,null,"(Indicar a fórmula de indexação de preço conforme Ficha Informativa Normalizada - FIN)"]
[null,"Fórmula do preço da oferta",null,null,null,null,null,null,null,null,null,null,null,"Fórmula do preço da oferta"]
[]
[null,null,null,"N.º de parâmetros","Designação","Valor","Parâmetro com variação mensal?",null,null,null,null,null,null,null,null,"N.º de parâmetros","Designação","Valor","Parâmetro com variação mensal?"]
[]
[]
[]
[]
[]
[]
[]
[]
[]
[]
[]
[]
[]
[]
[]
[null,null,null,{"$f":"IF(AND(COUNTA(Preços_Index!E23:J53,Preços_Index!F70,Preços_Index!E76:N79,Preços_Index!O78:Q79,Preços_Index!K23)=0,COUNTA(D7:J7,D11:G24,G26)=0),\"\",\n\nIF(AND(COUNTA(Preços_Index!E23:J53,Preços_Index!F70,Preços_Index!E76:N79,Preços_Index!O78:Q79,Preços_Index!K23)>0,COUNTA(D7:J7,D11:G24,G26)=0),\"Nok\",\n\nIF(AND(COUNTA(Preços_Index!E23:J53,Preços_Index!F70,Preços_Index!E76:N79,Preços_Index!O78:Q79,Preços_Index!K23)=0,COUNTA(D7:J7,D11:G24,G26)>0),\"Nok\",\n\nIF(AND(COUNTA(D7:J7)>0,OR(COUNTA(E11:E24)=0,COUNTA(F11:F24)=0,COUNTA(G11:G24)=0,COUNTA(D11)=0,COUNTA(G26)=0)),\"Nok\",\n\nIF(AND(COUNTA(D7:J7)=0,OR(COUNTA(E11:E24)=0,COUNTA(F11:F24)=0,COUNTA(G11:G24)=0,COUNTA(D11)=0,COUNTA(G26)>0)),\"Nok\",\n\nIF(D11=(COUNTA(E11:E24)+COUNTA(F11:F24)+COUNTA(G11:G24))/3,\"Ok\",\"Nok\"))))))","v":""},null,null,null,null,null,null,null,null,null,null,null,{"$f":"IF(AND(COUNTA(Preços_Index!E116:H119,Preços_Index!F122,Preços_Index!E128:H129,Preços_Index!I116)=0,COUNTA(P7,P11:S24,S26)=0),\"\",\n\nIF(AND(COUNTA(Preços_Index!E116:H119,Preços_Index!F122,Preços_Index!E128:H129,Preços_Index!I116)>0,COUNTA(P7,P11:S24,S26)=0),\"Nok\",\n\nIF(AND(COUNTA(Preços_Index!E116:H119,Preços_Index!F122,Preços_Index!E128:H129,Preços_Index!I116)=0,COUNTA(P7,P11:S24,S26)>0),\"Nok\",\n\nIF(AND(COUNTA(P7)>0,OR(COUNTA(Q11:Q24)=0,COUNTA(R11:R24)=0,COUNTA(S11:S24)=0,COUNTA(P11)=0,COUNTA(S26)=0)),\"Nok\",\n\nIF(AND(COUNTA(P7)=0,OR(COUNTA(Q11:Q24)=0,COUNTA(R11:R24)=0,COUNTA(S11:S24)=0,COUNTA(P11)=0,COUNTA(S26)>0)),\"Nok\",\n\nIF(P11=(COUNTA(Q11:Q24)+COUNTA(R11:R24)+COUNTA(S11:S24))/3,\"Ok\",\"Nok\"))))))","v":""}]
[null,"Aplicar fórmula do preço da oferta e respetivos parâmetros",null,null,null,null,null,{"$f":"IF(D25=\"\",\"\",IF(D25=\"Nok\",\"Nok\",\n\nIF(OR(Preços_Index!E67=\"\",AND(ERSE_Aux!H5=1,_xlfn.XLOOKUP(1,IF(ISERROR(Preços_Index!E54:E63),0,IF(ISTEXT(Preços_Index!E54:E63),0,--(Preços_Index!E54:E63>0))),ROUND(Preços_Index!E54:E63,4),\"Vazio\"))=0),\"Verificação não aplicável para Bi ou Tri-horário\",\n\nIF(AND(ERSE_Aux!H5=2,ROUND(Preços_Index!E67,4)=ROUND(G26,4),G28<>\"Não é uma fórmula\"),\"Ok\",\n\nIF(AND(ERSE_Aux!H5=1,_xlfn.XLOOKUP(1,IF(ISERROR(Preços_Index!E54:E63),0,IF(ISTEXT(Preços_Index!E54:E63),0,--(Preços_Index!E54:E63>0))),ROUND(Preços_Index!E54:E63,4),\"Vazio\")=ROUND(G26,4),G28<>\"Não é uma fórmula\"),\"Ok\",\n\n\"Nok\")))))","v":""},null,null,null,null,null,"Aplicar fórmula do preço da oferta e respetivos parâmetros",null,null,null,null,null,{"$f":"IF(P25=\"\",\"\",IF(P25=\"Nok\",\"Nok\",IF(AND(ROUND(Preços_Index!E120,4)=ROUND(S26,4),S28<>\"Não é uma fórmula\"),\"Ok\",\"Nok\")))","v":""}]
[]
[null,null,null,null,null,null,{"$f":"IF(G26=\"\",\"\",IFERROR(_xlfn.FORMULATEXT(G26),\"Não é uma fórmula\"))","v":""},null,null,null,null,null,null,null,null,null,null,null,{"$f":"IF(S26=\"\",\"\",IFERROR(_xlfn.FORMULATEXT(S26),\"Não é uma fórmula\"))","v":""},null,{"$f":"IF(U26=\"\",\"\",IFERROR(_xlfn.FORMULATEXT(U26),\"Não é uma fórmula\"))","v":""}]
[]
[]
[null,{"$f":"+IF(H26=\"Nok\",\"Verificar parâmetros da fórmula de preço da oferta e confirmar equivalência das fórmulas\",\"\")","v":""},null,null,null,null,null,null,null,null,null,null,null,{"$f":"+IF(T26=\"Nok\",\"Verificar parâmetros da fórmula de preço da oferta e confirmar equivalência das fórmulas\",\"\")","v":""}]
[]
[]
[]
[]
[null,"Folha de preenchimento obrigatório para ofertas indexadas de eletricidade - opção Simples e gás - Escalão 1. Verificação da equivalência de fórmulas."]